Workbook

Sheet Title Page
A1: U.S. EPA Office of Ground Water and Drinking Water
A2: Work Breakdown Structure (WBS) Model for Biological Drinking Water Treatment
A3: Release Date: June 30, 2019
A4: · The primary purpose of this model is to assist EPA in estimating national compliance costs.
A5: · As such, the costs are intended to be representative of typical facilities.
A6: · The default settings, however, do not account for all of the site-specific factors that could affect the cost of any given individual facility or project.
A7: · Still, other uses of the model might be reasonable if sufficient care is taken by the user to account for site- or project-specific factors.
A8: · The model results are point estimates shown to the nearest $1, but this precision is not meant to imply that the results are accurate to $1.
A9: · Instead, users should review all documentation, modify inputs/assumptions as appropriate to their specific purpose, and form their own informed opinions about the accuracy and suitability of the results.
A10: · Use of this model requires Excel 2007 or later.
A11: · The model should be opened as Read-only, so that any changes you make are saved under a new file name.
A12: · To function properly, macros ("active content") must be enabled. If a security warning appears, click "options" and "enable this content."
A13: · For further information see the following document distributed with this file:
A14: USEPA. 2019. Work Breakdown Structure-Based Cost Model for Biological Drinking Water Treatment. Office of Water.
A15: · To begin using the model, go to the INPUT sheet.

Sheet Index
A1: INDEX
A2: This page provides an index to all user-adjustable inputs and assumptions. Click on a variable name to go directly to the adjustable cells.
A4: User-adjustable Input or Assumption | B4: Variable Name and Link
A5: Access space per pump for custom designed systems | B5: space_pumps_cust
A6: Access space per pump for pre-engineered packages | B6: space_pumps_pre
A7: Acetic Acid density | B7: CH3NOOH_dens
A8: Acetic Acid solution strength | B8: CH3NOOH_strength
A9: Add a redundant bioreactor per x parallel lines (Fixed bed designs only) | B9: redund_freq
A10: Add ferric chloride to holding tank? | B10: coag_res
A11: Add polymer to holding tank? | B11: polymer_res
A12: Additional blower head above water level | B12: add_blow_head
A13: Additional building after… | B13: add_2nd_building
A14: Additional freeboard | B14: sec_cont_freeboard
A15: Additional sampling ports | B15: add_ports
A16: Additional turbididy meters | B16: add_turb
A17: Administrative LOE as a percent of average technical labor | B17: Clerical_percent
A18: Aeration Rate | B18: rate_aeration
A19: Aeration Tank Residence Time | B19: hrt_aeration
A20: Air conditioning EER | B20: EER
A21: Air scour time | B21: air_scour_time
A22: Air scour volume | B22: air_scour_vol
A23: Always include NEPA compliance costs? | B23: include_NEPA
A24: Ammonium Chloride density | B24: NH4CL_dens
A25: Ammonium chloride dose | B25: NH4Cl_dose_I
A26: Annual contactor materials cost as a percent of capital | B26: Materials_pct
A27: Annual cooling degree days | B27: cool_DD
A28: Annual heating degree days | B28: heat_DD
A29: Anthracite density | B29: anthracite_density
A30: Apply POTW discharge base charge (i.e., $/month) | B30: POTW_base_fee
A31: Apply POTW discharge TSS charge (i.e., $/lb of TSS over limit below) | B31: POTW_TSS_fee
A32: Apply POTW discharge volume charge (i.e., $/1000 gallons) | B32: POTW_volume_fee
A33: Average annual pan evaporation rate | B33: pan_evap
A34: Average annual precipitation | B34: precip
A35: Average Flow (including bypass) | B35: average_flow_I
A36: Backwash pump head | B36: back_pump_head
A37: Backwash pumping | B37: no_backwash_I
A38: Backwash storage | B38: no_back_tank_I
A39: Basin excavation depth above which deeper boreholes are needed | B39: deep_bore_need
A40: Basin freeboard above filter media at full expansion | B40: basin_freeboard
A41: Basin freeboard above filter media at full expansion | B41: filt_freeboard
A42: Bed Depth for Filtration < 0.1 MGD | B42: bed_depth_filt_small
A43: Bed Depth for Filtration > 10 MGD | B43: bed_depth_filt_large
A44: Bed Depth for Filtration 0.1 MGD-10 MGD | B44: bed_depth_filt
A45: Bed expansion during backwash | B45: bed_expansion
A46: Bed expansion during backwash | B46: filt_bed_expansion
A47: Bedding depth below pipe | B47: bedding_depth
A48: Bedding depth surrounding the pipe | B48: bedding_pct
A49: Biomass generation | B49: biomass_I
A50: Biomass Seperator Air Scour Volume for fluidized beds | B50: biomass_air_scour
A51: Bioreactor backwash time | B51: backwash_time
A52: Bioreactor Fixed Bed Gravity Contact Basins Bed depth | B52: basin_op_depth
A53: Bioreactor Fixed Bed Gravity Contact Basins length | B53: basin_length
A54: Bioreactor Fixed Bed Gravity Contact Basins width | B54: basin_width
A55: Bioreactor Pressure Vessels Bed depth | B55: bed_depth
A56: Bioreactor Pressure Vessels Diameter | B56: comm_diam
A57: Bioreactor Pressure Vessels geometry | B57: tank_geom_I
A58: Bioreactor Pressure Vessels Height (straight) | B58: comm_height_length
A59: Bioreactor water backwash rate | B59: h2oflush_backwash_rate
A60: Blower efficiency | B60: blower_effcy
A61: Booster Pump efficiency | B61: booster_pump_efficiency
A62: Borehole depth (pressure systems) | B62: bore_depth_p
A63: Borehole depth for deep basins | B63: bore_depth_max
A64: Borehole depth for shallow basins | B64: bore_depth_min
A65: Borehole needed every x square feet | B65: hole_per_sf
A66: Boreholes per job | B66: hole_per_job
A67: Builder's risk insurance percentage | B67: br_ins_pct
A68: Characteristics of holding tank or evaporation pond solids | B68: solids_haz_I
A69: Chemical resistant coating coverage | B69: sec_cont_coating_cvg
A70: Chemical tank mixer horsepower | B70: cmix_hp_per
A71: City Index | B71: city_index
A72: Clean holding tanks/basins when solids accumulation =x% of capacity | B72: htank_clean_pct
A73: Clearance space beneath the ceiling | B73: ceiling_clearance
A74: Climate for estimating evaporation pond greenhouse gas emissions | B74: GHG_pond_climate
A75: Coagulant bulk density | B75: coag_density_filt
A76: Coagulant dosage prior to post-treatment filtration | B76: coag_dose_filt
A77: Coagulant mix tank mixer horsepower | B77: mix_hp_per
A78: Coagulant mix time prior to filtration | B78: coag_mix_time
A79: Coefficient of passive pressure | B79: Coeff_Kp
A80: Component level | B80: component_level_I
A81: Computer workstations per x operators | B81: workstation_ratio
A82: Concrete pad thickness | B82: pad_thick
A83: Concrete pad thickness for small systems | B83: pad_thick_small
A84: Concrete thickness for storage basins | B84: conc_thick
A85: Cooling table for buildings 500 square feet or greater | B85: cooling_table
A86: Cooling table for buildings less than 500 ft2 | B86: cooling_table_shed
A87: Cooling ventilation/infiltration load | B87: cool_viload
A88: Cost estimating method | B88: curve
A89: Cost for parts & maintenance for pumps and blowers | B89: booster_pump_maintenance
A90: Days of chemical storage for all other chemicals | B90: chem_storage
A91: Days of chemical storage for H2O2 | B91: H2O2_days
A92: Days of coagulant storage | B92: cstore_days
A93: Days of winter (i.e., days of storage during periods with no net evaporation) | B93: winter_days
A94: Default number of residuals basins | B94: hbasins_default
A95: Default number of thickener basins | B95: thick_basins_default
A96: Design Flow (including bypass) | B96: design_flow_I
A97: Design safety factor for standby power | B97: std_safety_factor
A98: Diluted concentration to be fed | B98: H2O2_dilute_conc
A99: Discharge option for spent backwash | B99: res_s2_opt_I
A100: Disposal method for non-hazardous secondary solids | B100: solids_method
A101: Distance to discharge or recycle point | B101: add_res_pipe_length
A102: Drive controllers per backwash pump and air scour blower | B102: S_back_pump
A103: Drive controllers per booster pump | B103: S_booster_pump
A104: Drive controllers per chemical metering pump | B104: S_cm_pump
A105: Drive controllers per eductor | B105: S_eductor
A106: Drive controllers per feeder | B106: S_feeder
A107: Drive controllers per mixer | B107: S_mixer
A108: Drive controllers per recycle pump | B108: S_recycle_pump
A109: Drive controllers per residuals pump | B109: S_res_pump
A110: EBCT for Filtration | B110: ebct_filt
A111: Electric resistance heating efficiency | B111: resist_eff
A112: Electrical percentage | B112: elect_pct
A113: Electron donor dose | B113: e_donor_dose_I
A114: Electron donor type | B114: e_donor_type_I
A115: Engineering percentage for large systems | B115: eng_pct_large
A116: Engineering percentage for medium systems | B116: eng_pct_medium
A117: Engineering percentage for small systems | B117: eng_pct_small
A118: Ethanol density | B118: ethanol_dens
A119: Ethernet modules | B119: plc_ethernet
A120: Evaporation pond dike cross-sectional area | B120: dike_xsection
A121: Evaporation pond freeboard | B121: ep_freeboard
A122: Evaporation pond safety factor | B122: ep_safety_factor
A123: Evaporation pond solids density | B123: ep_solids_density
A124: Evaporation pond solids removal frequency | B124: dredging_freq
A125: Evaporation ratio | B125: evap_ratio
A126: Ferric chloride bulk density | B126: coag_density
A127: Ferric chloride dosage for residuals | B127: coag_dose
A128: Ferric chloride sludge production factor | B128: coag_spf
A129: Filter backwash time | B129: filter_backwash_time
A130: Filter loading rate maximum | B130: load_max_filt
A131: Filter loading rate minimum | B131: load_min_filt
A132: Filter water backwash rate | B132: filter_h2oflush_backwash_rate
A133: Financing percentage | B133: finance_pct
A134: Financing percentage for small systems | B134: finance_pct_small
A135: Fire Buffer for Buildings | B135: fire_buffer
A136: Flow meters for backwash line | B136: tot_fm_back
A137: Flow meters for influent and effluent line | B137: tot_fm_in
A138: Flow meters for process line per vessel | B138: fm_proc
A139: Flow meters for residuals line | B139: tot_fm_res
A140: Fraction of media anthracite | B140: anthracite_fraction
A141: Fraction of media GAC | B141: GAC_fraction
A142: Fraction of media garnet/ilmenite | B142: garnet_fraction
A143: Fraction of media sand | B143: sand_fraction
A144: Free board above media at full expansion (fixed bed designs) | B144: free_board
A145: Freeboard above fully expanded media (Design < 1MGD) | B145: freeboard_fluidized_small
A146: Freeboard above fully expanded media (Design > 1MGD) | B146: freeboard_fluidized
A147: Frost depth | B147: frost
A148: GAC bulk density | B148: GAC_density
A149: Garnet density | B149: garnet_density
A150: Head loss sensors per vessel | B150: head_tank
A151: Heat pump cooling mode EER | B151: hp_EER
A152: Heat pump heating coefficient of performance | B152: COP
A153: Heating oil heat content | B153: diesel_heat_content
A154: Heating table for buildings 500 square feet or greater | B154: heating_table
A155: Heating table for buildings less than 500 ft2 | B155: heating_table_shed
A156: Heating ventilation/infiltration load | B156: heat_viload
A157: High/Low alarm for backwash tank | B157: alarm_back
A158: High/Low alarms for chemical tank | B158: alarm_chem
A159: High/Low alarms per holding tank | B159: alarm_res
A160: Holding basin depth to volume ratio | B160: holding_ratio
A161: Holding basin freeboard | B161: holding_freeboard
A162: Holding tank for spent backwash | B162: res_s1_opt_I
A163: Holding tank/basin capacity safety factor | B163: res_cap_factor
A164: Holding tank/basin mixer horsepower (if coagulant is used) | B164: hmix_hp_per
A165: Holding tank/basin solids density | B165: ht_solids_density
A166: Holding tank/basin solids transfer method | B166: res_transfer_method
A167: Holding tank/basin suspended solids removal efficiency with coagulant | B167: coag_TSSrem
A168: Holding tank/basin suspended solids removal efficiency without coagulant | B168: htank_TSSrem
A169: Hours per media changeout | B169: uloe_throwaway
A170: Hydrogen Peroxide Dose | B170: H2O2_dose
A171: I/O port table | B171: port_table
A172: Include a separate day tank if daily volume is x or greater | B172: day_tank_needed
A173: Include air scour | B173: air_scour_I
A174: Include architectural fee for small systems? | B174: include_arch_small
A175: Include architectural fee? | B175: include_arch
A176: Include buildings? | B176: include_buildings_I
A177: Include concrete pad in total capital cost? | B177: include_pad
A178: Include construction management cost for pre-engineered packages? | B178: include_cm_pre
A179: Include construction management cost? | B179: include_cm
A180: Include contingency costs for high cost systems? | B180: include_conting_high
A181: Include contingency costs for low cost systems? | B181: include_conting_low
A182: Include contingency costs for medium cost systems? | B182: include_conting_medium
A183: Include cooling in standby power | B183: need_cool
A184: Include geotechnical costs for high cost systems? | B184: include_geo_high
A185: Include geotechnical costs for low cost systems? | B185: include_geo_low
A186: Include geotechnical costs for medium cost systems? | B186: include_geo_medium
A187: Include heating in standby power | B187: need_heat
A188: Include HVAC? | B188: include_HVAC_I
A189: Include land? | B189: include_land_I
A190: Include mixers for chemical tanks | B190: include_cmix
A191: Include performance bond cost? | B191: include_bond
A192: Include permit costs? | B192: include_permits
A193: Include pilot study costs? | B193: include_pilot
A194: Include polishing filter | B194: include_post_I
A195: Include secondary containment | B195: include_sec_cont
A196: Include sitework costs? | B196: include_sitework
A197: Include standby power costs for small systems? | B197: include_standby_small
A198: Include standby power costs? | B198: include_standby
A199: Include yard piping costs? | B199: include_yardpipe
A200: Incude coagulant addition before filtration | B200: include_coag_filt_I
A201: Influent dissolved oxygen concentration | B201: O2_in
... 203 more rows

Sheet INPUT
A1: BIOTREATMENT SYSTEM DESIGN AND COST INPUT
E2: STEP 1
E3: Select Target Contaminant | H3: =IF(contam<>3,"","For other contaminants, the buttons shown in Step 3 will enter flows only, and clear all other inputs. Advanced users can change this behavior by entering inputs on the Standard Inputs sheet") -> 
E5: STEP 2
E6: Select Bioreactor Design Type
E8: STEP 3 | H8: =IF(OR('Standard Inputs'!BA9,'Standard Inputs'!BA17,'Standard Inputs'!BA25,'Standard Inputs'!BA33,'Standard Inputs'!BA41,'Standard Inputs'!BA49,'Standard Inputs'!BA57,'Standard Inputs'!BA65,'Standard Inputs'!BA73),"<- Using this design",IF(OR('Standard Inputs'!BB9,'Standard Inputs'!BB17,'Standard Inputs'!BB25,'Standard Inputs'!BB33,'Standard Inputs'!BB41,'Standard Inputs'!BB49,'Standard Inputs'!BB57,'Standard Inputs'!BB65,'Standard Inputs'!BB73),"<- You modified this design","")) -> <- Using this design | I8: The standard design buttons are for EPA's use in estimating national costs, but other users might find them useful as a starting point. See documentation for more information
E9: Select one of the eight standard designs at right OR select "CLEAR FOR MANUAL ENTRY" | H9: =IF(OR('Standard Inputs'!BA10,'Standard Inputs'!BA18,'Standard Inputs'!BA26,'Standard Inputs'!BA34,'Standard Inputs'!BA42,'Standard Inputs'!BA50,'Standard Inputs'!BA58,'Standard Inputs'!BA66,'Standard Inputs'!BA74),"<- Using this design",IF(OR('Standard Inputs'!BB10,'Standard Inputs'!BB18,'Standard Inputs'!BB26,'Standard Inputs'!BB34,'Standard Inputs'!BB42,'Standard Inputs'!BB50,'Standard Inputs'!BB58,'Standard Inputs'!BB66,'Standard Inputs'!BB74),"<- You modified this design","")) -> 
H10: =IF(OR('Standard Inputs'!BA11,'Standard Inputs'!BA19,'Standard Inputs'!BA27,'Standard Inputs'!BA35,'Standard Inputs'!BA43,'Standard Inputs'!BA51,'Standard Inputs'!BA59,'Standard Inputs'!BA67,'Standard Inputs'!BA75),"<- Using this design",IF(OR('Standard Inputs'!BB11,'Standard Inputs'!BB19,'Standard Inputs'!BB27,'Standard Inputs'!BB35,'Standard Inputs'!BB43,'Standard Inputs'!BB51,'Standard Inputs'!BB59,'Standard Inputs'!BB67,'Standard Inputs'!BB75),"<- You modified this design","")) -> 
H11: =IF(OR('Standard Inputs'!BA12,'Standard Inputs'!BA20,'Standard Inputs'!BA28,'Standard Inputs'!BA36,'Standard Inputs'!BA44,'Standard Inputs'!BA52,'Standard Inputs'!BA60,'Standard Inputs'!BA68,'Standard Inputs'!BA76),"<- Using this design",IF(OR('Standard Inputs'!BB12,'Standard Inputs'!BB20,'Standard Inputs'!BB28,'Standard Inputs'!BB36,'Standard Inputs'!BB44,'Standard Inputs'!BB52,'Standard Inputs'!BB60,'Standard Inputs'!BB68,'Standard Inputs'!BB76),"<- You modified this design","")) -> 
H12: =IF(OR('Standard Inputs'!BA13,'Standard Inputs'!BA21,'Standard Inputs'!BA29,'Standard Inputs'!BA37,'Standard Inputs'!BA45,'Standard Inputs'!BA53,'Standard Inputs'!BA61,'Standard Inputs'!BA69,'Standard Inputs'!BA77),"<- Using this design",IF(OR('Standard Inputs'!BB13,'Standard Inputs'!BB21,'Standard Inputs'!BB29,'Standard Inputs'!BB37,'Standard Inputs'!BB45,'Standard Inputs'!BB53,'Standard Inputs'!BB61,'Standard Inputs'!BB69,'Standard Inputs'!BB77),"<- You modified this design","")) -> 
H13: =IF(OR('Standard Inputs'!BA14,'Standard Inputs'!BA22,'Standard Inputs'!BA30,'Standard Inputs'!BA38,'Standard Inputs'!BA46,'Standard Inputs'!BA54,'Standard Inputs'!BA62,'Standard Inputs'!BA70,'Standard Inputs'!BA78),"<- Using this design",IF(OR('Standard Inputs'!BB14,'Standard Inputs'!BB22,'Standard Inputs'!BB30,'Standard Inputs'!BB38,'Standard Inputs'!BB46,'Standard Inputs'!BB54,'Standard Inputs'!BB62,'Standard Inputs'!BB70,'Standard Inputs'!BB78),"<- You modified this design","")) -> 
H14: =IF(OR('Standard Inputs'!BA15,'Standard Inputs'!BA23,'Standard Inputs'!BA31,'Standard Inputs'!BA39,'Standard Inputs'!BA47,'Standard Inputs'!BA55,'Standard Inputs'!BA63,'Standard Inputs'!BA71,'Standard Inputs'!BA79),"<- Using this design",IF(OR('Standard Inputs'!BB15,'Standard Inputs'!BB23,'Standard Inputs'!BB31,'Standard Inputs'!BB39,'Standard Inputs'!BB47,'Standard Inputs'!BB55,'Standard Inputs'!BB63,'Standard Inputs'!BB71,'Standard Inputs'!BB79),"<- You modified this design","")) -> 
H15: =IF(OR('Standard Inputs'!BA16,'Standard Inputs'!BA24,'Standard Inputs'!BA32,'Standard Inputs'!BA40,'Standard Inputs'!BA48,'Standard Inputs'!BA56,'Standard Inputs'!BA64,'Standard Inputs'!BA72,'Standard Inputs'!BA80),"<- Using this design",IF(OR('Standard Inputs'!BB16,'Standard Inputs'!BB24,'Standard Inputs'!BB32,'Standard Inputs'!BB40,'Standard Inputs'!BB48,'Standard Inputs'!BB56,'Standard Inputs'!BB64,'Standard Inputs'!BB72,'Standard Inputs'!BB80),"<- You modified this design","")) -> 
H16: =IF(COUNTIF(H8:H15,"")=8,"Using a manual design","") ->  | I16: =IF(COUNTIF(H8:H15,"")=8,"Fill in all gold cells below, then consider using AutoSize button","") -> 
G18: =IF(input_complete,IF('Standard Inputs'!BA83,"Input Complete -- Results Ready","Input Complete--Press 'Generate Results'"),"Input Incomplete--Check for Error Messages Below") -> Input Complete -- Results Ready | I18: =IF(C19,"","Fill in all gold cells below. If errors persist, consider using AutoSize button.") -> 
C19: =AND(C35:C142) -> TRUE | E19: (Optional for standard designs)
E20: Enter or change values in the gold and blue cells below, under "Manual Inputs"
E22: STEP 4: | I22: Results summary (see OUTPUT sheet for details)
E23: =IF(G18="input complete -- results ready","Results are ready (no need to click button)","Click here to generate results -->") -> Results are ready (no need to click button) | I23: ="Direct Capital Cost: " & IF(input_status<>"input complete -- results ready",input_status,IF(Missing_Cost,"Missing cost!",IF(cost_buildup_error,"Cost buildup error!",IF(ISERROR(direct_cost),"Calculation error!",TEXT(direct_cost,"$0,0"))))) -> Direct Capital Cost: $361,297
I24: ="Total Capital Cost: " & IF(input_status<>"input complete -- results ready",input_status,IF(Missing_Cost,"Missing cost!",IF(cost_buildup_error,"Cost buildup error!",IF(ISERROR(system_cost),"Calculation error!",TEXT(system_cost,"$0,0"))))) -> Total Capital Cost: $662,727
I25: ="Annualized Capital Cost: "&IF(input_status<>"Input Complete -- Results Ready",input_status,IF(Missing_Cost,"Missing Price!",IF(cost_buildup_error,"Cost buildup error!",IF(ISERROR(Annualized_Capital_Cost),"Calculation error!",TEXT(Annualized_Capital_Cost,"$0,0")&" per year"&" (over "&useful_life&" years at "&Discount_rate*100&"%)")))) -> Annualized Capital Cost: $63,007 per year (over 19.7 years at 7%)
I26: ="Annual O&M Cost: "&IF(input_status<>"input complete -- results ready",input_status,IF(ISERROR(om_cost),"Calculation error!",TEXT(om_cost,"$0,0")&" per year")) -> Annual O&M Cost: $30,246 per year
E27: MANUAL INPUTS | I27: ="Total Annualized Cost: "&IF(input_status<>"input complete -- results ready",input_status,IF(Missing_Cost,"Missing Price!",IF(cost_buildup_error,"Cost buildup error!",IF(ISERROR(Annualized_Cost),"Calculation error!",TEXT(Annualized_Cost,"$0,0")&" per year")))) -> Total Annualized Cost: $93,253 per year
E28: Cells in gold are required; cells in blue are optional | I28: =IF(input_status="Input Incomplete -- check for error messages below","",IF(Missing_Cost,"A price is not available for at least one required component. See Use? column on OUTPUT sheet.",IF(cost_buildup_error,"There is an Excel error in the price for at least one component. Please see the Use? column on OUTPUT sheet.",""))) -> 
B29: Used? | C29: Valid input? | D29: Invalid reason? | H29: Select units
E30: Design Flow (including bypass) | F30: design_flow_I | G30: 0.03 | H30: MGD
E31: Average Flow (including bypass) | F31: average_flow_I | G31: 0.007 | H31: MGD
E33: Treatment system design flow | G33: =IF(ISERROR(design_flow),"",IF(df_units="gpm",design_flow_rate, design_flow)) -> 0.03 | H33: =df_units -> MGD
E34: Bypass design flow | G34: =IF(ISERROR(design_flow),"",IF(df_units="gpm",bp_flow_rate, bp_flow_rate*60*24/10^6)) -> 0 | H34: =df_units -> MGD | I34: ="Current bypass percentage is "&TEXT(bp_pct,"0%")&". Go to Critical Design Assumptions to change this value." -> Current bypass percentage is 0%. Go to Critical Design Assumptions to change this value.
C35: =IF(OR(df_units="",af_units=""),FALSE,IF(OR(average_flow>design_flow,average_flow<design_flow*min_avg_flow),FALSE,IF(OR(design_flow_I=0,average_flow_I=0),FALSE,TRUE))) -> TRUE | D35: =IF(OR(df_units="",af_units=""),"Choose units for design and average flow",IF(average_flow>design_flow,"The average flow should not be greater than the design flow",IF(average_flow<design_flow*min_avg_flow,"The average flow must be at least " & min_avg_flow & " times design flow",IF(OR(design_flow_I=0,average_flow_I=0),"Input incomplete","OK")))) -> OK | H35: =IF(C35,"System size inputs OK",D35) -> System size inputs OK | I35: Adjust bypass percentage
C37: =IF(e_donor_type_I="",FALSE,TRUE) -> TRUE | E37: Electron donor type | F37: e_donor_type_I | G37: acetic acid | H37: <-- pick one
C38: =IF(e_donor_dose_I="",FALSE,TRUE) -> TRUE | E38: Electron donor dose | F38: e_donor_dose_I | G38: 10 | H38: mg/L | I38: Guidance: Electron donor dose and biomass accumilation is dependent on raw water conditions, and should be determined based upon pilot study. Perchlorate treatment occurs after the removal of dissolved oxygen and nitrate. Doses typically increase as raw water temperature decreases, temperatures below 10 degrees Celsius are not considered suitable for biotreatment. Excess dose may result in formation of sulfides.
C39: =IF(biomass_I="",FALSE,TRUE) -> TRUE | E39: Biomass generation | F39: biomass_I | G39: 8 | H39: mg/L
B40: =OR(contam=1, contam=3) -> TRUE | E40: Influent perchlorate concentration | F40: ClO4_in | H40: mg/L
E41: Influent dissolved oxygen concentration | F41: O2_in | H41: mg/L
E42: Influent nitrate-nitrogen concentration | F42: NO3_in | H42: mg/L as nitrogen
E43: For information:
E44: =IF(dose_calc,"Theoretical calculated electron donor dose","Enter influent chemical concentrations to see sample electron donor dose calculation") -> Enter influent chemical concentrations to see sample electron donor dose calculation | G44: =IF(dose_calc,IF(e_donor_type=1,acetic_dose_sample,ethanol_dose_sample),"") ->  | H44: =IF(dose_calc, "mg/l","") ->  | I44: For comparison purposes only. Calculated based on site-specific equations developed in Harding 2001 and US DoD 2009.
E45: =IF(dose_calc,"Theoretical calculated biomass generation rate","Enter influent chemical concentrations to see sample biomass generation calculation") -> Enter influent chemical concentrations to see sample biomass generation calculation | G45: =IF(dose_calc,biomass_sample,"") ->  | H45: =IF(dose_calc, "mg/l","") -> 
C46: =IF(NOT(AND(C37:C39)),FALSE,TRUE) -> TRUE | D46: =IF(NOT(C46),"Electron Donor Inputs Incomplete","OK") -> OK | H46: =IF(C46,"Electron Donor inputs OK",D46) -> Electron Donor inputs OK
C48: =IF(nutrient_option_I="",FALSE,TRUE) -> TRUE | E48: Nutrient requirements | F48: nutrient_option_I | G48: additional phosphorous required | H48: <-- pick one | I48: Guidance: Perchlorate & nitrate reducing bacteria require nutrients to thrive. Source waters typically have sufficient nitrogen but insufficient phosphorus. Source water sampling and pilot studies should be used to determine if additional nutrients are necessary.
B49: =OR(nutrient_option=2,nutrient_option=4) -> FALSE | C49: =IF(B49,NOT(NH4Cl_dose_I=""),TRUE) -> TRUE | E49: Ammonium chloride dose | F49: NH4Cl_dose_I | H49: mg/L
B50: =OR(nutrient_option=3,nutrient_option=4) -> TRUE | C50: =IF(B50,NOT(H3PO4_dose_I=""),TRUE) -> TRUE | E50: Phosphoric acid dose | F50: H3PO4_dose_I | G50: 1 | H50: mg/L as phosphorus
C51: =IF(NOT(AND(C48:C50)),FALSE,TRUE) -> TRUE | D51: =IF(NOT(C51),"Nutrient Options Incomplete, Check dosing","OK") -> OK | H51: =IF(C51,"Nutrient inputs OK",D51) -> Nutrient inputs OK
C53: =IF(ebct_I="",FALSE,TRUE) -> TRUE | D53: =IF(ebct_I="","EBCT Inputs Incomplete","OK") -> OK | E53: =IF(design_type=3,"Hydraulic residence time (HRT)","Theoretical total empty bed contact time (EBCT)") -> Theoretical total empty bed contact time (EBCT) | F53: ebct_I | G53: 12 | H53: minutes | I53: =IF(contam=1,"Guidance: Typically in the range of 10-12 minutes for perchlorate treatment",IF(contam=2,"Guidance: Typically in the range of 7-10 minutes for nitrate treatment","")) -> Guidance: Typically in the range of 10-12 minutes for perchlorate treatment
H54: =IF(C53,IF(design_type=3,"HRT inputs OK","EBCT inputs OK"),D53) -> EBCT inputs OK
B56: =IF(OR(design_type=1,design_type=3),TRUE,FALSE) -> TRUE | E56: Bioreactor Pressure Vessels
E57: The next four inputs may be entered manually, or calculated with AutoSize button. All other gold inputs must be complete before AutoSizing.
E58: =IF(design_type=1,"Bed depth","Static bed depth") -> Bed depth | F58: bed_depth | G58: 3.5 | H58: feet | I58: Guidance: between 2 and 7 ft
B59: =IF(design_type=3, FALSE,TRUE) -> TRUE | E59: Vessel geometry | F59: tank_geom_I | G59: upright | H59: <-- pick one
E60: =IF(tank_geom=1,"Height (straight)",IF(tank_geom=2,"Length (straight)","")) -> Height (straight) | F60: comm_height_length | G60: 6.5 | H60: =IF(tank_geom<>"","feet","") -> feet
E61: Diameter | F61: comm_diam | G61: 2.5 | H61: =IF(tank_geom<>"","feet","") -> feet | I61: Guidance: between 2 and 12 ft
E62: For information:
E63: Number of operating vessels | G63: =IF(NOT(B56),"",IF(ISERROR(op_num_tanks),"",op_num_tanks)) -> 2 | H63: vessels
E64: Total vessels (incl. redundancy, below) | G64: =IF(NOT(B56),"",IF(ISERROR(final_num_tanks),"",final_num_tanks)) -> 2 | H64: vessels
E65: Loading rate | G65: =IF(NOT(B56),"",IF(ISERROR(comm_load_rate),"",comm_load_rate)) -> 2.122065908 | H65: gpm/ft2
C66: =IF(NOT(B56),TRUE,IF(OR(bed_depth="",tank_geom_I="",comm_height_length="",comm_diam=""),FALSE,IF(bed_depth>2*comm_diam,FALSE,IF(bed_depth<min_bed_depth,FALSE,TRUE)))) -> TRUE | D66: =IF(NOT(B56),"OK",IF(OR(bed_depth="",comm_height_length="",comm_diam="",tank_geom_I=""),"Input incomplete",IF(bed_depth>2*comm_diam,"Warning: bed depth should be less than twice the vessel diameter",IF(bed_depth<min_bed_depth,"Warning: bed depth too shallow","OK")))) -> OK | H66: =IF(NOT(B56),"",IF(C66,"Bed Depth OK",D66)) -> Bed Depth OK | I66: Adjust bed depth constraints
C67: =IF(NOT(B56),TRUE,IF(H66="Input incomplete",FALSE,IF(tank_geom=1,IF(IF(AND(comm_diam>=min_diam,comm_diam<=max_diam_std_size),(OR(comm_height_length>=max_comm_height,comm_height_length>max_height)),comm_height_length>max_height),FALSE,IF(IF(AND(comm_diam>=min_diam,comm_diam<=max_diam_std_size),(AND(comm_height_length>=min_comm_height,comm_height_length>=height)),comm_height_length>=height),TRUE,FALSE)),IF(tank_geom=2,IF(comm_height_length>max_length,FALSE,TRUE),FALSE)))) -> TRUE | D67: =IF(NOT(B56),"OK",IF(H66="Input incomplete","",IF(tank_geom=1,IF(IF(AND(comm_diam>=min_diam,comm_diam<=max_diam_std_size),(OR(comm_height_length>=max_comm_height,comm_height_length>max_height)),comm_height_length>max_height),"Warning: vessel too high",IF(IF(AND(comm_diam>=min_diam,comm_diam<=max_diam_std_size),(AND(comm_height_length>=min_comm_height,comm_height_length>=height)),comm_height_length>=height),"OK","Warning: vessel not high enough")),IF(tank_geom=2,IF(comm_height_length>max_length,"Warning: vessel too long","OK"),"Invalid tank geometry input")))) -> OK | H67: =IF(NOT(B56),"",IF(C67,"Height OK",D67)) -> Height OK | I67: Adjust vessel size constraints
C68: =IF(NOT(B56),TRUE,IF(H66="Input Incomplete",FALSE,IF(tank_geom=1,IF(comm_diam>max_diam,FALSE,IF(comm_diam<diameter,FALSE,TRUE)),IF(tank_geom=2,IF(comm_diam>max_diam,FALSE,IF(comm_diam>max_height,FALSE,IF(comm_SA<SA,FALSE,IF(comm_diam<height,FALSE,TRUE)))),FALSE)))) -> TRUE | D68: =IF(NOT(B56),"OK",IF(H66="Input incomplete","",IF(tank_geom=1,IF(comm_diam>max_diam,"Warning: vessel diameter too great",IF(comm_diam<diameter,"Warning: vessel diameter too small","OK")),IF(tank_geom=2,IF(comm_diam>max_diam,"Warning: vessel diameter too great",IF(comm_diam>max_height,"Warning: vessel diameter too great",IF(comm_SA<SA,"Warning: vessel surface area too small",IF(comm_diam<height,"Warning: vessel diameter too small","OK")))),"")))) -> OK | H68: =IF(NOT(B56),"",IF(C68,"Diameter OK",D68)) -> Diameter OK
C69: =IF(NOT(B56),TRUE,IF(H66="Input incomplete",FALSE,IF(input_vol_vess<media_volume_expanded,FALSE,TRUE))) -> TRUE | D69: =IF(NOT(B56),"OK",IF(H66="Input incomplete","",IF(input_vol_vess<media_volume_expanded,"Warning: vessel too small for this bed depth","OK"))) -> OK | H69: =IF(NOT(B56),"",IF(C69,"Volume OK",D69)) -> Volume OK
C70: =IF(NOT(B56),TRUE,IF(H66="Input incomplete",FALSE,IF(input_vol_vess<media_volume_expanded,CHOOSE(tank_geom,FALSE,FALSE),TRUE))) -> TRUE | D70: =IF(NOT(B56),"OK",IF(H66="Input incomplete","",IF(input_vol_vess<media_volume_expanded,CHOOSE(tank_geom,"Hint: reduce bed depth or increase diameter or height","Hint: reduce bed depth or increase diameter"),"OK"))) -> OK | H70: =IF(NOT(B56),"",IF(C70,"",D70)) -> 
C71: =IF(NOT(B56),TRUE,IF(H66="Input incomplete",FALSE,IF(ISERROR(final_num_tanks),FALSE,IF(tank_geom=1,IF(comm_load_rate>load_max,FALSE,IF(comm_load_rate<load_min,FALSE,TRUE)),IF(comm_load_rate>load_max,FALSE,IF(comm_load_rate<load_min,FALSE,TRUE)))))) -> TRUE | D71: =IF(NOT(B56),"OK",IF(H66="Input incomplete","",IF(ISERROR(final_num_tanks),"",IF(tank_geom=1,IF(comm_load_rate>load_max,"Warning: design exceeds maximum loading",IF(comm_load_rate<load_min,"Warning: design below minimum loading","OK")),IF(comm_load_rate>load_max,"Warning: design exceeds maximum loading",IF(comm_load_rate<load_min,"Warning: design below minimum loading","OK")))))) -> OK | H71: =IF(NOT(B56),"",IF(C71,"Contact Time OK",D71)) -> Contact Time OK | I71: Adjust loading constraints
H72: =IF(OR(NOT(B56),ISERROR(final_num_tanks)),"",IF(tank_geom=1,IF(comm_load_rate>load_max,"Hint: increase vessel diameter or decrease bed depth",IF(comm_load_rate<load_min,"Hint: reduce vessel diameter or increase bed depth","")),IF(comm_load_rate>load_max,"Hint: increase vessel length and diameter or decrease bed depth",IF(comm_load_rate<load_min,"Hint: reduce vessel length and diameter or increase bed depth","")))) -> 
B74: =IF(design_type=2,TRUE,FALSE) -> FALSE | E74: Bioreactor Fixed Bed Gravity Contact Basins
E75: The next three inputs may be entered manually, or calculated with AutoSize button. All other gold inputs must be complete before AutoSizing.
C76: =IF(NOT(B74),TRUE,NOT(basin_width="")) -> TRUE | E76: Basin width | F76: basin_width | H76: feet | I76: Guidance: contactors typically are square or with maximum length 1.5x width
C77: =IF(NOT(B74),TRUE,NOT(basin_length="")) -> TRUE | E77: Basin length | F77: basin_length | H77: feet
C78: =IF(NOT(B74),TRUE,NOT(basin_op_depth="")) -> TRUE | E78: Bed depth | F78: basin_op_depth | H78: feet | I78: Guidance: Typical gravity bed depths are 3-10 feet
E79: For information:
E80: Total biorewactors (incl. redundancy, below) | G80: =IF(OR(NOT(B74),ISERROR(total_num_basins)),"",total_num_basins) ->  | H80: contactors
E81: Loading rate | G81: =IF(OR(NOT(B74),ISERROR(surface_loading_rate_g)),"",surface_loading_rate_g) ->  | H81: gpm/ft2
C82: =IF(NOT(B74),TRUE,IF(NOT(AND(C76,C77,C78)),FALSE,IF(basin_op_depth>max_depth,FALSE,IF(basin_op_depth<min_depth,FALSE,TRUE)))) -> TRUE | D82: =IF(NOT(B74),"OK",IF(NOT(AND(C76,C77,C78)),"Input incomplete",IF(basin_op_depth>max_depth,"Warning: basin too deep",IF(basin_op_depth<min_depth,"Warning: basin too shallow","OK")))) -> OK | H82: =IF(NOT(B74),"",IF(C82,"Bed Depth OK",D82)) ->  | I82: Adjust bed depth constraints
C83: =IF(NOT(B74),TRUE,IF(basin_width>max_width,FALSE,IF(basin_width<min_width,FALSE,TRUE))) -> TRUE | D83: =IF(NOT(B74),"OK",IF(NOT(AND(C76,C77,C78)),"",IF(basin_width>max_width,"Warning: basin too wide",IF(basin_width<min_width,"Warning: basin too narrow","OK")))) -> OK | H83: =IF(NOT(B74),"",IF(C83,"Width OK",D83)) ->  | I83: Adjust width constraints
C84: =IF(NOT(B74),TRUE,IF(basin_length>max_length_g,FALSE,IF(basin_length<min_length_g,FALSE,TRUE))) -> TRUE | D84: =IF(NOT(B74),"OK",IF(ISERROR(total_num_basins),"",IF(H82="input incomplete","",IF(basin_length>max_length_g,"Warning: basin too long",IF(OR(basin_length<min_length_g,basin_length<(min_basin_vol/op_num_basins/basin_op_depth/basin_width)),"Warning: basin too short","OK"))))) -> OK | H84: =IF(NOT(B74),"",IF(C84,"Length OK",D84)) ->  | I84: Adjust length constraints
C85: =IF(NOT(B74),TRUE,IF(ISERROR(total_num_basins),"",IF(D82="input incomplete",FALSE,IF(surface_loading_rate_g>load_max,FALSE,IF(surface_loading_rate_g<load_min,FALSE,TRUE))))) -> TRUE | D85: =IF(NOT(B74),"OK",IF(ISERROR(total_num_basins),"",IF(D82="input incomplete","",IF(surface_loading_rate_g>load_max,"Warning: design exceeds maximum loading",IF(surface_loading_rate_g<load_min,"Warning: design below minimum loading","OK"))))) -> OK | H85: =IF(NOT(B74),"",IF(ISERROR(total_num_basins),"",IF(C85,"Loading OK",D85))) ->  | I85: Adjust loading constraints
C87: =IF(include_post_h2o2_I="",FALSE,TRUE) -> TRUE | E87: Post-treatment oxidation option | F87: include_post_h2o2_I | G87: aeration | H87: <-- pick one
C88: =IF(include_post_I="",FALSE,TRUE) -> TRUE | E88: Include polishing filter | F88: include_post_I | G88: yes | H88: <-- pick one
B89: =IF(include_post=1,TRUE,FALSE) -> TRUE | C89: =IF(B89,NOT(filter_type_I=""),TRUE) -> TRUE | E89: Polishing filter type | F89: filter_type_I | G89: gravity basin | H89: <-- pick one
C90: =IF(B89,NOT(include_coag_filt_I=""),TRUE) -> TRUE | E90: Incude coagulant addition before filtration | F90: include_coag_filt_I | G90: yes | H90: <-- pick one
C91: =AND(C87:C90) -> TRUE | D91: =IF(NOT(C91),"Post-treatment Inputs Incomplete","OK") -> OK | H91: =IF(C91,"Post-treatment inputs OK",D91) -> Post-treatment inputs OK
B93: =IF(filter_type=1,TRUE,FALSE) -> TRUE | E93: Polishing Filter Gravity Contact Basins
E94: The next three inputs may be entered manually, or calculated with AutoSize button. All other gold inputs must be complete before AutoSizing.
C95: =IF(NOT(B93),TRUE,NOT(filt_basin_width="")) -> TRUE | E95: Basin width | F95: filt_basin_width | G95: 3 | H95: feet | I95: Guidance: basins typically are square or with maximum length 1.5x width
C96: =IF(NOT(B93),TRUE,NOT(filt_basin_length="")) -> TRUE | E96: Basin length | F96: filt_basin_length | G96: 3 | H96: feet
C97: =IF(NOT(B93),TRUE,NOT(filt_basin_op_depth="")) -> TRUE | E97: Bed depth | F97: filt_basin_op_depth | G97: 3.1 | H97: feet | I97: Guidance: Typical gravity bed depths are 3-10 feet
E98: For information:
E99: Total basins (incl. redundancy, below) | G99: =IF(OR(NOT(B93),ISERROR(total_num_filt_basins)),"",total_num_filt_basins) -> 2 | H99: basins
C100: =IF(NOT(B93),TRUE,IF(NOT(AND(C95,C96,C97)),FALSE,IF(filt_basin_op_depth>max_depth,FALSE,IF(filt_basin_op_depth<min_depth,FALSE,TRUE)))) -> TRUE | D100: =IF(NOT(B93),"OK",IF(NOT(AND(C95,C96,C97)),"Input incomplete",IF(filt_basin_op_depth>max_depth,"Warning: basin too deep",IF(filt_basin_op_depth<min_depth,"Warning: basin too shallow","OK")))) -> OK | H100: =IF(NOT(B93),"",IF(C100,"Bed Depth OK",D100)) -> Bed Depth OK | I100: Adjust bed depth constraints
C101: =IF(NOT(B93),TRUE,IF(filt_basin_width>max_width,FALSE,IF(filt_basin_width<min_width,FALSE,TRUE))) -> TRUE | D101: =IF(NOT(B93),"OK",IF(NOT(AND(C95,C96,C97)),"",IF(filt_basin_width>max_width,"Warning: basin too wide",IF(filt_basin_width<min_width,"Warning: basin too narrow","OK")))) -> OK | H101: =IF(NOT(B93),"",IF(C101,"Width OK",D101)) -> Width OK | I101: Adjust width constraints
C102: =IF(NOT(B93),TRUE,IF(filt_basin_length>max_length_g,FALSE,IF(filt_basin_length<min_length_g,FALSE,TRUE))) -> TRUE | D102: =IF(NOT(B93),"OK",IF(ISERROR(total_num_filt_basins),"",IF(H100="input incomplete","",IF(filt_basin_length>max_length_g,"Warning: basin too long",IF(OR(filt_basin_length<min_length_g,filt_basin_length<(min_filt_vol/op_num_filters/filt_basin_op_depth/filt_basin_width)),"Warning: basin too short","OK"))))) -> OK | H102: =IF(NOT(B93),"",IF(C102,"Length OK",D102)) -> Length OK | I102: Adjust length constraints
B104: =IF(filter_type=2,TRUE,FALSE) -> FALSE | E104: Polishing Filter Pressure Vessels
E105: The next four inputs may be entered manually, or calculated with AutoSize button. All other gold inputs must be complete before AutoSizing.
E106: Bed depth | F106: filt_bed_depth | H106: feet | I106: Guidance: between 2 and 5 ft
E107: Vessel geometry | F107: filt_tank_geom_I | H107: <-- pick one
E108: =IF(tank_geom_filt=1,"Height (straight)",IF(tank_geom_filt=2,"Length (straight)","")) ->  | F108: filt_comm_height_length | H108: =IF(tank_geom<>"","feet","") -> feet
E109: Diameter | F109: filt_comm_diam | H109: =IF(tank_geom<>"","feet","") -> feet
E110: For information:
E111: Number of operating vessels | G111: =IF(NOT(B104),"",IF(ISERROR(op_num_tanks_filt),"",op_num_tanks_filt)) ->  | H111: vessels
E112: Total vessels (incl. redundancy, below) | G112: =IF(NOT(B104),"",IF(ISERROR(final_num_tanks_filt),"",final_num_tanks_filt)) ->  | H112: vessels
E113: Loading rate | G113: =IF(NOT(B104),"",IF(ISERROR(comm_load_rate_filt),"",comm_load_rate_filt)) ->  | H113: gpm/ft2
C114: =IF(NOT(B104),TRUE,IF(OR(filt_bed_depth="",filt_tank_geom_I="",filt_comm_height_length="",filt_comm_diam=""),FALSE,IF(filt_bed_depth>2*filt_comm_diam,FALSE,IF(filt_bed_depth<min_bed_depth,FALSE,TRUE)))) -> TRUE | D114: =IF(NOT(B104),"OK",IF(OR(filt_bed_depth="",filt_comm_height_length="",filt_comm_diam="",filt_tank_geom_I=""),"Input incomplete",IF(filt_bed_depth>2*filt_comm_diam,"Warning: bed depth should be less than twice the vessel diameter",IF(filt_bed_depth<min_bed_depth,"Warning: bed depth too shallow","OK")))) -> OK | H114: =IF(NOT(B104),"",IF(C114,"Bed Depth OK",D114)) ->  | I114: Adjust bed depth constraints
C115: =IF(NOT(B104),TRUE,IF(H114="Input incomplete",FALSE,IF(tank_geom_filt=1,IF(IF(AND(filt_comm_diam>=min_diam,filt_comm_diam<=max_diam_std_size),(OR(filt_comm_height_length>=max_comm_height_filt,filt_comm_height_length>max_height)),filt_comm_height_length>max_height),FALSE,IF(IF(AND(filt_comm_diam>=min_diam,filt_comm_diam<=max_diam_std_size),(AND(filt_comm_height_length>=min_comm_height_filt,filt_comm_height_length>=height_filt)),filt_comm_height_length>=height_filt),TRUE,FALSE)),IF(tank_geom_filt=2,IF(filt_comm_height_length>max_length,FALSE,TRUE),FALSE)))) -> TRUE | D115: =IF(NOT(B104),"OK",IF(H114="Input incomplete","",IF(tank_geom_filt=1,IF(IF(AND(filt_comm_diam>=min_diam,filt_comm_diam<=max_diam_std_size),(OR(filt_comm_height_length>=max_comm_height_filt,filt_comm_height_length>max_height)),filt_comm_height_length>max_height),"Warning: vessel too high",IF(IF(AND(filt_comm_diam>=min_diam,filt_comm_diam<=max_diam_std_size),(AND(filt_comm_height_length>=min_comm_height_filt,filt_comm_height_length>=height_filt)),filt_comm_height_length>=height_filt),"OK","Warning: vessel not high enough")),IF(tank_geom_filt=2,IF(filt_comm_height_length>max_length,"Warning: vessel too long","OK"),"Invalid tank geometry input")))) -> OK | H115: =IF(NOT(B104),"",IF(C115,"Height OK",D115)) ->  | I115: Adjust vessel size constraints
C116: =IF(NOT(B104),TRUE,IF(H114="Input Incomplete",FALSE,IF(tank_geom_filt=1,IF(filt_comm_diam>max_diam,FALSE,IF(filt_comm_diam<diameter_filt,FALSE,TRUE)),IF(tank_geom_filt=2,IF(filt_comm_diam>max_diam,FALSE,IF(filt_comm_diam>max_height,FALSE,IF(comm_SA_filt<SA_filt,FALSE,IF(filt_comm_diam<height_filt,FALSE,TRUE)))),FALSE)))) -> TRUE | D116: =IF(NOT(B104),"OK",IF(H114="Input incomplete","",IF(tank_geom_filt=1,IF(filt_comm_diam>max_diam,"Warning: vessel diameter too great",IF(filt_comm_diam<diameter_filt,"Warning: vessel diameter too small","OK")),IF(tank_geom_filt=2,IF(filt_comm_diam>max_diam,"Warning: vessel diameter too great",IF(filt_comm_diam>max_height,"Warning: vessel diameter too great",IF(comm_SA_filt<SA_filt,"Warning: vessel surface area too small",IF(filt_comm_diam<height_filt,"Warning: vessel diameter too small","OK")))),"")))) -> OK | H116: =IF(NOT(B104),"",IF(C116,"Diameter OK",D116)) -> 
B118: =IF(design_type=3,FALSE,TRUE) -> TRUE | C118: =IF(B118,NOT(back_interval_I=""),TRUE) -> TRUE | E118: Interval between bioreactor backwashes | F118: back_interval_I | G118: 24 | H118: hours | I118: For biomass buildup, backwash bioreactor about every 24-36 hours
B119: =IF(include_post=1,TRUE,FALSE) -> TRUE | C119: =IF(B119,NOT(filter_back_interval_I=""),TRUE) -> TRUE | E119: Interval between filter backwashes | F119: filter_back_interval_I | G119: 36 | H119: hours | I119: Typically 36-48 hours
B120: =IF(AND(design_type=3,include_post=0),FALSE,TRUE) -> TRUE | C120: =NOT(res_s2_opt_I="") -> TRUE | E120: Include air scour | F120: air_scour_I | G120: yes | H120: <-- pick one
B121: =IF(AND(design_type=3,include_post=0),FALSE,TRUE) -> TRUE | C121: =NOT(res_s2_opt_I="") -> TRUE | E121: Discharge option for spent backwash | F121: res_s2_opt_I | G121: recycle | H121: <-- pick one
B122: =OR(res_s2_opt=1,res_s2_opt=2) -> FALSE | C122: =IF(B122,NOT(res_s1_opt_I=""),TRUE) -> TRUE | E122: Holding tank for spent backwash | F122: res_s1_opt_I | G122: holding tank | H122: =IF(res_s2_opt=3,"always included",IF(res_s2_opt=4,"not required","<-- pick one")) -> always included | I122: =IF(res_s1_opt_I="Holding tank","Model selects between holding tank or basin based upon priority lookups on the Output sheet","") -> Model selects between holding tank or basin based upon priority lookups on the Output sheet
B123: =IF(OR(res_s2_opt=3),TRUE,IF(res_s1_opt=1,TRUE,FALSE)) -> TRUE | C123: =IF(B123,NOT(sed_sludge_method_I=""),TRUE) -> TRUE | E123: Solids treatment/storage | F123: sed_sludge_method_I | G123: none | H123: =IF(res_s1_opt=2,"not required","<-- pick one") -> <-- pick one | J123: =IF(sed_sludge_method_I="","Please pick a valid input.","") -> 
B124: =IF(OR(res_s2_opt=3,res_s2_opt=4),TRUE,IF(res_s1_opt=1,TRUE,FALSE)) -> TRUE | C124: =IF(B124,NOT(solids_haz_I=""),TRUE) -> TRUE | E124: =IF(res_s2_opt=4,"Characteristics of evaporation pond solids","Characteristics of holding tank solids") -> Characteristics of holding tank solids | F124: solids_haz_I | G124: non-hazardous | H124: =IF(NOT(B124),"not required","<-- pick one") -> <-- pick one
C125: =IF(NOT(AND(C118:C124)),FALSE,TRUE) -> TRUE | D125: =IF(NOT(C125),"Residual Inputs Incomplete","OK") -> OK | H125: =IF(AND(design_type=3,include_post=0),"",IF(C125,"Residual inputs OK",D125)) -> Residual inputs OK | I125: Additional residuals assumtions loacted on the cirtical deisgn assumptions page
E127: Number of booster pumps | F127: lines_pump_I | H127: pumps | I127: Enter 0 to exclude booster pumps (i.e., use existing pumps). Leave blank to accept model defaults (no pumps for systems <1 MGD, otherwise sized per average and design flows)
E128: For information: # of booster pumps | G128: =IF(ISERROR(booster_pumps),"",booster_pumps) -> 0 | H128: pumps
E129: Number of redundant units to be added | F129: NRD_I | H129: units | I129: Leave blank to accept model defaults (0 for systems <1 MGD, calculated otherwise)
E130: For information: Redundant bioreactors | G130: =IF(design_type=1,IF(ISERROR(NRD),"",NRD),IF(ISERROR(NRD_g),"",NRD_g)) -> 0 | H130: units
E131: Backwash pumping | F131: no_backwash_I | H131: <-- pick or leave blank | I131: Leave blank to accept model defaults (systems <1 MGD backwash using existing supply or treated water pumps, other systems add new backwash pumps)
E132: Backwash storage | F132: no_back_tank_I | H132: <-- pick or leave blank | I132: Leave blank to accept model defaults (only systems between 1 and 10 MGD require separate backwash tanks)
E133: For information: # of backwash pumps | G133: =IF(ISERROR(backwash_pumps),"",backwash_pumps) -> 0 | H133: units
E134: # of backwash tanks | G134: =IF(ISERROR(back_tanks),"",back_tanks) -> 0 | H134: units
E135: Component level | F135: component_level_I | H135: <-- pick or leave blank | I135: Leave blank to use low cost components
E136: System automation | F136: manual_I | G136: fully automated | H136: <-- pick or leave blank | I136: Leave blank to allow model to pick based on component level
E137: Include buildings? | F137: include_buildings_I | H137: <-- pick or leave blank | I137: Leave blank to include buildings
E138: Include HVAC? | F138: include_HVAC_I | H138: <-- pick or leave blank | I138: Leave blank to allow model to pick based on component level and building type
E139: Include land? | F139: include_land_I | H139: <-- pick or leave blank | I139: Leave blank to include land
E140: For information: Component level | G140: =IF(component_level=2,"high cost",IF(component_level=1,"mid cost","low cost")) -> low cost
E141: Automation | G141: =IF(manual=1,"manual",IF(manual=2,"semi-automated",IF(manual=3,"fully automated"))) -> fully automated
C142: =IF(ISERROR(pump_rating),FALSE,IF(pump_rating>max_pump_size,FALSE,TRUE)) -> TRUE | D142: =IF(ISERROR(pump_rating),"Input incomplete",IF(pump_rating>max_pump_size,"Warning: insufficent number of pumps.","OK")) -> OK | H142: =IF(C142,"Optional Inputs OK",D142) -> Optional Inputs OK
H143: =IF(OR(H142="input incomplete",H142="Optional Inputs OK"),"",IF(pump_rating>max_pump_size,"Hint: increase number of pumps or leave that input blank","")) -> 

Sheet OUTPUT
A1: OUTPUT SUMMARY
B2: Parameter | C2: Value | D2: Units
B3: Technology | C3: BIO
B4: System Size Category | C4: =IF(ss_cat2=1,"small","large") -> small
B5: Target Contaminant | C5: =IF(contam=1,"perchlorate",IF(contam=2,"nitrate","other")) -> perchlorate
B6: Design Type | C6: =IF(design_type=1,"pressure","gravity") -> pressure
B7: Design Flow | C7: =design_flow -> 0.03 | D7: MGD (excludes bypass flow)
B8: Average Flow | C8: =average_flow -> 0.007 | D8: MGD (excludes bypass flow)
B9: Bed type | C9: =IF(design_type=3,"fluidized","fixed") -> fixed
B10: # of bioreactors | C10: =IF(design_type=2,total_num_basins,final_num_tanks) -> 2 | D10: (including redundancy)
B11: Loading rate | C11: =IF(design_type=2,surface_loading_rate_g,comm_load_rate) -> 2.122065908 | D11: gpm/ft2
B12: =IF(design_type=3,"HRT","EBCT") -> EBCT | C12: =EBCT -> 12 | D12: minutes
B13: Bed depth | C13: =IF(design_type=2,basin_op_depth,bed_depth) -> 3.5 | D13: feet
B14: Vessel geometry | C14: =IF(design_type=1,tank_geom_I,"basins") -> upright
B15: =IF(design_type=2,"Basin width",IF(tank_geom=1,"Height (straight)",IF(tank_geom=2,"Length (straight)",""))) -> Height (straight) | C15: =IF(design_type=2,basin_width,comm_height_length) -> 6.5 | D15: feet
B16: =IF(design_type=2,"Basin length","Diameter") -> Diameter | C16: =IF(design_type=2,basin_length,comm_diam) -> 2.5 | D16: feet
B17: ="Resulting Costs (in year "&TEXT(current_year_cl,0)&" dollars)" -> Resulting Costs (in year 2017 dollars)
B18: Direct Capital Cost | C18: =IF(input_status<>"input complete -- results ready","Action required",IF(Missing_Cost,"Missing cost!",IF(cost_buildup_error,"Error in buildup!",direct_cost))) -> 361297.1451 | D18: Details | E18: =IF(input_status<>"input complete -- results ready",IF(input_complete,"Press Generate Results","Check INPUT sheet for errors"),IF(Missing_Cost,"A price is not available for at least one required component. See Use? column below.",IF(cost_buildup_error,"There is an Excel error in the price for at least one component. See Use? column below.",""))) -> 
B19: Add-on Cost | C19: =IF(input_status<>"input complete -- results ready","Action required",addon_cost) -> 134301.8063 | D19: Details
B20: Indirect Capital Cost | C20: =IF(input_status<>"input complete -- results ready","Action required",indirect_cost) -> 167127.9988 | D20: Details
B21: Total Capital Cost | C21: =IF(input_status<>"input complete -- results ready","Action required",IF(Missing_Cost,"Missing cost!",IF(cost_buildup_error,"Error in buildup!",system_cost))) -> 662726.9502 | D21: Details
B22: ="Annualized Capital Cost "&IF(OR(input_status<>"input complete -- results ready",Missing_Cost,cost_buildup_error),"","(per year over "&useful_life&" years at "&Discount_rate*100&"%)") -> Annualized Capital Cost (per year over 19.7 years at 7%) | C22: =IF(input_status<>"input complete -- results ready","Action required",Annualized_Capital_Cost) -> 63006.94448 | D22: Details
B23: Annual O&M Cost (per year) | C23: =IF(input_status<>"input complete -- results ready","Action required",om_cost) -> 30245.66009 | D23: Details
B24: ="Total Annualized Cost (per year)" -> Total Annualized Cost (per year) | C24: =IF(input_status<>"input complete -- results ready","Action required",IF(Missing_Cost,"Missing cost!",IF(cost_buildup_error,"Error in buildup!",Annualized_Cost))) -> 93252.60457 | D24: Details
B25: Per 1,000 gallons average flow | C25: =IF(input_status<>"input complete -- results ready","Action required",IF(Missing_Cost,"Missing cost!",IF(cost_buildup_error,"Error in buildup!",C594))) -> 36.49808398
B26: Per household per year | C26: =IF(input_status<>"input complete -- results ready","Action required",IF(Missing_Cost,"Missing cost!",IF(cost_buildup_error,"Error in buildup!",C595))) -> 3779.620783
A28: Direct Capital Cost Details (items in italics, without a 1 in the "Use?" column, represent alternate costs and are excluded from total)
A29: WBS # | B29: Item | C29: Design Quanitity | E29: Design Size | G29: Size used in estimate | I29: Unit Cost | J29: Total Cost | K29: Useful Life | L29: Use? | M29: Full Line Item Name | N29: Priority selection | W29: Useful Life
N30: Small (<1 mgd) | Q30: Medium (1-10 mgd) | T30: Large (>10 mgd)
N31: Low | O31: Mid | P31: High | Q31: Low | R31: Mid | S31: High | T31: Low | U31: Mid | V31: High | W31: Count? | X31: Depreciation
A32: 1 | B32: Bioreactors
A33: 1.1 | B33: Pressure Vessels
A34: 1.1.1 | B34: Stainless Steel | C34: =final_num_tanks -> 2 | D34: units | E34: =comm_vol_gal -> 238.6628669 | F34: gal | G34: =IF(curve=1,comm_vol_gal,VLOOKUP(comm_vol_gal,ss_pv_cost_cl,2)) -> 238.6628669 | H34: gal | I34: =IF(C34=0,"NA",IF(curve=1,ss_pv_eq,VLOOKUP(comm_vol_gal,ss_pv_cost_cl,3))) -> 18735.19617 | J34: =IF(C34=0,"--",IF(I34="contact vendor","--",C34*I34)) -> 37470.39235 | K34: =IF(C34=0,"NA",VLOOKUP(comm_vol_gal,ss_pv_cost_cl,IF(ss_cat="large",4,5))) -> 30 | L34: 0 | M34: =$B$32&" - "&$B$33&" - "&B34 -> Bioreactors - Pressure Vessels - Stainless Steel | N34: 4 | O34: 4 | P34: 1 | Q34: 4 | R34: 4 | S34: 1 | T34: 4 | U34: 4 | V34: 1 | W34: =IF(ISERROR(K34*L34),0,IF(K34<1,0,L34)) -> 0 | X34: =IF(W34,J34/K34,0) -> 0
A35: 1.1.1 | B35: Carbon Steel - Stainless Internals | C35: =final_num_tanks -> 2 | D35: units | E35: =comm_vol_gal -> 238.6628669 | F35: gal | G35: =IF(curve=1,comm_vol_gal,VLOOKUP(comm_vol_gal,cs_pv_cost_cl,2)) -> 238.6628669 | H35: gal | I35: =IF(C35=0,"NA",IF(curve=1,cs_pv_eq,VLOOKUP(comm_vol_gal,cs_pv_cost_cl,3))) -> 16748.97301 | J35: =IF(C35=0,"--",IF(I35="contact vendor","--",C35*I35)) -> 33497.94601 | K35: =IF(C35=0,"NA",VLOOKUP(comm_vol_gal,cs_pv_cost_cl,IF(ss_cat="large",4,5))) -> 30 | L35: 0 | M35: =$B$32&" - "&$B$33&" - "&B35 -> Bioreactors - Pressure Vessels - Carbon Steel - Stainless Internals | N35: 3 | O35: 3 | P35: 2 | Q35: 3 | R35: 3 | S35: 2 | T35: 3 | U35: 3 | V35: 2 | W35: =IF(ISERROR(K35*L35),0,IF(K35<1,0,L35)) -> 0 | X35: =IF(W35,J35/K35,0) -> 0
A36: 1.1.1 | B36: Carbon Steel - Plastic Internals | C36: =final_num_tanks -> 2 | D36: units | E36: =comm_vol_gal -> 238.6628669 | F36: gal | G36: =IF(curve=1,comm_vol_gal,VLOOKUP(comm_vol_gal,csp_pv_cost_cl,2)) -> 238.6628669 | H36: gal | I36: =IF(C36=0,"NA",IF(curve=1,csp_pv_eq,VLOOKUP(comm_vol_gal,csp_pv_cost_cl,3))) -> 11132.59529 | J36: =IF(C36=0,"--",IF(I36="contact vendor","--",C36*I36)) -> 22265.19058 | K36: =IF(C36=0,"NA",VLOOKUP(comm_vol_gal,csp_pv_cost_cl,IF(ss_cat="large",4,5))) -> 30 | L36: 0 | M36: =$B$32&" - "&$B$33&" - "&B36 -> Bioreactors - Pressure Vessels - Carbon Steel - Plastic Internals | N36: 2 | O36: 1 | P36: 3 | Q36: 2 | R36: 1 | S36: 3 | T36: 2 | U36: 1 | V36: 3 | W36: 0 | X36: 0
A37: 1.1.1 | B37: Fiberglass | C37: =final_num_tanks -> 2 | D37: units | E37: =comm_vol_gal -> 238.6628669 | F37: gal | G37: =IF(curve=1,comm_vol_gal,VLOOKUP(comm_vol_gal,fg_pv_cost_cl,2)) -> 238.6628669 | H37: gal | I37: =IF(C37=0,"NA",IF(curve=1,fg_pv_eq,VLOOKUP(comm_vol_gal,fg_pv_cost_cl,3))) -> 5270.192637 | J37: =IF(C37=0,"--",IF(I37="contact vendor","--",C37*I37)) -> 10540.38527 | K37: =IF(C37=0,"NA",VLOOKUP(comm_vol_gal,fg_pv_cost_cl,IF(ss_cat="large",4,5))) -> 20 | L37: 1 | M37: =$B$32&" - "&$B$33&" - "&B37 -> Bioreactors - Pressure Vessels - Fiberglass | N37: 1 | O37: 2 | P37: 4 | Q37: 1 | R37: 2 | S37: 4 | T37: 1 | U37: 2 | V37: 4 | W37: 1 | X37: 527.0192637
A38: 1.2 | B38: Gravity Basins | W38: 0 | X38: 0
A39: 1.2.1 | B39: Concrete | C39: =total_num_basins -> 0 | D39: units | E39: =basin_vol -> - | F39: gal | G39: =basin_vol -> - | H39: gal | I39: =IF(C39=0,"NA",basin_conc_vol/total_num_basins*VLOOKUP(0,conc_basin_cost_cl,3)) -> NA | J39: =IF(C39=0,"--",IF(I39="contact vendor","--",C39*I39)) -> -- | K39: =IF(C39=0,"NA",VLOOKUP(0,conc_basin_cost_cl,IF(ss_cat="large",4,5))) -> NA | M39: =$B$32&" - "&$B$38&" - "&B39 -> Bioreactors - Gravity Basins - Concrete | N39: 1 | O39: 1 | P39: 1 | Q39: 1 | R39: 1 | S39: 1 | T39: 1 | U39: 1 | V39: 1 | W39: 0 | X39: 0
A40: 1.2.2 | B40: Internals (Underdrain/Backwash System) | C40: =total_num_basins -> 0 | D40: units | E40: =basin_area -> - | F40: sf | G40: =basin_area -> - | H40: sf | I40: =IF(C40=0,"NA",IF(cont_int_eq="contact vendor","contact vendor",J40/total_num_basins)) -> NA | J40: =IF(C40=0,"--",IF(cont_int_eq="contact vendor","--",cont_int_eq)) -> -- | K40: =IF(C40=0,"NA",VLOOKUP(0,cont_top_cost_cl,IF(ss_cat="large",4,5))) -> NA | M40: Bioreactors - Gravity Basins - Internals (Underdrain/Backwash System) | N40: 1 | O40: 1 | P40: 1 | Q40: 1 | R40: 1 | S40: 1 | T40: 1 | U40: 1 | V40: 1 | W40: 0 | X40: 0
A41: 1.2.3 | B41: Aluminum Railing | C41: =IF(OR(design_type=1,design_type=3),0,railing) -> 0 | D41: lf | E41: NA | G41: NA | I41: =IF(C41=0,"NA",VLOOKUP(B41,metal_cost_cl,3)) -> NA | J41: =IF(C41=0,"--",IF(I41="contact vendor","--",C41*I41)) -> -- | K41: =IF(C41=0,"NA",VLOOKUP(B41,metal_cost_cl,IF(ss_cat="large",4,5))) -> NA | M41: Bioreactors - Gravity Basins - Aluminum Railing | N41: 1 | O41: 1 | P41: 1 | Q41: 1 | R41: 1 | S41: 1 | T41: 1 | U41: 1 | V41: 1 | W41: 0 | X41: 0
A42: 1.2.4 | B42: Aluminum Stairs | C42: =IF(OR(design_type=1,design_type=3),0,risers) -> 0 | D42: risers | E42: NA | G42: NA | I42: =IF(C42=0,"NA",VLOOKUP(B42,metal_cost_cl,3)) -> NA | J42: -- | K42: =IF(C42=0,"NA",VLOOKUP(B42,metal_cost_cl,IF(ss_cat="large",4,5))) -> NA | M42: Bioreactors - Gravity Basins - Aluminum Stairs | N42: 1 | O42: 1 | P42: 1 | Q42: 1 | R42: 1 | S42: 1 | T42: 1 | U42: 1 | V42: 1 | W42: 0 | X42: 0
A43: 1.2.5 | B43: Excavation | C43: =IF(OR(design_type=1,design_type=3),0,excavation_vol) -> 0 | D43: cy | E43: NA | G43: NA | I43: =IF(C43=0,"NA",VLOOKUP(0,excavate_cost_cl,3)) -> NA | J43: -- | K43: =IF(C43=0,"NA",VLOOKUP(0,conc_basin_cost_cl,IF(ss_cat="large",4,5))) -> NA | M43: Bioreactors - Gravity Basins - Excavation | N43: 1 | O43: 1 | P43: 1 | Q43: 1 | R43: 1 | S43: 1 | T43: 1 | U43: 1 | V43: 1 | W43: 0 | X43: 0
A44: 1.2.6 | B44: Backfill and Compaction | C44: =IF(OR(design_type=1,design_type=3),0,backfill_vol) -> 0 | D44: cy | E44: NA | G44: NA | I44: =IF(C44=0,"NA",VLOOKUP(0,backfill_cost_cl,3)) -> NA | J44: -- | K44: =IF(C44=0,"NA",VLOOKUP(0,conc_basin_cost_cl,IF(ss_cat="large",4,5))) -> NA | M44: Bioreactors - Gravity Basins - Backfill and Compaction | N44: 1 | O44: 1 | P44: 1 | Q44: 1 | R44: 1 | S44: 1 | T44: 1 | U44: 1 | V44: 1 | W44: 0 | X44: 0
A45: 1.3 | B45: Media | W45: 0 | X45: 0
A46: 1.3.1 | B46: GAC | C46: =total_resin -> 1030.835089 | D46: lbs | E46: NA | G46: NA | I46: =IF(curve=1,gac_eq,VLOOKUP(C46,gac_cost_cl,3)) -> 1.921890767 | J46: =IF(I46="contact vendor","--",C46*I46) -> 1981.152441 | K46: =VLOOKUP(B46,media_cost_cl,IF(ss_cat="large",4,5)) -> N/A | L46: 1 | M46: =$B$32&" - "&$B$45&" - "&B46 -> Bioreactors - Media - GAC | N46: 1 | O46: 1 | P46: 1 | Q46: 1 | R46: 1 | S46: 1 | T46: 1 | U46: 1 | V46: 1 | W46: 0 | X46: 0
A47: 2 | B47: Post-Treatment Filters | W47: 0 | X47: 0
A48: 2.1 | B48: Filter Basins | W48: 0 | X48: 0
A49: 2.1.1 | B49: Concrete | C49: =total_num_filt_basins -> 2 | D49: units | E49: =filt_volume -> 447.678 | F49: gal | G49: =filt_volume -> 447.678 | H49: gal | I49: =IF(C49=0,"NA",filt_basin_conc_vol/total_num_filt_basins*VLOOKUP(0,conc_basin_cost_cl,3)) -> 2500.260779 | J49: =IF(C49=0,"--",IF(I49="contact vendor","--",C49*I49)) -> 5000.521558 | K49: =IF(C49=0,"NA",VLOOKUP(0,conc_basin_cost_cl,IF(ss_cat="large",4,5))) -> 37 | L49: 1 | M49: =$B$47&" - "&$B$48&" - "&B49 -> Post-Treatment Filters - Filter Basins - Concrete | N49: 1 | O49: 1 | P49: 1 | Q49: 1 | R49: 1 | S49: 1 | T49: 1 | U49: 1 | V49: 1 | W49: 1 | X49: 135.1492313
A50: 2.1.2 | B50: Internals (Underdrain/Backwash System) | C50: =total_num_filt_basins -> 2 | D50: units | E50: =filt_basin_area -> 9 | F50: sf | G50: =filt_basin_area -> 9 | H50: sf | I50: =IF(C50=0,"NA",IF(filt_int_eq="contact vendor","contact vendor",J50/total_num_filt_basins)) -> 50483.4102 | J50: =IF(C50=0,"--",IF(filt_int_eq="contact vendor","--",filt_int_eq)) -> 100966.8204 | K50: =IF(C50=0,"NA",VLOOKUP(0,cont_top_cost_cl,IF(ss_cat="large",4,5))) -> 37 | L50: 1 | M50: Post-Treatment Filters - Filter Basins - Internals (Underdrain/Backwash System) | N50: 1 | O50: 1 | P50: 1 | Q50: 1 | R50: 1 | S50: 1 | T50: 1 | U50: 1 | V50: 1 | W50: 1 | X50: 2728.832984
A51: 2.1.3 | B51: Aluminum Railing | C51: =IF(filter_type=1,filt_railing,0) -> 24 | D51: lf | E51: NA | G51: NA | I51: =IF(C51=0,"NA",VLOOKUP(B51,metal_cost_cl,3)) -> 37.39449565 | J51: =IF(C51=0,"--",IF(I51="contact vendor","--",C51*I51)) -> 897.4678957 | K51: =IF(C51=0,"NA",VLOOKUP(B51,metal_cost_cl,IF(ss_cat="large",4,5))) -> 35 | L51: 1 | M51: Post-Treatment Filters - Filter Basins - Aluminum Railing | N51: 1 | O51: 1 | P51: 1 | Q51: 1 | R51: 1 | S51: 1 | T51: 1 | U51: 1 | V51: 1 | W51: 1 | X51: 25.64193988
A52: 2.1.4 | B52: Aluminum Stairs | C52: =IF(filter_type=1,risers,0) -> 15 | D52: risers | E52: NA | G52: NA | I52: =IF(C52=0,"NA",VLOOKUP(B52,metal_cost_cl,3)) -> 562.3232429 | J52: 8434.848644 | K52: =IF(C52=0,"NA",VLOOKUP(B52,metal_cost_cl,IF(ss_cat="large",4,5))) -> 35 | L52: 1 | M52: Post-Treatment Filters - Filter Basins - Aluminum Stairs | N52: 1 | O52: 1 | P52: 1 | Q52: 1 | R52: 1 | S52: 1 | T52: 1 | U52: 1 | V52: 1 | W52: 1 | X52: 240.9956755
A53: 2.1.5 | B53: Excavation | C53: =IF(filter_type=1,filt_excavation_vol,0) -> 118.3445833 | D53: cy | E53: NA | G53: NA | I53: =IF(C53=0,"NA",VLOOKUP(0,excavate_cost_cl,3)) -> 31.07454576 | J53: 3677.50417 | K53: =IF(C53=0,"NA",VLOOKUP(0,conc_basin_cost_cl,IF(ss_cat="large",4,5))) -> 37 | L53: 1 | M53: Post-Treatment Filters - Filter Basins - Excavation | N53: 1 | O53: 1 | P53: 1 | Q53: 1 | R53: 1 | S53: 1 | T53: 1 | U53: 1 | V53: 1 | W53: 1 | X53: 99.39200459
A54: 2.1.6 | B54: Backfill and Compaction | C54: =IF(filter_type=1,filt_backfill_vol,0) -> 105.5945833 | D54: cy | E54: NA | G54: NA | I54: =IF(C54=0,"NA",VLOOKUP(0,backfill_cost_cl,3)) -> 14.40625995 | J54: 1521.223016 | K54: =IF(C54=0,"NA",VLOOKUP(0,conc_basin_cost_cl,IF(ss_cat="large",4,5))) -> 37 | L54: 1 | M54: Post-Treatment Filters - Filter Basins - Backfill and Compaction | N54: 1 | O54: 1 | P54: 1 | Q54: 1 | R54: 1 | S54: 1 | T54: 1 | U54: 1 | V54: 1 | W54: 1 | X54: 41.11413558
A55: 2.2 | B55: Pressure Vessels | W55: 0 | X55: 0
A56: 2.2.1 | B56: Stainless Steel | C56: =final_num_tanks_filt -> 0 | D56: units | E56: =comm_vol_gal_filt -> - | F56: gal | G56: =IF(curve=1,comm_vol_gal_filt,VLOOKUP(comm_vol_gal_filt,ss_pv_cost_cl,2)) -> - | H56: gal | I56: =IF(C56=0,"NA",IF(curve=1,ss_pv_eq_filt,VLOOKUP(comm_vol_gal_filt,ss_pv_cost_cl,3))) -> NA | J56: =IF(C56=0,"--",IF(I56="contact vendor","--",C56*I56)) -> -- | K56: =IF(C56=0,"NA",VLOOKUP(comm_vol_gal_filt,ss_pv_cost_cl,IF(ss_cat="large",4,5))) -> NA | M56: =$B$47&" - "&$B$55&" - "&B56 -> Post-Treatment Filters - Pressure Vessels - Stainless Steel | N56: 4 | O56: 4 | P56: 1 | Q56: 4 | R56: 4 | S56: 1 | T56: 4 | U56: 4 | V56: 1 | W56: 0 | X56: 0
A57: 2.2.1 | B57: Carbon Steel - Stainless Internals | C57: =final_num_tanks_filt -> 0 | D57: units | E57: =comm_vol_gal_filt -> - | F57: gal | G57: =IF(curve=1,comm_vol_gal_filt,VLOOKUP(comm_vol_gal_filt,ss_pv_cost_cl,2)) -> - | H57: gal | I57: =IF(C57=0,"NA",IF(curve=1,cs_pv_eq_filt,VLOOKUP(comm_vol_gal_filt,cs_pv_cost_cl,3))) -> NA | J57: =IF(C57=0,"--",IF(I57="contact vendor","--",C57*I57)) -> -- | K57: =IF(C57=0,"NA",VLOOKUP(comm_vol_gal_filt,cs_pv_cost_cl,IF(ss_cat="large",4,5))) -> NA | M57: =$B$47&" - "&$B$55&" - "&B57 -> Post-Treatment Filters - Pressure Vessels - Carbon Steel - Stainless Internals | N57: 3 | O57: 3 | P57: 2 | Q57: 3 | R57: 3 | S57: 2 | T57: 3 | U57: 3 | V57: 2 | W57: 0 | X57: 0
A58: 2.2.1 | B58: Carbon Steel - Plastic Internals | C58: =final_num_tanks_filt -> 0 | D58: units | E58: =comm_vol_gal_filt -> - | F58: gal | G58: =IF(curve=1,comm_vol_gal_filt,VLOOKUP(comm_vol_gal_filt,ss_pv_cost_cl,2)) -> - | H58: gal | I58: =IF(C58=0,"NA",IF(curve=1,csp_pv_eq_filt,VLOOKUP(comm_vol_gal_filt,csp_pv_cost_cl,3))) -> NA | J58: =IF(C58=0,"--",IF(I58="contact vendor","--",C58*I58)) -> -- | K58: =IF(C58=0,"NA",VLOOKUP(comm_vol_gal_filt,csp_pv_cost_cl,IF(ss_cat="large",4,5))) -> NA | M58: =$B$47&" - "&$B$55&" - "&B58 -> Post-Treatment Filters - Pressure Vessels - Carbon Steel - Plastic Internals | N58: 2 | O58: 1 | P58: 3 | Q58: 2 | R58: 1 | S58: 3 | T58: 2 | U58: 1 | V58: 3 | W58: 0 | X58: 0
A59: 2.2.1 | B59: Fiberglass | C59: =final_num_tanks_filt -> 0 | D59: units | E59: =comm_vol_gal_filt -> - | F59: gal | G59: =IF(curve=1,comm_vol_gal_filt,VLOOKUP(comm_vol_gal_filt,ss_pv_cost_cl,2)) -> - | H59: gal | I59: =IF(C59=0,"NA",IF(curve=1,fg_pv_eq_filt,VLOOKUP(comm_vol_gal_filt,fg_pv_cost_cl,3))) -> NA | J59: =IF(C59=0,"--",IF(I59="contact vendor","--",C59*I59)) -> -- | K59: =IF(C59=0,"NA",VLOOKUP(comm_vol_gal_filt,fg_pv_cost_cl,IF(ss_cat="large",4,5))) -> NA | M59: =$B$47&" - "&$B$55&" - "&B59 -> Post-Treatment Filters - Pressure Vessels - Fiberglass | N59: 1 | O59: 2 | P59: 4 | Q59: 1 | R59: 2 | S59: 4 | T59: 1 | U59: 2 | V59: 4 | W59: 0 | X59: 0
A60: 2.3 | B60: Media | W60: 0 | X60: 0
A61: 2.3.1 | B61: Anthracite | C61: =anthracite -> 1866.087344 | D61: lbs | E61: NA | G61: NA | I61: =IF(anthracite=0,"NA",VLOOKUP(B61,media_cost_cl,3,FALSE)) -> 0.5092990893 | J61: =IF(anthracite=0,"--",IF(I61="contact vendor","--",C61*I61)) -> 950.3965849 | K61: =IF(I61="NA","N/A",IF(anthracite=0,"N/A",VLOOKUP(B61,media_cost_cl,IF(ss_cat="large",4,5)))) -> 8.5 | L61: 1 | M61: =$B$47&" - "&$B$60&" - "&B61 -> Post-Treatment Filters - Media - Anthracite | N61: 1 | O61: 1 | P61: 1 | Q61: 1 | R61: 1 | S61: 1 | T61: 1 | U61: 1 | V61: 1 | W61: 1 | X61: 111.8113629
A62: 2.3.2 | B62: Sand | C62: =sand_vol -> 18.38235294 | D62: cf | E62: NA | G62: NA | I62: =IF(sand_vol=0,"NA",VLOOKUP(B62,media_cost_cl,3,FALSE)) -> 23.55609812 | J62: =IF(sand_vol=0,"--",IF(I62="contact vendor","--",C62*I62)) -> 433.0165095 | K62: =IF(I62="NA","N/A",IF(sand_vol=0,"N/A",VLOOKUP(B62,media_cost_cl,IF(ss_cat="large",4,5)))) -> 20 | L62: 1 | M62: =$B$47&" - "&$B$60&" - "&B62 -> Post-Treatment Filters - Media - Sand | N62: 1 | O62: 1 | P62: 1 | Q62: 1 | R62: 1 | S62: 1 | T62: 1 | U62: 1 | V62: 1 | W62: 1 | X62: 21.65082548
A63: 2.3.3 | B63: Garnet/illmenite | C63: =garnet -> 0 | D63: lbs | E63: NA | G63: NA | I63: =IF(garnet=0,"NA",VLOOKUP(B63,media_cost_cl,3,FALSE)) -> NA | J63: =IF(garnet=0,"--",IF(I63="contact vendor","--",C63*I63)) -> -- | K63: =IF(I63="NA","N/A",IF(garnet=0,"N/A",VLOOKUP(B63,media_cost_cl,IF(ss_cat="large",4,5)))) -> N/A | M63: =$B$47&" - "&$B$60&" - "&B63 -> Post-Treatment Filters - Media - Garnet/illmenite | N63: 1 | O63: 1 | P63: 1 | Q63: 1 | R63: 1 | S63: 1 | T63: 1 | U63: 1 | V63: 1 | W63: 0 | X63: 0
A64: 2.3.4 | B64: GAC | C64: =filt_GAC -> 0 | D64: lbs | E64: NA | G64: NA | I64: =IF(filt_GAC=0,"NA",IF(curve=1,filt_gac_eq,VLOOKUP(C64,gac_cost_cl,3))) -> NA | J64: =IF(filt_GAC=0,"--",IF(I64="contact vendor","--",C64*I64)) -> -- | K64: =IF(I64="NA","N/A",IF(filt_GAC=0,"N/A",VLOOKUP(filt_GAC/GAC_density,gac_cost_cl,IF(ss_cat="large",4,5)))) -> N/A | M64: =$B$47&" - "&$B$60&" - "&B64 -> Post-Treatment Filters - Media - GAC | N64: 1 | O64: 1 | P64: 1 | Q64: 1 | R64: 1 | S64: 1 | T64: 1 | U64: 1 | V64: 1 | W64: 0 | X64: 0
A65: 3 | B65: Tanks | W65: 0 | X65: 0
A66: 3.1 | B66: Backwash Tanks | W66: 0 | X66: 0
A67: 3.1.1 | B67: Steel | C67: =back_tanks -> 0 | D67: units | E67: =IF(C67=0,"NA",back_tank_vol) -> NA | F67: =IF(C67=0,"","gal") ->  | G67: =IF(C67=0,"NA",IF(curve=1,back_tank_vol,VLOOKUP(back_tank_vol,st_bwt_cost_cl,2))) -> NA | H67: =IF(C67=0,"","gal") ->  | I67: =IF(C67=0,"NA",IF(curve=1,st_bwt_eq,VLOOKUP(back_tank_vol,st_bwt_cost_cl,3))) -> NA | J67: =IF(OR(C67=0,I67="contact vendor"),"--",C67*I67) -> -- | K67: =IF(C67=0,"NA",VLOOKUP(back_tank_vol,st_bwt_cost_cl,IF(ss_cat="large",4,5))) -> NA | M67: =$B$65&" - "&$B$66&" - "&B67 -> Tanks - Backwash Tanks - Steel | N67: 3 | O67: 3 | P67: 1 | Q67: 3 | R67: 3 | S67: 1 | T67: 3 | U67: 3 | V67: 1 | W67: 0 | X67: 0
A68: 3.1.1 | B68: Fiberglass | C68: =back_tanks -> 0 | D68: units | E68: =IF(C68=0,"NA",back_tank_vol) -> NA | F68: =IF(C68=0,"","gal") ->  | G68: =IF(C68=0,"NA",IF(curve=1,back_tank_vol,VLOOKUP(back_tank_vol,fg_bwt_cost_cl,2))) -> NA | H68: =IF(C68=0,"","gal") ->  | I68: =IF(C68=0,"NA",IF(curve=1,fg_bwt_eq,VLOOKUP(back_tank_vol,fg_bwt_cost_cl,3))) -> NA | J68: =IF(OR(C68=0,I68="contact vendor"),"--",C68*I68) -> -- | K68: =IF(C68=0,"NA",VLOOKUP(back_tank_vol,fg_bwt_cost_cl,IF(ss_cat="large",4,5))) -> NA | M68: =$B$65&" - "&$B$66&" - "&B68 -> Tanks - Backwash Tanks - Fiberglass | N68: 2 | O68: 1 | P68: 2 | Q68: 2 | R68: 1 | S68: 2 | T68: 2 | U68: 1 | V68: 2 | W68: 0 | X68: 0
A69: 3.1.1 | B69: Plastic | C69: =back_tanks -> 0 | D69: units | E69: =IF(C69=0,"NA",back_tank_vol) -> NA | F69: =IF(C69=0,"","gal") ->  | G69: =IF(C69=0,"NA",IF(curve=1,back_tank_vol,VLOOKUP(back_tank_vol,hdpe_bwt_cost_cl,2))) -> NA | H69: =IF(C69=0,"","gal") ->  | I69: =IF(C69=0,"NA",IF(curve=1,hdpe_bwt_eq,VLOOKUP(back_tank_vol,hdpe_bwt_cost_cl,3))) -> NA | J69: =IF(OR(C69=0,I69="contact vendor"),"--",C69*I69) -> -- | K69: =IF(C69=0,"NA",VLOOKUP(back_tank_vol,hdpe_bwt_cost_cl,IF(ss_cat="large",4,5))) -> NA | M69: =$B$65&" - "&$B$66&" - "&B69 -> Tanks - Backwash Tanks - Plastic | N69: 1 | O69: 2 | P69: 3 | Q69: 1 | R69: 2 | S69: 3 | T69: 1 | U69: 2 | V69: 3 | W69: 0 | X69: 0
A70: 3.2 | B70: Electron Donor Storage Tanks | W70: 0 | X70: 0
A71: 3.2.1 | B71: Plastic/XLPE | C71: =e_donor_tanks -> 1 | D71: units | E71: =IF(C71=0,"NA",e_donor_tank_vol) -> 11 | F71: =IF(C71=0,"","gal") -> gal | G71: =IF(C71=0,"NA",IF(curve=1,e_donor_tank_vol,VLOOKUP(e_donor_tank_vol,pl_cst_cost_cl,2))) -> 11 | H71: =IF(C71=0,"","gal") -> gal | I71: =IF(C71=0,"NA",IF(curve=1,pl_e_donor_st_eq,VLOOKUP(e_donor_tank_vol,pl_cst_cost_cl,3))) -> 807.9508384 | J71: =IF(OR(C71=0,I71="contact vendor"),"--",C71*I71) -> 807.9508384 | K71: =IF(C71=0,"NA",VLOOKUP(e_donor_tank_vol,pl_cst_cost_cl,IF(ss_cat="large",4,5))) -> 7 | L71: 1 | M71: =$B$65&" - "&$B$70&" - "&B71 -> Tanks - Electron Donor Storage Tanks - Plastic/XLPE | N71: 1 | O71: 2 | P71: 3 | Q71: 1 | R71: 2 | S71: 3 | T71: 1 | U71: 2 | V71: 3 | W71: 1 | X71: 115.4215483
A72: 3.2.1 | B72: Fiberglass | C72: =e_donor_tanks -> 1 | D72: units | E72: =IF(C72=0,"NA",e_donor_tank_vol) -> 11 | F72: =IF(C72=0,"","gal") -> gal | G72: =IF(C72=0,"NA",IF(curve=1,e_donor_tank_vol,VLOOKUP(e_donor_tank_vol,fg_cst_cost_cl,2))) -> 11 | H72: =IF(C72=0,"","gal") -> gal | I72: =IF(C72=0,"NA",IF(curve=1,fg_e_donor_st_eq,VLOOKUP(e_donor_tank_vol,fg_cst_cost_cl,3))) -> 4696.891021 | J72: =IF(OR(C72=0,I72="contact vendor"),"--",C72*I72) -> 4696.891021 | K72: =IF(C72=0,"NA",VLOOKUP(e_donor_tank_vol,fg_cst_cost_cl,IF(ss_cat="large",4,5))) -> 7 | L72: 0 | M72: =$B$65&" - "&$B$70&" - "&B72 -> Tanks - Electron Donor Storage Tanks - Fiberglass | N72: 2 | O72: 1 | P72: 2 | Q72: 2 | R72: 1 | S72: 2 | T72: 2 | U72: 1 | V72: 2 | W72: 0 | X72: 0
A73: 3.2.1 | B73: Stainless Steel | C73: =e_donor_tanks -> 1 | D73: units | E73: =IF(C73=0,"NA",e_donor_tank_vol) -> 11 | F73: =IF(C73=0,"","gal") -> gal | G73: =IF(C73=0,"NA",IF(curve=1,e_donor_tank_vol,VLOOKUP(e_donor_tank_vol,ss_cst_cost_cl,2))) -> 11 | H73: =IF(C73=0,"","gal") -> gal | I73: =IF(C73=0,"NA",IF(curve=1,ss_e_donor_st_eq,VLOOKUP(e_donor_tank_vol,ss_cst_cost_cl,3))) -> 4432.608821 | J73: =IF(OR(C73=0,I73="contact vendor"),"--",C73*I73) -> 4432.608821 | K73: =IF(C73=0,"NA",VLOOKUP(e_donor_tank_vol,ss_cst_cost_cl,IF(ss_cat="large",4,5))) -> 30 | L73: 0 | M73: =$B$65&" - "&$B$70&" - "&B73 -> Tanks - Electron Donor Storage Tanks - Stainless Steel | N73: 3 | O73: 3 | P73: 1 | Q73: 3 | R73: 3 | S73: 1 | T73: 3 | U73: 3 | V73: 1 | W73: 0 | X73: 0
A74: 3.2.2 | B74: Secondary Containment - Concrete Curbing | C74: =IF(OR(include_sec_cont=0,e_donor_tanks=0),0,e_donor_st_curb_concrete) -> 1 | D74: cy | E74: NA | G74: NA | I74: =IF(C74=0,"NA",VLOOKUP(0,conc_basin_cost_cl,3)) -> 601.2651172 | J74: =IF(C74=0,"--",IF(I74="contact vendor","--",C74*I74)) -> 601.2651172 | K74: =IF(C74=0,"NA",VLOOKUP(0,conc_basin_cost_cl,IF(ss_cat="large",4,5))) -> 37 | L74: 1 | M74: =$B$65&" - "&$B$70&" - "&B74 -> Tanks - Electron Donor Storage Tanks - Secondary Containment - Concrete Curbing | N74: 1 | O74: 1 | P74: 1 | Q74: 1 | R74: 1 | S74: 1 | T74: 1 | U74: 1 | V74: 1 | W74: =IF(ISERROR(K74*L74),0,IF(K74<1,0,L74)) -> 1 | X74: =IF(W74,J74/K74,0) -> 16.25040857
A75: 3.2.3 | B75: Secondary Containment - Chemical Resistant Coating | C75: =IF(OR(include_sec_cont=0,e_donor_tanks=0),0,e_donor_st_coating_gal) -> 1 | D75: gal | E75: NA | G75: NA | I75: =IF(C75=0,"NA",VLOOKUP(0,conc_coating_cost_cl,3)) -> 257.0253154 | J75: =IF(C75=0,"--",IF(I75="contact vendor","--",C75*I75)) -> 257.0253154 | K75: =IF(C75=0,"NA",VLOOKUP(0,conc_coating_cost_cl,IF(ss_cat="large",4,5))) -> 10 | L75: 1 | M75: =$B$65&" - "&$B$70&" - "&B75 -> Tanks - Electron Donor Storage Tanks - Secondary Containment - Chemical Resistant Coating | N75: 1 | O75: 1 | P75: 1 | Q75: 1 | R75: 1 | S75: 1 | T75: 1 | U75: 1 | V75: 1 | W75: =IF(ISERROR(K75*L75),0,IF(K75<1,0,L75)) -> 1 | X75: =IF(W75,J75/K75,0) -> 25.70253154
A76: 3.3 | B76: Ammonium Chloride Storage Tanks | W76: 0 | X76: 0
A77: 3.3.1 | B77: Plastic/XLPE | C77: =NH4Cl_tanks -> 0 | D77: units | E77: =IF(C77=0,"NA",NH4Cl_tank_vol) -> NA | F77: =IF(C77=0,"","gal") ->  | G77: =IF(C77=0,"NA",IF(curve=1,NH4Cl_tank_vol,VLOOKUP(NH4Cl_tank_vol,pl_cst_cost_cl,2))) -> NA | H77: =IF(C77=0,"","gal") ->  | I77: =IF(C77=0,"NA",IF(curve=1,pl_NH4Cl_st_eq,VLOOKUP(NH4Cl_tank_vol,pl_cst_cost_cl,3))) -> NA | J77: =IF(OR(C77=0,I77="contact vendor"),"--",C77*I77) -> -- | K77: =IF(C77=0,"NA",VLOOKUP(NH4Cl_tank_vol,pl_cst_cost_cl,IF(ss_cat="large",4,5))) -> NA | M77: =$B$65&" - "&$B$76&" - "&B77 -> Tanks - Ammonium Chloride Storage Tanks - Plastic/XLPE | N77: 1 | O77: 2 | P77: 3 | Q77: 1 | R77: 2 | S77: 3 | T77: 1 | U77: 2 | V77: 3 | W77: 0 | X77: 0
A78: 3.3.1 | B78: Fiberglass | C78: =NH4Cl_tanks -> 0 | D78: units | E78: =IF(C78=0,"NA",NH4Cl_tank_vol) -> NA | F78: =IF(C78=0,"","gal") ->  | G78: =IF(C78=0,"NA",IF(curve=1,NH4Cl_tank_vol,VLOOKUP(NH4Cl_tank_vol,fg_cst_cost_cl,2))) -> NA | H78: =IF(C78=0,"","gal") ->  | I78: =IF(C78=0,"NA",IF(curve=1,fg_NH4Cl_st_eq,VLOOKUP(NH4Cl_tank_vol,fg_cst_cost_cl,3))) -> NA | J78: =IF(OR(C78=0,I78="contact vendor"),"--",C78*I78) -> -- | K78: =IF(C78=0,"NA",VLOOKUP(NH4Cl_tank_vol,fg_cst_cost_cl,IF(ss_cat="large",4,5))) -> NA | M78: =$B$65&" - "&$B$76&" - "&B78 -> Tanks - Ammonium Chloride Storage Tanks - Fiberglass | N78: 2 | O78: 1 | P78: 2 | Q78: 2 | R78: 1 | S78: 2 | T78: 2 | U78: 1 | V78: 2 | W78: 0 | X78: 0
A79: 3.3.1 | B79: Stainless Steel | C79: =NH4Cl_tanks -> 0 | D79: units | E79: =IF(C79=0,"NA",NH4Cl_tank_vol) -> NA | F79: =IF(C79=0,"","gal") ->  | G79: =IF(C79=0,"NA",IF(curve=1,NH4Cl_tank_vol,VLOOKUP(NH4Cl_tank_vol,ss_cst_cost_cl,2))) -> NA | H79: =IF(C79=0,"","gal") ->  | I79: =IF(C79=0,"NA",IF(curve=1,ss_NH4Cl_st_eq,VLOOKUP(NH4Cl_tank_vol,ss_cst_cost_cl,3))) -> NA | J79: =IF(OR(C79=0,I79="contact vendor"),"--",C79*I79) -> -- | K79: =IF(C79=0,"NA",VLOOKUP(NH4Cl_tank_vol,ss_cst_cost_cl,IF(ss_cat="large",4,5))) -> NA | M79: =$B$65&" - "&$B$76&" - "&B79 -> Tanks - Ammonium Chloride Storage Tanks - Stainless Steel | N79: 3 | O79: 3 | P79: 1 | Q79: 3 | R79: 3 | S79: 1 | T79: 3 | U79: 3 | V79: 1 | W79: 0 | X79: 0
A80: 3.3.2 | B80: Secondary Containment - Concrete Curbing | C80: =IF(OR(include_sec_cont=0,NH4Cl_tanks=0),0,NH4Cl_st_curb_concrete) -> 0 | D80: cy | E80: NA | G80: NA | I80: =IF(C80=0,"NA",VLOOKUP(0,conc_basin_cost_cl,3)) -> NA | J80: =IF(C80=0,"--",IF(I80="contact vendor","--",C80*I80)) -> -- | K80: =IF(C80=0,"NA",VLOOKUP(0,conc_basin_cost_cl,IF(ss_cat="large",4,5))) -> NA | M80: =$B$65&" - "&$B$76&" - "&B80 -> Tanks - Ammonium Chloride Storage Tanks - Secondary Containment - Concrete Curbing | N80: 1 | O80: 1 | P80: 1 | Q80: 1 | R80: 1 | S80: 1 | T80: 1 | U80: 1 | V80: 1 | W80: 0 | X80: 0
A81: 3.3.3 | B81: Secondary Containment - Chemical Resistant Coating | C81: =IF(OR(include_sec_cont=0,NH4Cl_tanks=0),0,NH4Cl_st_coating_gal) -> 0 | D81: gal | E81: NA | G81: NA | I81: =IF(C81=0,"NA",VLOOKUP(0,conc_coating_cost_cl,3)) -> NA | J81: =IF(C81=0,"--",IF(I81="contact vendor","--",C81*I81)) -> -- | K81: =IF(C81=0,"NA",VLOOKUP(0,conc_coating_cost_cl,IF(ss_cat="large",4,5))) -> NA | M81: =$B$65&" - "&$B$76&" - "&B81 -> Tanks - Ammonium Chloride Storage Tanks - Secondary Containment - Chemical Resistant Coating | N81: 1 | O81: 1 | P81: 1 | Q81: 1 | R81: 1 | S81: 1 | T81: 1 | U81: 1 | V81: 1 | W81: 0 | X81: 0
A82: 3.4 | B82: Phosphoric Acid Storage Tanks | W82: 0 | X82: 0
A83: 3.4.1 | B83: Plastic/XLPE | C83: =H3PO4_tanks -> 1 | D83: units | E83: =IF(C83=0,"NA",H3PO4_tank_vol) -> 1 | F83: =IF(C83=0,"","gal") -> gal | G83: =IF(C83=0,"NA",IF(curve=1,H3PO4_tank_vol,VLOOKUP(H3PO4_tank_vol,pl_cst_cost_cl,2))) -> 1 | H83: =IF(C83=0,"","gal") -> gal | I83: =IF(C83=0,"NA",IF(curve=1,pl_H3PO4_st_eq,VLOOKUP(H3PO4_tank_vol,pl_cst_cost_cl,3))) -> 792.2211918 | J83: =IF(OR(C83=0,I83="contact vendor"),"--",C83*I83) -> 792.2211918 | K83: =IF(C83=0,"NA",VLOOKUP(H3PO4_tank_vol,pl_cst_cost_cl,IF(ss_cat="large",4,5))) -> 7 | L83: 1 | M83: =$B$65&" - "&$B$82&" - "&B83 -> Tanks - Phosphoric Acid Storage Tanks - Plastic/XLPE | N83: 1 | O83: 2 | P83: 2 | Q83: 1 | R83: 2 | S83: 2 | T83: 1 | U83: 2 | V83: 2 | W83: 1 | X83: 113.174456
A84: 3.4.1 | B84: Fiberglass | C84: =H3PO4_tanks -> 1 | D84: units | E84: =IF(C84=0,"NA",H3PO4_tank_vol) -> 1 | F84: =IF(C84=0,"","gal") -> gal | G84: =IF(C84=0,"NA",IF(curve=1,H3PO4_tank_vol,VLOOKUP(H3PO4_tank_vol,fg_cst_cost_cl,2))) -> 1 | H84: =IF(C84=0,"","gal") -> gal | I84: =IF(C84=0,"NA",IF(curve=1,fg_H3PO4_st_eq,VLOOKUP(H3PO4_day_vol,fg_cst_cost_cl,3))) -> 4679.14858 | J84: =IF(OR(C84=0,I84="contact vendor"),"--",C84*I84) -> 4679.14858 | K84: =IF(C84=0,"NA",VLOOKUP(H3PO4_tank_vol,fg_cst_cost_cl,IF(ss_cat="large",4,5))) -> 7 | L84: 0 | M84: =$B$65&" - "&$B$82&" - "&B84 -> Tanks - Phosphoric Acid Storage Tanks - Fiberglass | N84: 2 | O84: 1 | P84: 1 | Q84: 2 | R84: 1 | S84: 1 | T84: 2 | U84: 1 | V84: 1 | W84: 0 | X84: 0
A85: 3.4.2 | B85: Secondary Containment - Concrete Curbing | C85: =IF(OR(include_sec_cont=0,H3PO4_tanks=0),0,H3PO4_st_curb_concrete) -> 1 | D85: cy | E85: NA | G85: NA | I85: =IF(C85=0,"NA",VLOOKUP(0,conc_basin_cost_cl,3)) -> 601.2651172 | J85: =IF(C85=0,"--",IF(I85="contact vendor","--",C85*I85)) -> 601.2651172 | K85: =IF(C85=0,"NA",VLOOKUP(0,conc_basin_cost_cl,IF(ss_cat="large",4,5))) -> 37 | L85: 1 | M85: =$B$65&" - "&$B$76&" - "&B85 -> Tanks - Ammonium Chloride Storage Tanks - Secondary Containment - Concrete Curbing | N85: 1 | O85: 1 | P85: 1 | Q85: 1 | R85: 1 | S85: 1 | T85: 1 | U85: 1 | V85: 1 | W85: =IF(ISERROR(K85*L85),0,IF(K85<1,0,L85)) -> 1 | X85: =IF(W85,J85/K85,0) -> 16.25040857
A86: 3.4.3 | B86: Secondary Containment - Chemical Resistant Coating | C86: =IF(OR(include_sec_cont=0,H3PO4_tanks=0),0,H3PO4_st_coating_gal) -> 1 | D86: gal | E86: NA | G86: NA | I86: =IF(C86=0,"NA",VLOOKUP(0,conc_coating_cost_cl,3)) -> 257.0253154 | J86: =IF(C86=0,"--",IF(I86="contact vendor","--",C86*I86)) -> 257.0253154 | K86: =IF(C86=0,"NA",VLOOKUP(0,conc_coating_cost_cl,IF(ss_cat="large",4,5))) -> 10 | L86: 1 | M86: =$B$65&" - "&$B$76&" - "&B86 -> Tanks - Ammonium Chloride Storage Tanks - Secondary Containment - Chemical Resistant Coating | N86: 1 | O86: 1 | P86: 1 | Q86: 1 | R86: 1 | S86: 1 | T86: 1 | U86: 1 | V86: 1 | W86: =IF(ISERROR(K86*L86),0,IF(K86<1,0,L86)) -> 1 | X86: =IF(W86,J86/K86,0) -> 25.70253154
A87: 3.5 | B87: Electron Donor Day Tanks | W87: 0 | X87: 0
A88: 3.5.1 | B88: Plastic/XLPE | C88: =e_donor_day_tanks -> 1 | D88: units | E88: =IF(C88=0,"NA",e_donor_day_tank_vol) -> 7 | F88: =IF(C88=0,"","gal") -> gal | G88: =IF(C88=0,"NA",IF(curve=1,e_donor_day_tank_vol,VLOOKUP(e_donor_day_tank_vol,pl_cst_cost_cl,2))) -> 7 | H88: =IF(C88=0,"","gal") -> gal | I88: =IF(C88=0,"NA",IF(curve=1,pl_e_donor_day_eq,VLOOKUP(e_donor_day_tank_vol,pl_cst_cost_cl,3))) -> 801.6582797 | J88: =IF(OR(C88=0,I88="contact vendor"),"--",C88*I88) -> 801.6582797 | K88: =IF(C88=0,"NA",VLOOKUP(e_donor_day_tank_vol,pl_cst_cost_cl,IF(ss_cat="large",4,5))) -> 7 | L88: 1 | M88: =$B$65&" - "&$B$87&" - "&B88 -> Tanks - Electron Donor Day Tanks - Plastic/XLPE | N88: 1 | O88: 2 | P88: 3 | Q88: 1 | R88: 2 | S88: 3 | T88: 1 | U88: 2 | V88: 3 | W88: 1 | X88: 114.5226114
A89: 3.5.1 | B89: Fiberglass | C89: =e_donor_day_tanks -> 1 | D89: units | E89: =IF(C89=0,"NA",e_donor_day_tank_vol) -> 7 | F89: =IF(C89=0,"","gal") -> gal | G89: =IF(C89=0,"NA",IF(curve=1,e_donor_day_tank_vol,VLOOKUP(e_donor_day_tank_vol,fg_cst_cost_cl,2))) -> 7 | H89: =IF(C89=0,"","gal") -> gal | I89: =IF(C89=0,"NA",IF(curve=1,fg_e_donor_day_eq,VLOOKUP(e_donor_day_tank_vol,fg_cst_cost_cl,3))) -> 4689.794609 | J89: =IF(OR(C89=0,I89="contact vendor"),"--",C89*I89) -> 4689.794609 | K89: =IF(C89=0,"NA",VLOOKUP(e_donor_day_tank_vol,fg_cst_cost_cl,IF(ss_cat="large",4,5))) -> 7 | L89: 0 | M89: =$B$65&" - "&$B$87&" - "&B89 -> Tanks - Electron Donor Day Tanks - Fiberglass | N89: 2 | O89: 1 | P89: 2 | Q89: 2 | R89: 1 | S89: 2 | T89: 2 | U89: 1 | V89: 2 | W89: 0 | X89: 0
A90: 3.5.1 | B90: Stainless Steel | C90: =e_donor_day_tanks -> 1 | D90: units | E90: =IF(C90=0,"NA",e_donor_day_tank_vol) -> 7 | F90: =IF(C90=0,"","gal") -> gal | G90: =IF(C90=0,"NA",IF(curve=1,e_donor_day_tank_vol,VLOOKUP(e_donor_day_tank_vol,ss_cst_cost_cl,2))) -> 7 | H90: =IF(C90=0,"","gal") -> gal | I90: =IF(C90=0,"NA",IF(curve=1,ss_e_donor_day_eq,VLOOKUP(e_donor_day_tank_vol,ss_cst_cost_cl,3))) -> 4421.744372 | J90: =IF(OR(C90=0,I90="contact vendor"),"--",C90*I90) -> 4421.744372 | K90: =IF(C90=0,"NA",VLOOKUP(e_donor_day_tank_vol,ss_cst_cost_cl,IF(ss_cat="large",4,5))) -> 30 | L90: 0 | M90: =$B$65&" - "&$B$87&" - "&B90 -> Tanks - Electron Donor Day Tanks - Stainless Steel | N90: 3 | O90: 3 | P90: 1 | Q90: 3 | R90: 3 | S90: 1 | T90: 3 | U90: 3 | V90: 1 | W90: 0 | X90: 0
A91: 3.5.2 | B91: Secondary Containment - Concrete Curbing | C91: =IF(OR(include_sec_cont=0,e_donor_day_tanks=0),0,e_donor_dt_curb_concrete) -> 1 | D91: cy | E91: NA | G91: NA | I91: =IF(C91=0,"NA",VLOOKUP(0,conc_basin_cost_cl,3)) -> 601.2651172 | J91: =IF(C91=0,"--",IF(I91="contact vendor","--",C91*I91)) -> 601.2651172 | K91: =IF(C91=0,"NA",VLOOKUP(0,conc_basin_cost_cl,IF(ss_cat="large",4,5))) -> 37 | L91: 1 | M91: =$B$65&" - "&$B$87&" - "&B91 -> Tanks - Electron Donor Day Tanks - Secondary Containment - Concrete Curbing | N91: 1 | O91: 1 | P91: 1 | Q91: 1 | R91: 1 | S91: 1 | T91: 1 | U91: 1 | V91: 1 | W91: =IF(ISERROR(K91*L91),0,IF(K91<1,0,L91)) -> 1 | X91: =IF(W91,J91/K91,0) -> 16.25040857
A92: 3.5.3 | B92: Secondary Containment - Chemical Resistant Coating | C92: =IF(OR(include_sec_cont=0,e_donor_day_tanks=0),0,e_donor_dt_coating_gal) -> 1 | D92: gal | E92: NA | G92: NA | I92: =IF(C92=0,"NA",VLOOKUP(0,conc_coating_cost_cl,3)) -> 257.0253154 | J92: =IF(C92=0,"--",IF(I92="contact vendor","--",C92*I92)) -> 257.0253154 | K92: =IF(C92=0,"NA",VLOOKUP(0,conc_coating_cost_cl,IF(ss_cat="large",4,5))) -> 10 | L92: 1 | M92: =$B$65&" - "&$B$87&" - "&B92 -> Tanks - Electron Donor Day Tanks - Secondary Containment - Chemical Resistant Coating | N92: 1 | O92: 1 | P92: 1 | Q92: 1 | R92: 1 | S92: 1 | T92: 1 | U92: 1 | V92: 1 | W92: =IF(ISERROR(K92*L92),0,IF(K92<1,0,L92)) -> 1 | X92: =IF(W92,J92/K92,0) -> 25.70253154
A93: 3.6 | B93: Ammonium Chloride Day Tanks | W93: 0 | X93: 0
A94: 3.6.1 | B94: Plastic/XLPE | C94: =NH4Cl_day_tanks -> 0 | D94: units | E94: =IF(C94=0,"NA",NH4Cl_day_tank_vol) -> NA | F94: =IF(C94=0,"","gal") ->  | G94: =IF(C94=0,"NA",IF(curve=1,NH4Cl_day_tank_vol,VLOOKUP(NH4Cl_day_tank_vol,pl_cst_cost_cl,2))) -> NA | H94: =IF(C94=0,"","gal") ->  | I94: =IF(C94=0,"NA",IF(curve=1,pl_NH4Cl_day_eq,VLOOKUP(NH4Cl_day_tank_vol,pl_cst_cost_cl,3))) -> NA | J94: =IF(OR(C94=0,I94="contact vendor"),"--",C94*I94) -> -- | K94: =IF(C94=0,"NA",VLOOKUP(NH4Cl_day_tank_vol,pl_cst_cost_cl,IF(ss_cat="large",4,5))) -> NA | M94: =$B$65&" - "&$B$93&" - "&B94 -> Tanks - Ammonium Chloride Day Tanks - Plastic/XLPE | N94: 1 | O94: 2 | P94: 3 | Q94: 1 | R94: 2 | S94: 3 | T94: 1 | U94: 2 | V94: 3 | W94: 0 | X94: 0
A95: 3.6.1 | B95: Fiberglass | C95: =NH4Cl_day_tanks -> 0 | D95: units | E95: =IF(C95=0,"NA",NH4Cl_day_tank_vol) -> NA | F95: =IF(C95=0,"","gal") ->  | G95: =IF(C95=0,"NA",IF(curve=1,NH4Cl_day_tank_vol,VLOOKUP(NH4Cl_day_tank_vol,fg_cst_cost_cl,2))) -> NA | H95: =IF(C95=0,"","gal") ->  | I95: =IF(C95=0,"NA",IF(curve=1,fg_NH4Cl_day_eq,VLOOKUP(NH4Cl_day_tank_vol,fg_cst_cost_cl,3))) -> NA | J95: =IF(OR(C95=0,I95="contact vendor"),"--",C95*I95) -> -- | K95: =IF(C95=0,"NA",VLOOKUP(NH4Cl_day_tank_vol,fg_cst_cost_cl,IF(ss_cat="large",4,5))) -> NA | M95: =$B$65&" - "&$B$93&" - "&B95 -> Tanks - Ammonium Chloride Day Tanks - Fiberglass | N95: 2 | O95: 1 | P95: 2 | Q95: 2 | R95: 1 | S95: 2 | T95: 2 | U95: 1 | V95: 2 | W95: 0 | X95: 0
A96: 3.6.1 | B96: Stainless Steel | C96: =NH4Cl_day_tanks -> 0 | D96: units | E96: =IF(C96=0,"NA",NH4Cl_day_tank_vol) -> NA | F96: =IF(C96=0,"","gal") ->  | G96: =IF(C96=0,"NA",IF(curve=1,NH4Cl_day_tank_vol,VLOOKUP(NH4Cl_day_tank_vol,ss_cst_cost_cl,2))) -> NA | H96: =IF(C96=0,"","gal") ->  | I96: =IF(C96=0,"NA",IF(curve=1,ss_NH4Cl_day_eq,VLOOKUP(NH4Cl_day_tank_vol,ss_cst_cost_cl,3))) -> NA | J96: =IF(OR(C96=0,I96="contact vendor"),"--",C96*I96) -> -- | K96: =IF(C96=0,"NA",VLOOKUP(NH4Cl_day_tank_vol,ss_cst_cost_cl,IF(ss_cat="large",4,5))) -> NA | M96: =$B$65&" - "&$B$93&" - "&B96 -> Tanks - Ammonium Chloride Day Tanks - Stainless Steel | N96: 3 | O96: 3 | P96: 1 | Q96: 3 | R96: 3 | S96: 1 | T96: 3 | U96: 3 | V96: 1 | W96: 0 | X96: 0
A97: 3.6.2 | B97: Secondary Containment - Concrete Curbing | C97: =IF(OR(include_sec_cont=0,NH4Cl_day_tanks=0),0,NH4Cl_dt_curb_concrete) -> 0 | D97: cy | E97: NA | G97: NA | I97: =IF(C97=0,"NA",VLOOKUP(0,conc_basin_cost_cl,3)) -> NA | J97: =IF(C97=0,"--",IF(I97="contact vendor","--",C97*I97)) -> -- | K97: =IF(C97=0,"NA",VLOOKUP(0,conc_basin_cost_cl,IF(ss_cat="large",4,5))) -> NA | M97: =$B$65&" - "&$B$93&" - "&B97 -> Tanks - Ammonium Chloride Day Tanks - Secondary Containment - Concrete Curbing | N97: 1 | O97: 1 | P97: 1 | Q97: 1 | R97: 1 | S97: 1 | T97: 1 | U97: 1 | V97: 1 | W97: =IF(ISERROR(K97*L97),0,IF(K97<1,0,L97)) -> 0 | X97: =IF(W97,J97/K97,0) -> 0
A98: 3.6.3 | B98: Secondary Containment - Chemical Resistant Coating | C98: =IF(OR(include_sec_cont=0,NH4Cl_day_tanks=0),0,NH4Cl_dt_coating_gal) -> 0 | D98: gal | E98: NA | G98: NA | I98: =IF(C98=0,"NA",VLOOKUP(0,conc_coating_cost_cl,3)) -> NA | J98: =IF(C98=0,"--",IF(I98="contact vendor","--",C98*I98)) -> -- | K98: =IF(C98=0,"NA",VLOOKUP(0,conc_coating_cost_cl,IF(ss_cat="large",4,5))) -> NA | M98: =$B$65&" - "&$B$93&" - "&B98 -> Tanks - Ammonium Chloride Day Tanks - Secondary Containment - Chemical Resistant Coating | N98: 1 | O98: 1 | P98: 1 | Q98: 1 | R98: 1 | S98: 1 | T98: 1 | U98: 1 | V98: 1 | W98: =IF(ISERROR(K98*L98),0,IF(K98<1,0,L98)) -> 0 | X98: =IF(W98,J98/K98,0) -> 0
A99: 3.7 | B99: Phosphoric Acid Day Tanks | W99: 0 | X99: 0
A100: 3.7.1 | B100: Plastic/XLPE | C100: =H3PO4_day_tanks -> 0 | D100: units | E100: =IF(C100=0,"NA",H3PO4_day_tank_vol) -> NA | F100: =IF(C100=0,"","gal") ->  | G100: =IF(C100=0,"NA",IF(curve=1,H3PO4_day_tank_vol,VLOOKUP(H3PO4_day_tank_vol,pl_cst_cost_cl,2))) -> NA | H100: =IF(C100=0,"","gal") ->  | I100: =IF(C100=0,"NA",IF(curve=1,pl_H3PO4_day_eq,VLOOKUP(H3PO4_day_tank_vol,pl_cst_cost_cl,3))) -> NA | J100: =IF(OR(C100=0,I100="contact vendor"),"--",C100*I100) -> -- | K100: =IF(C100=0,"NA",VLOOKUP(H3PO4_day_tank_vol,pl_cst_cost_cl,IF(ss_cat="large",4,5))) -> NA | M100: =$B$65&" - "&$B$99&" - "&B100 -> Tanks - Phosphoric Acid Day Tanks - Plastic/XLPE | N100: 1 | O100: 2 | P100: 2 | Q100: 1 | R100: 2 | S100: 2 | T100: 1 | U100: 2 | V100: 2 | W100: 0 | X100: 0
A101: 3.7.1 | B101: Fiberglass | C101: =H3PO4_day_tanks -> 0 | D101: units | E101: =IF(C101=0,"NA",H3PO4_day_tank_vol) -> NA | F101: =IF(C101=0,"","gal") ->  | G101: =IF(C101=0,"NA",IF(curve=1,H3PO4_tank_vol,VLOOKUP(H3PO4_tank_vol,fg_cst_cost_cl,2))) -> NA | H101: =IF(C101=0,"","gal") ->  | I101: =IF(C101=0,"NA",IF(curve=1,fg_H3PO4_day_eq,VLOOKUP(H3PO4_day_tank_vol,fg_cst_cost_cl,3))) -> NA | J101: =IF(OR(C101=0,I101="contact vendor"),"--",C101*I101) -> -- | K101: =IF(C101=0,"NA",VLOOKUP(H3PO4_day_tank_vol,fg_cst_cost_cl,IF(ss_cat="large",4,5))) -> NA | M101: =$B$65&" - "&$B$99&" - "&B101 -> Tanks - Phosphoric Acid Day Tanks - Fiberglass | N101: 2 | O101: 1 | P101: 1 | Q101: 2 | R101: 1 | S101: 1 | T101: 2 | U101: 1 | V101: 1 | W101: 0 | X101: 0
A102: 3.7.2 | B102: Secondary Containment - Concrete Curbing | C102: =IF(OR(include_sec_cont=0,H3PO4_day_tanks=0),0,H3PO4_dt_curb_concrete) -> 0 | D102: cy | E102: NA | G102: NA | I102: =IF(C102=0,"NA",VLOOKUP(0,conc_basin_cost_cl,3)) -> NA | J102: =IF(C102=0,"--",IF(I102="contact vendor","--",C102*I102)) -> -- | K102: =IF(C102=0,"NA",VLOOKUP(0,conc_basin_cost_cl,IF(ss_cat="large",4,5))) -> NA | M102: =$B$65&" - "&$B$99&" - "&B102 -> Tanks - Phosphoric Acid Day Tanks - Secondary Containment - Concrete Curbing | N102: 1 | O102: 1 | P102: 1 | Q102: 1 | R102: 1 | S102: 1 | T102: 1 | U102: 1 | V102: 1 | W102: =IF(ISERROR(K102*L102),0,IF(K102<1,0,L102)) -> 0 | X102: =IF(W102,J102/K102,0) -> 0
A103: 3.7.3 | B103: Secondary Containment - Chemical Resistant Coating | C103: =IF(OR(include_sec_cont=0,H3PO4_day_tanks=0),0,H3PO4_dt_coating_gal) -> 0 | D103: gal | E103: NA | G103: NA | I103: =IF(C103=0,"NA",VLOOKUP(0,conc_coating_cost_cl,3)) -> NA | J103: =IF(C103=0,"--",IF(I103="contact vendor","--",C103*I103)) -> -- | K103: =IF(C103=0,"NA",VLOOKUP(0,conc_coating_cost_cl,IF(ss_cat="large",4,5))) -> NA | M103: =$B$65&" - "&$B$99&" - "&B103 -> Tanks - Phosphoric Acid Day Tanks - Secondary Containment - Chemical Resistant Coating | N103: 1 | O103: 1 | P103: 1 | Q103: 1 | R103: 1 | S103: 1 | T103: 1 | U103: 1 | V103: 1 | W103: =IF(ISERROR(K103*L103),0,IF(K103<1,0,L103)) -> 0 | X103: =IF(W103,J103/K103,0) -> 0
A104: 3.8 | B104: Residuals Holding Tanks/Basins | W104: 0 | X104: 0
A105: 3.8.1 | B105: Concrete Basins (includes Excavation, Backfill, and Compaction) | C105: =hbasins -> 1 | D105: units | E105: =IF(hbasins=0,"NA",hbasin_vol) -> 4241 | F105: =IF(C105=0,"","gal") -> gal | G105: =IF(hbasins=0,"NA",hbasin_vol) -> 4241 | H105: =IF(C105=0,"","gal") -> gal | I105: =IF(hbasins=0,"NA",J105/hbasins) -> 19914.96643 | J105: =IF(hbasins=0,"--",hconc_vol*VLOOKUP(0,conc_basin_cost_cl,3)+hexcavation_vol*VLOOKUP(0,excavate_cost_cl,3)+hbackfill_vol*VLOOKUP(0,backfill_cost_cl,3)+hrailing*VLOOKUP("aluminum railing",metal_cost_cl,3)) -> 19914.96643 | K105: =IF(hbasins=0,"NA",VLOOKUP(0,conc_basin_cost_cl,IF(ss_cat="large",4,5))) -> 37 | L105: 0 | M105: =$B$65&" - "&$B$104&" - "&B105 -> Tanks - Residuals Holding Tanks/Basins - Concrete Basins (includes Excavation, Backfill, and Compaction) | N105: 3 | O105: 3 | P105: 2 | Q105: 3 | R105: 3 | S105: 2 | T105: 3 | U105: 3 | V105: 2 | W105: 0 | X105: 0
A106: 3.8.1 | B106: Steel Tanks | C106: =htanks -> 1 | D106: units | E106: =IF(C106=0,"NA",htank_vol) -> 1990 | F106: =IF(C106=0,"","gal") -> gal | G106: =IF(htanks=0,"NA",IF(curve=1,htank_vol,VLOOKUP(htank_vol,st_bwt_cost_cl,2))) -> 1990 | H106: =IF(C106=0,"","gal") -> gal | I106: =IF(htanks=0,0,IF(curve=1,st_ht_eq,VLOOKUP(htank_vol,st_bwt_cost_cl,3))) -> 17910.38385 | J106: =IF(I106="contact vendor","--",C106*I106) -> 17910.38385 | K106: =IF(htanks=0,"NA",VLOOKUP(htank_vol,st_bwt_cost_cl,IF(ss_cat="large",4,5))) -> 30 | L106: 0 | M106: =$B$65&" - "&$B$104&" - "&B106 -> Tanks - Residuals Holding Tanks/Basins - Steel Tanks | N106: 4 | O106: 4 | P106: 1 | Q106: 4 | R106: 4 | S106: 1 | T106: 4 | U106: 4 | V106: 1 | W106: 0 | X106: 0
A107: 3.8.1 | B107: Fiberglass Tanks | C107: =htanks -> 1 | D107: units | E107: =IF(C107=0,"NA",htank_vol) -> 1990 | F107: =IF(C107=0,"","gal") -> gal | G107: =IF(htanks=0,"NA",IF(curve=1,htank_vol,VLOOKUP(htank_vol,fg_bwt_cost_cl,2))) -> 1990 | H107: =IF(C107=0,"","gal") -> gal | I107: =IF(htanks=0,0,IF(curve=1,fg_ht_eq,VLOOKUP(htank_vol,fg_bwt_cost_cl,3))) -> 8574.686561 | J107: =IF(I107="contact vendor","--",C107*I107) -> 8574.686561 | K107: =IF(htanks=0,"NA",VLOOKUP(htank_vol,fg_bwt_cost_cl,IF(ss_cat="large",4,5))) -> 20 | L107: 0 | M107: =$B$65&" - "&$B$104&" - "&B107 -> Tanks - Residuals Holding Tanks/Basins - Fiberglass Tanks | N107: 2 | O107: 1 | P107: 3 | Q107: 2 | R107: 1 | S107: 3 | T107: 2 | U107: 1 | V107: 3 | W107: 0 | X107: 0
A108: 3.8.1 | B108: Plastic/XLPE Tanks | C108: =htanks -> 1 | D108: units | E108: =IF(C108=0,"NA",htank_vol) -> 1990 | F108: =IF(C108=0,"","gal") -> gal | G108: =IF(htanks=0,"NA",IF(curve=1,htank_vol,VLOOKUP(htank_vol,hdpe_bwt_cost_cl,2))) -> 1990 | H108: =IF(C108=0,"","gal") -> gal | I108: =IF(htanks=0,0,IF(curve=1,hdpe_ht_eq,VLOOKUP(htank_vol,hdpe_bwt_cost_cl,3))) -> 3251.287138 | J108: =IF(I108="contact vendor","--",C108*I108) -> 3251.287138 | K108: =IF(htanks=0,"NA",VLOOKUP(htank_vol,hdpe_bwt_cost_cl,IF(ss_cat="large",4,5))) -> 20 | L108: 1 | M108: =$B$65&" - "&$B$104&" - "&B108 -> Tanks - Residuals Holding Tanks/Basins - Plastic/XLPE Tanks | N108: 1 | O108: 2 | P108: 4 | Q108: 1 | R108: 2 | S108: 4 | T108: 1 | U108: 2 | V108: 4 | W108: 1 | X108: 162.5643569
A109: 3.9 | B109: Hydrogen Peroxide Storage Tanks | W109: 0 | X109: 0
A110: 3.9.1 | B110: Plastic/XLPE | C110: =H2O2_tanks -> 0 | D110: units | E110: =IF(C110=0,"NA",H2O2_tank_vol) -> NA | F110: =IF(C110=0,"","gal") ->  | G110: =IF(C110=0,"NA",IF(curve=1,H2O2_tank_vol,VLOOKUP(H2O2_tank_vol,pl_cst_cost_cl,2))) -> NA | H110: =IF(C110=0,"","gal") ->  | I110: =IF(C110=0,"NA",IF(curve=1,pl_H2O2_st_eq,VLOOKUP(H2O2_tank_vol,pl_cst_cost_cl,3))) -> NA | J110: =IF(OR(C110=0,I110="contact vendor"),"--",C110*I110) -> -- | K110: =IF(C110=0,"NA",VLOOKUP(H2O2_tank_vol,pl_cst_cost_cl,IF(ss_cat="large",4,5))) -> NA | M110: =$B$65&" - "&$B$109&" - "&B110 -> Tanks - Hydrogen Peroxide Storage Tanks - Plastic/XLPE | N110: 1 | O110: 2 | P110: 2 | Q110: 1 | R110: 2 | S110: 2 | T110: 2 | U110: 2 | V110: 2 | W110: 0 | X110: 0
A111: 3.9.1 | B111: Stainless Steel | C111: =H2O2_tanks -> 0 | D111: units | E111: =IF(C111=0,"NA",H2O2_tank_vol) -> NA | F111: =IF(C111=0,"","gal") ->  | G111: =IF(C111=0,"NA",IF(curve=1,H2O2_tank_vol,VLOOKUP(H2O2_tank_vol,ss_cst_cost_cl,2))) -> NA | H111: =IF(C111=0,"","gal") ->  | I111: =IF(C111=0,"NA",IF(curve=1,ss_H2O2_st_eq,VLOOKUP(H2O2_tank_vol,ss_cst_cost_cl,3))) -> NA | J111: =IF(OR(C111=0,I111="contact vendor"),"--",C111*I111) -> -- | K111: =IF(C111=0,"NA",VLOOKUP(H2O2_tank_vol,ss_cst_cost_cl,IF(ss_cat="large",4,5))) -> NA | M111: =$B$65&" - "&$B$109&" - "&B111 -> Tanks - Hydrogen Peroxide Storage Tanks - Stainless Steel | N111: 2 | O111: 1 | P111: 1 | Q111: 2 | R111: 1 | S111: 1 | T111: 1 | U111: 1 | V111: 1 | W111: =IF(ISERROR(K111*L111),0,IF(K111<1,0,L111)) -> 0 | X111: =IF(W111,J111/K111,0) -> 0
A112: 3.9.2 | B112: Secondary Containment - Concrete Curbing | C112: =IF(OR(include_sec_cont=0,H2O2_tanks=0),0,H2O2_st_curb_concrete) -> 0 | D112: cy | E112: NA | G112: NA | I112: =IF(C112=0,"NA",VLOOKUP(0,conc_basin_cost_cl,3)) -> NA | J112: =IF(C112=0,"--",IF(I112="contact vendor","--",C112*I112)) -> -- | K112: =IF(C112=0,"NA",VLOOKUP(0,conc_basin_cost_cl,IF(ss_cat="large",4,5))) -> NA | M112: =$B$65&" - "&$B$109&" - "&B112 -> Tanks - Hydrogen Peroxide Storage Tanks - Secondary Containment - Concrete Curbing | N112: 1 | O112: 1 | P112: 1 | Q112: 1 | R112: 1 | S112: 1 | T112: 1 | U112: 1 | V112: 1 | W112: 0 | X112: 0
A113: 3.9.3 | B113: Secondary Containment - Chemical Resistant Coating | C113: =IF(OR(include_sec_cont=0,H2O2_tanks=0),0,H2O2_st_coating_gal) -> 0 | D113: gal | E113: NA | G113: NA | I113: =IF(C113=0,"NA",VLOOKUP(0,conc_coating_cost_cl,3)) -> NA | J113: =IF(C113=0,"--",IF(I113="contact vendor","--",C113*I113)) -> -- | K113: =IF(C113=0,"NA",VLOOKUP(0,conc_coating_cost_cl,IF(ss_cat="large",4,5))) -> NA | M113: =$B$65&" - "&$B$109&" - "&B113 -> Tanks - Hydrogen Peroxide Storage Tanks - Secondary Containment - Chemical Resistant Coating | N113: 1 | O113: 1 | P113: 1 | Q113: 1 | R113: 1 | S113: 1 | T113: 1 | U113: 1 | V113: 1 | W113: 0 | X113: 0
A114: 3.10 | B114: Hydrogen Peroxide Day Tanks | W114: 0 | X114: 0
A115: 3.10.1 | B115: Plastic/XLPE | C115: =H2O2_day_tanks -> 0 | D115: units | E115: =IF(C115=0,"NA",H2O2_day_tank_vol) -> NA | F115: =IF(C115=0,"","gal") ->  | G115: =IF(C115=0,"NA",IF(curve=1,H2O2_day_tank_vol,VLOOKUP(H2O2_day_tank_vol,pl_cst_cost_cl,2))) -> NA | H115: =IF(C115=0,"","gal") ->  | I115: =IF(C115=0,"NA",IF(curve=1,pl_H2O2_day_eq,VLOOKUP(H2O2_day_tank_vol,pl_cst_cost_cl,3))) -> NA | J115: =IF(OR(C115=0,I115="contact vendor"),"--",C115*I115) -> -- | K115: =IF(C115=0,"NA",VLOOKUP(H2O2_day_tank_vol,pl_cst_cost_cl,IF(ss_cat="large",4,5))) -> NA | M115: =$B$65&" - "&$B$114&" - "&B115 -> Tanks - Hydrogen Peroxide Day Tanks - Plastic/XLPE | N115: 1 | O115: 2 | P115: 2 | Q115: 1 | R115: 2 | S115: 2 | T115: 2 | U115: 2 | V115: 2 | W115: 0 | X115: 0
A116: 3.10.1 | B116: Stainless Steel | C116: =H2O2_day_tanks -> 0 | D116: units | E116: =IF(C116=0,"NA",H2O2_day_tank_vol) -> NA | F116: =IF(C116=0,"","gal") ->  | G116: =IF(C116=0,"NA",IF(curve=1,H2O2_day_tank_vol,VLOOKUP(H2O2_day_tank_vol,ss_cst_cost_cl,2))) -> NA | H116: =IF(C116=0,"","gal") ->  | I116: =IF(C116=0,"NA",IF(curve=1,ss_H2O2_day_eq,VLOOKUP(H2O2_day_tank_vol,ss_cst_cost_cl,3))) -> NA | J116: =IF(OR(C116=0,I116="contact vendor"),"--",C116*I116) -> -- | K116: =IF(C116=0,"NA",VLOOKUP(H2O2_day_tank_vol,ss_cst_cost_cl,IF(ss_cat="large",4,5))) -> NA | M116: =$B$65&" - "&$B$114&" - "&B116 -> Tanks - Hydrogen Peroxide Day Tanks - Stainless Steel | N116: 2 | O116: 1 | P116: 1 | Q116: 2 | R116: 1 | S116: 1 | T116: 1 | U116: 1 | V116: 1 | W116: 0 | X116: 0
A117: 3.10.2 | B117: Secondary Containment - Concrete Curbing | C117: =IF(OR(include_sec_cont=0,H2O2_day_tanks=0),0,H2O2_dt_curb_concrete) -> 0 | D117: cy | E117: NA | G117: NA | I117: =IF(C117=0,"NA",VLOOKUP(0,conc_basin_cost_cl,3)) -> NA | J117: =IF(C117=0,"--",IF(I117="contact vendor","--",C117*I117)) -> -- | K117: =IF(C117=0,"NA",VLOOKUP(0,conc_basin_cost_cl,IF(ss_cat="large",4,5))) -> NA | M117: =$B$65&" - "&$B$114&" - "&B117 -> Tanks - Hydrogen Peroxide Day Tanks - Secondary Containment - Concrete Curbing | N117: 1 | O117: 1 | P117: 1 | Q117: 1 | R117: 1 | S117: 1 | T117: 1 | U117: 1 | V117: 1 | W117: 0 | X117: 0
A118: 3.10.3 | B118: Secondary Containment - Chemical Resistant Coating | C118: =IF(OR(include_sec_cont=0,H2O2_day_tanks=0),0,H2O2_dt_coating_gal) -> 0 | D118: gal | E118: NA | G118: NA | I118: =IF(C118=0,"NA",VLOOKUP(0,conc_coating_cost_cl,3)) -> NA | J118: =IF(C118=0,"--",IF(I118="contact vendor","--",C118*I118)) -> -- | K118: =IF(C118=0,"NA",VLOOKUP(0,conc_coating_cost_cl,IF(ss_cat="large",4,5))) -> NA | M118: =$B$65&" - "&$B$114&" - "&B118 -> Tanks - Hydrogen Peroxide Day Tanks - Secondary Containment - Chemical Resistant Coating | N118: 1 | O118: 1 | P118: 1 | Q118: 1 | R118: 1 | S118: 1 | T118: 1 | U118: 1 | V118: 1 | W118: 0 | X118: 0
A119: 3.11 | B119: Aeration Tanks | W119: 0 | X119: 0
A120: 3.11.1 | B120: Steel | C120: =aeration_tanks -> 1 | D120: units | E120: =IF(C120=0,"NA",aeration_tank_vol) -> 22.28163993 | F120: =IF(C120=0,"","gal") -> gal | G120: =IF(C120=0,"NA",IF(curve=1,aeration_tank_vol,VLOOKUP(aeration_tank_vol,st_bwt_cost_cl,2))) -> 22.28163993 | H120: =IF(C120=0,"","gal") -> gal | I120: =IF(C120=0,"NA",IF(curve=1,st_aeration_eq,VLOOKUP(aeration_tank_vol,st_bwt_cost_cl,3))) -> 1720.161049 | J120: =IF(OR(C120=0,I120="contact vendor"),"--",C120*I120) -> 1720.161049 | K120: =IF(C120=0,"NA",VLOOKUP(aeration_tank_vol,st_bwt_cost_cl,IF(ss_cat="large",4,5))) -> 30 | L120: 0 | M120: =$B$65&" - "&$B$119&" - "&B120 -> Tanks - Aeration Tanks - Steel | N120: 3 | O120: 3 | P120: 1 | Q120: 3 | R120: 3 | S120: 1 | T120: 3 | U120: 3 | V120: 1 | W120: 0 | X120: 0
A121: 3.11.1 | B121: Fiberglass | C121: =aeration_tanks -> 1 | D121: units | E121: =IF(C121=0,"NA",aeration_tank_vol) -> 22.28163993 | F121: =IF(C121=0,"","gal") -> gal | G121: =IF(C121=0,"NA",IF(curve=1,aeration_tank_vol,VLOOKUP(aeration_tank_vol,fg_bwt_cost_cl,2))) -> 22.28163993 | H121: =IF(C121=0,"","gal") -> gal | I121: =IF(C121=0,"NA",IF(curve=1,fg_aeration_eq,VLOOKUP(aeration_tank_vol,fg_bwt_cost_cl,3))) -> 5427.756634 | J121: =IF(OR(C121=0,I121="contact vendor"),"--",C121*I121) -> 5427.756634 | K121: =IF(C121=0,"NA",VLOOKUP(aeration_tank_vol,fg_bwt_cost_cl,IF(ss_cat="large",4,5))) -> 20 | L121: 0 | M121: =$B$65&" - "&$B$119&" - "&B121 -> Tanks - Aeration Tanks - Fiberglass | N121: 2 | O121: 1 | P121: 2 | Q121: 2 | R121: 1 | S121: 2 | T121: 2 | U121: 1 | V121: 2 | W121: 0 | X121: 0
A122: 3.11.1 | B122: Plastic/XLPE | C122: =aeration_tanks -> 1 | D122: units | E122: =IF(C122=0,"NA",aeration_tank_vol) -> 22.28163993 | F122: =IF(C122=0,"","gal") -> gal | G122: =IF(C122=0,"NA",IF(curve=1,aeration_tank_vol,VLOOKUP(aeration_tank_vol,hdpe_bwt_cost_cl,2))) -> 22.28163993 | H122: =IF(C122=0,"","gal") -> gal | I122: =IF(C122=0,"NA",IF(curve=1,hdpe_aeration_eq,VLOOKUP(aeration_tank_vol,hdpe_bwt_cost_cl,3))) -> 1233.791003 | J122: =IF(OR(C122=0,I122="contact vendor"),"--",C122*I122) -> 1233.791003 | K122: =IF(C122=0,"NA",VLOOKUP(aeration_tank_vol,hdpe_bwt_cost_cl,IF(ss_cat="large",4,5))) -> 20 | L122: 1 | M122: =$B$65&" - "&$B$119&" - "&B122 -> Tanks - Aeration Tanks - Plastic/XLPE | N122: 1 | O122: 2 | P122: 3 | Q122: 1 | R122: 2 | S122: 3 | T122: 1 | U122: 2 | V122: 3 | W122: 1 | X122: 61.68955017
A123: 3.11.2 | B123: Diffusers | C123: =total_diffusers -> 1 | D123: units | E123: =diffuser_size -> 1.354166667 | F123: cfm | G123: =IF(curve=1,diffuser_size,VLOOKUP(diffuser_size,diffuser_cost_cl,2)) -> 1.354166667 | H123: cfm | I123: =IF(C123=0,"NA",IF(curve=1,diffuser_eq,VLOOKUP(diffuser_size,diffuser_cost_cl,3))) -> 44.95210612 | J123: =IF(OR(C123=0,I123="contact vendor"),"--",C123*I123) -> 44.95210612 | K123: =IF(C123=0,"NA",VLOOKUP(diffuser_size,diffuser_cost_cl,IF(ss_cat="large",4,5))) -> 10 | L123: 1 | M123: =$B$65&" - "&$B$119&" - "&B123 -> Tanks - Aeration Tanks - Diffusers | N123: 1 | O123: 1 | P123: 1 | Q123: 1 | R123: 1 | S123: 1 | T123: 1 | U123: 1 | V123: 1 | W123: 1 | X123: 4.495210612
A124: 3.12 | B124: Polymer Storage Tanks | W124: 0 | X124: 0
A125: 3.12.1 | B125: Plastic/XLPE | C125: =polymer_tanks -> 1 | D125: units | E125: =IF(C125=0,"NA",polymer_tank_vol) -> 14.2311675 | F125: =IF(C125=0,"","gal") -> gal | G125: =IF(C125=0,"NA",IF(curve=1,polymer_tank_vol,VLOOKUP(polymer_tank_vol,pl_cst_cost_cl,2))) -> 14.2311675 | H125: =IF(C125=0,"","gal") -> gal | I125: =IF(C125=0,"NA",IF(curve=1,pl_polymer_st_eq,VLOOKUP(polymer_tank_vol,pl_cst_cost_cl,3))) -> 813.0345977 | J125: =IF(OR(C125=0,I125="contact vendor"),"--",C125*I125) -> 813.0345977 | K125: =IF(C125=0,"NA",VLOOKUP(polymer_tank_vol,pl_cst_cost_cl,IF(ss_cat="large",4,5))) -> 7 | L125: 1 | M125: =$B$65&" - "&$B$124&" - "&B125 -> Tanks - Polymer Storage Tanks - Plastic/XLPE | N125: 1 | O125: 2 | P125: 3 | Q125: 1 | R125: 2 | S125: 3 | T125: 1 | U125: 2 | V125: 3 | W125: 1 | X125: 116.1477997
A126: 3.12.1 | B126: Fiberglass | C126: =polymer_tanks -> 1 | D126: units | E126: =IF(C126=0,"NA",polymer_tank_vol) -> 14.2311675 | F126: =IF(C126=0,"","gal") -> gal | G126: =IF(C126=0,"NA",IF(curve=1,polymer_tank_vol,VLOOKUP(polymer_tank_vol,fg_cst_cost_cl,2))) -> 14.2311675 | H126: =IF(C126=0,"","gal") -> gal | I126: =IF(C126=0,"NA",IF(curve=1,fg_polymer_st_eq,VLOOKUP(polymer_tank_vol,fg_cst_cost_cl,3))) -> 4702.622894 | J126: =IF(OR(C126=0,I126="contact vendor"),"--",C126*I126) -> 4702.622894 | K126: =IF(C126=0,"NA",VLOOKUP(polymer_tank_vol,fg_cst_cost_cl,IF(ss_cat="large",4,5))) -> 7 | L126: 0 | M126: =$B$65&" - "&$B$124&" - "&B126 -> Tanks - Polymer Storage Tanks - Fiberglass | N126: 2 | O126: 1 | P126: 2 | Q126: 2 | R126: 1 | S126: 2 | T126: 2 | U126: 1 | V126: 2 | W126: 0 | X126: 0
A127: 3.12.1 | B127: Stainless Steel | C127: =polymer_tanks -> 1 | D127: units | E127: =IF(C127=0,"NA",polymer_tank_vol) -> 14.2311675 | F127: =IF(C127=0,"","gal") -> gal | G127: =IF(C127=0,"NA",IF(curve=1,polymer_tank_vol,VLOOKUP(polymer_tank_vol,ss_cst_cost_cl,2))) -> 14.2311675 | H127: =IF(C127=0,"","gal") -> gal | I127: =IF(C127=0,"NA",IF(curve=1,ss_polymer_st_eq,VLOOKUP(polymer_tank_vol,ss_cst_cost_cl,3))) -> 4441.384855 | J127: =IF(OR(C127=0,I127="contact vendor"),"--",C127*I127) -> 4441.384855 | K127: =IF(C127=0,"NA",VLOOKUP(polymer_tank_vol,ss_cst_cost_cl,IF(ss_cat="large",4,5))) -> 30 | L127: 0 | M127: =$B$65&" - "&$B$124&" - "&B127 -> Tanks - Polymer Storage Tanks - Stainless Steel | N127: 3 | O127: 3 | P127: 1 | Q127: 3 | R127: 3 | S127: 1 | T127: 3 | U127: 3 | V127: 1 | W127: 0 | X127: 0
A128: 3.13 | B128: Coagulant Mix Tank | W128: 0 | X128: 0
A129: 3.13.1 | B129: Steel Tanks | C129: =coag_mix_tank -> 1 | D129: units | E129: =IF(C129=0,"NA",coag_mix_tank_size) -> 20.83333333 | F129: =IF(C129=0,"","gal") -> gal | G129: =IF(htanks=0,"NA",IF(curve=1,coag_mix_tank_size,VLOOKUP(coag_mix_tank_size,st_bwt_cost_cl,2))) -> 20.83333333 | H129: =IF(C129=0,"","gal") -> gal | I129: =IF(C129=0,0,IF(curve=1,st_coag_eq,VLOOKUP(coag_mix_tank_size,st_bwt_cost_cl,3))) -> 1660.90692 | J129: =IF(I129="contact vendor","--",C129*I129) -> 1660.90692 | K129: =IF(C129=0,"NA",VLOOKUP(coag_mix_tank_size,st_bwt_cost_cl,IF(ss_cat="large",4,5))) -> 30 | L129: 0 | M129: =$B$65&" - "&$B$128&" - "&B129 -> Tanks - Coagulant Mix Tank - Steel Tanks | N129: 3 | O129: 3 | P129: 1 | Q129: 3 | R129: 3 | S129: 1 | T129: 3 | U129: 3 | V129: 1 | W129: 0 | X129: 0
A130: 3.13.1 | B130: Fiberglass Tanks | C130: =coag_mix_tank -> 1 | D130: units | E130: =IF(C130=0,"NA",coag_mix_tank_size) -> 20.83333333 | F130: =IF(C130=0,"","gal") -> gal | G130: =IF(htanks=0,"NA",IF(curve=1,coag_mix_tank_size,VLOOKUP(coag_mix_tank_size,fg_bwt_cost_cl,2))) -> 20.83333333 | H130: =IF(C130=0,"","gal") -> gal | I130: =IF(C130=0,0,IF(curve=1,fg_coag_eq,VLOOKUP(coag_mix_tank_size,fg_bwt_cost_cl,3))) -> 5425.414553 | J130: =IF(I130="contact vendor","--",C130*I130) -> 5425.414553 | K130: =IF(C130=0,"NA",VLOOKUP(coag_mix_tank_size,fg_bwt_cost_cl,IF(ss_cat="large",4,5))) -> 20 | L130: 0 | M130: =$B$65&" - "&$B$128&" - "&B130 -> Tanks - Coagulant Mix Tank - Fiberglass Tanks | N130: 2 | O130: 1 | P130: 2 | Q130: 2 | R130: 1 | S130: 2 | T130: 2 | U130: 1 | V130: 2 | W130: 0 | X130: 0
A131: 3.13.1 | B131: Plastic/XLPE Tanks | C131: =coag_mix_tank -> 1 | D131: units | E131: =IF(C131=0,"NA",coag_mix_tank_size) -> 20.83333333 | F131: =IF(C131=0,"","gal") -> gal | G131: =IF(htanks=0,"NA",IF(curve=1,coag_mix_tank_size,VLOOKUP(coag_mix_tank_size,hdpe_bwt_cost_cl,2))) -> 20.83333333 | H131: =IF(C131=0,"","gal") -> gal | I131: =IF(C131=0,0,IF(curve=1,hdpe_coag_eq,VLOOKUP(coag_mix_tank_size,hdpe_bwt_cost_cl,3))) -> 1232.285565 | J131: =IF(I131="contact vendor","--",C131*I131) -> 1232.285565 | K131: =IF(C131=0,"NA",VLOOKUP(coag_mix_tank_size,hdpe_bwt_cost_cl,IF(ss_cat="large",4,5))) -> 20 | L131: 1 | M131: =$B$65&" - "&$B$128&" - "&B131 -> Tanks - Coagulant Mix Tank - Plastic/XLPE Tanks | N131: 1 | O131: 2 | P131: 3 | Q131: 1 | R131: 2 | S131: 3 | T131: 1 | U131: 2 | V131: 3 | W131: 1 | X131: 61.61427823
A132: 4 | B132: Piping | W132: 0 | X132: 0
A133: 4.1 | B133: Backwash Piping | W133: 0 | X133: 0
A134: 4.1.1 | B134: CPVC | C134: =back_pipe_length -> 50 | D134: lf | E134: =back_pipe_diam -> 4 | F134: in. diam | G134: =IF(curve=1,back_pipe_diam,VLOOKUP(back_pipe_diam,cpvc_pipe_cost_cl,2)) -> 4 | H134: in. diam | I134: =IF(curve=1,cpvc_pipe_eq_back,VLOOKUP(back_pipe_diam,cpvc_pipe_cost_cl,3)) -> 23.54869634 | J134: =IF(I134="contact vendor","--",C134*I134) -> 1177.434817 | K134: =VLOOKUP(back_pipe_diam,cpvc_pipe_cost_cl,IF(ss_cat="large",4,5)) -> 17 | L134: 0 | M134: =$B$132&" - "&$B$133&" - "&B134 -> Piping - Backwash Piping - CPVC | N134: 2 | O134: 1 | P134: 3 | Q134: 2 | R134: 1 | S134: 3 | T134: 2 | U134: 1 | V134: 3 | W134: 0 | X134: 0
A135: 4.1.1 | B135: PVC | C135: =back_pipe_length -> 50 | D135: lf | E135: =back_pipe_diam -> 4 | F135: in. diam | G135: =IF(curve=1,back_pipe_diam,VLOOKUP(back_pipe_diam,pvc_pipe_cost_cl,2)) -> 4 | H135: in. diam | I135: =IF(curve=1,pvc_pipe_eq_back,VLOOKUP(back_pipe_diam,pvc_pipe_cost_cl,3)) -> 5.098092277 | J135: =IF(I135="contact vendor","--",C135*I135) -> 254.9046139 | K135: =VLOOKUP(back_pipe_diam,pvc_pipe_cost_cl,IF(ss_cat="large",4,5)) -> 17 | L135: 1 | M135: =$B$132&" - "&$B$133&" - "&B135 -> Piping - Backwash Piping - PVC | N135: 1 | O135: 2 | P135: 4 | Q135: 1 | R135: 2 | S135: 4 | T135: 1 | U135: 2 | V135: 4 | W135: 1 | X135: 14.99438905
A136: 4.1.1 | B136: Stainless Steel | C136: =back_pipe_length -> 50 | D136: lf | E136: =back_pipe_diam -> 4 | F136: in. diam | G136: =IF(curve=1,back_pipe_diam,VLOOKUP(back_pipe_diam,ss_pipe_cost_cl,2)) -> 4 | H136: in. diam | I136: =IF(curve=1,ss_pipe_eq_back,VLOOKUP(back_pipe_diam,ss_pipe_cost_cl,3)) -> 116.0979744 | J136: =IF(I136="contact vendor","--",C136*I136) -> 5804.898721 | K136: =VLOOKUP(back_pipe_diam,ss_pipe_cost_cl,IF(ss_cat="large",4,5)) -> 40 | L136: 0 | M136: =$B$132&" - "&$B$133&" - "&B136 -> Piping - Backwash Piping - Stainless Steel | N136: 4 | O136: 4 | P136: 1 | Q136: 4 | R136: 4 | S136: 1 | T136: 4 | U136: 4 | V136: 1 | W136: 0 | X136: 0
A137: 4.1.1 | B137: Steel | C137: =back_pipe_length -> 50 | D137: lf | E137: =back_pipe_diam -> 4 | F137: in. diam | G137: =IF(curve=1,back_pipe_diam,VLOOKUP(back_pipe_diam,st_pipe_cost_cl,2)) -> 4 | H137: in. diam | I137: =IF(curve=1,st_pipe_eq_back,VLOOKUP(back_pipe_diam,st_pipe_cost_cl,3)) -> 69.72422494 | J137: =IF(I137="contact vendor","--",C137*I137) -> 3486.211247 | K137: =VLOOKUP(back_pipe_diam,st_pipe_cost_cl,IF(ss_cat="large",4,5)) -> 33 | L137: 0 | M137: =$B$132&" - "&$B$133&" - "&B137 -> Piping - Backwash Piping - Steel | N137: 3 | O137: 3 | P137: 2 | Q137: 3 | R137: 3 | S137: 2 | T137: 3 | U137: 3 | V137: 2 | W137: 0 | X137: 0
A138: 4.2 | B138: Electron Donor Piping | W138: 0 | X138: 0
A139: 4.2.1 | B139: CPVC | C139: =e_donor_pipe_length -> 20 | D139: lf | E139: =IF(C139=0,"NA",e_donor_pipe_diam) -> 0.5 | F139: =IF(C139=0,"","in diam") -> in diam | G139: =IF(C139=0,"NA",IF(curve=1,e_donor_pipe_diam,VLOOKUP(e_donor_pipe_diam,cpvc_pipe_cost_cl,2))) -> 0.5 | H139: in. diam | I139: =IF(C139=0,"NA",IF(curve=1,cpvc_pipe_eq_e_donor,VLOOKUP(e_donor_pipe_diam,cpvc_pipe_cost_cl,3))) -> 2.708213782 | J139: =IF(OR(C139=0,I139="contact vendor"),"--",C139*I139) -> 54.16427565 | K139: =IF(C139=0,"NA",VLOOKUP(e_donor_pipe_diam,cpvc_pipe_cost_cl,IF(ss_cat="large",4,5))) -> 17 | L139: 0 | M139: =$B$132&" - "&$B$138&" - "&B139 -> Piping - Electron Donor Piping - CPVC | N139: 2 | O139: 1 | P139: 3 | Q139: 2 | R139: 1 | S139: 3 | T139: 2 | U139: 1 | V139: 3 | W139: 0 | X139: 0
A140: 4.2.1 | B140: PVC | C140: =e_donor_pipe_length -> 20 | D140: lf | E140: =IF(C140=0,"NA",e_donor_pipe_diam) -> 0.5 | F140: =IF(C140=0,"","in diam") -> in diam | G140: =IF(C140=0,"NA",IF(curve=1,e_donor_pipe_diam,VLOOKUP(e_donor_pipe_diam,pvc_pipe_cost_cl,2))) -> 0.5 | H140: in. diam | I140: =IF(C140=0,"NA",IF(curve=1,pvc_pipe_eq_e_donor,VLOOKUP(e_donor_pipe_diam,pvc_pipe_cost_cl,3))) -> 2.536674476 | J140: =IF(OR(C140=0,I140="contact vendor"),"--",C140*I140) -> 50.73348952 | K140: =IF(C140=0,"NA",VLOOKUP(e_donor_pipe_diam,pvc_pipe_cost_cl,IF(ss_cat="large",4,5))) -> 17 | L140: 1 | M140: =$B$132&" - "&$B$138&" - "&B140 -> Piping - Electron Donor Piping - PVC | N140: 1 | O140: 2 | P140: 4 | Q140: 1 | R140: 2 | S140: 4 | T140: 1 | U140: 2 | V140: 4 | W140: 1 | X140: 2.984322913
A141: 4.2.1 | B141: Stainless Steel | C141: =e_donor_pipe_length -> 20 | D141: lf | E141: =IF(C141=0,"NA",e_donor_pipe_diam) -> 0.5 | F141: =IF(C141=0,"","in diam") -> in diam | G141: =IF(C141=0,"NA",IF(curve=1,e_donor_pipe_diam,VLOOKUP(e_donor_pipe_diam,ss_pipe_cost_cl,2))) -> 0.5 | H141: in. diam | I141: =IF(C141=0,"NA",IF(curve=1,ss_pipe_eq_e_donor,VLOOKUP(e_donor_pipe_diam,ss_pipe_cost_cl,3))) -> 15.23940334 | J141: =IF(OR(C141=0,I141="contact vendor"),"--",C141*I141) -> 304.7880668 | K141: =IF(C141=0,"NA",VLOOKUP(e_donor_pipe_diam,ss_pipe_cost_cl,IF(ss_cat="large",4,5))) -> 40 | L141: 0 | M141: =$B$132&" - "&$B$138&" - "&B141 -> Piping - Electron Donor Piping - Stainless Steel | N141: 4 | O141: 4 | P141: 1 | Q141: 4 | R141: 4 | S141: 1 | T141: 4 | U141: 4 | V141: 1 | W141: 0 | X141: 0
A142: 4.2.1 | B142: Steel | C142: =e_donor_pipe_length -> 20 | D142: lf | E142: =IF(C142=0,"NA",e_donor_pipe_diam) -> 0.5 | F142: =IF(C142=0,"","in diam") -> in diam | G142: =IF(C142=0,"NA",IF(curve=1,e_donor_pipe_diam,VLOOKUP(e_donor_pipe_diam,st_pipe_cost_cl,2))) -> 0.5 | H142: in. diam | I142: =IF(C142=0,"NA",IF(curve=1,st_pipe_eq_e_donor,VLOOKUP(e_donor_pipe_diam,st_pipe_cost_cl,3))) -> contact vendor | J142: =IF(OR(C142=0,I142="contact vendor"),"--",C142*I142) -> -- | K142: =IF(C142=0,"NA",VLOOKUP(e_donor_pipe_diam,st_pipe_cost_cl,IF(ss_cat="large",4,5))) -> 33 | L142: 0 | M142: =$B$132&" - "&$B$138&" - "&B142 -> Piping - Electron Donor Piping - Steel | N142: 3 | O142: 3 | P142: 2 | Q142: 3 | R142: 3 | S142: 2 | T142: 3 | U142: 3 | V142: 2 | W142: 0 | X142: 0
A143: 4.3 | B143: Ammonium Chloride Piping | W143: 0 | X143: 0
A144: 4.3.1 | B144: CPVC | C144: =NH4Cl_pipe_length -> 0 | D144: lf | E144: =IF(C144=0,"NA",NH4Cl_pipe_diam) -> NA | F144: =IF(C144=0,"","in diam") ->  | G144: =IF(C144=0,"NA",IF(curve=1,NH4Cl_pipe_diam,VLOOKUP(NH4Cl_pipe_diam,cpvc_pipe_cost_cl,2))) -> NA | H144: =IF(C144=0,"","in diam") ->  | I144: =IF(C144=0,"NA",IF(curve=1,cpvc_pipe_eq_NH4Cl,VLOOKUP(NH4Cl_pipe_diam,cpvc_pipe_cost_cl,3))) -> NA | J144: =IF(OR(C144=0,I144="contact vendor"),"--",C144*I144) -> -- | K144: =IF(C144=0,"NA",VLOOKUP(NH4Cl_pipe_diam,cpvc_pipe_cost_cl,IF(ss_cat="large",4,5))) -> NA | M144: =$B$132&" - "&$B$143&" - "&B144 -> Piping - Ammonium Chloride Piping - CPVC | N144: 2 | O144: 1 | P144: 3 | Q144: 2 | R144: 1 | S144: 3 | T144: 2 | U144: 1 | V144: 3 | W144: 0 | X144: 0
A145: 4.3.1 | B145: PVC | C145: =NH4Cl_pipe_length -> 0 | D145: lf | E145: =IF(C145=0,"NA",NH4Cl_pipe_diam) -> NA | F145: =IF(C145=0,"","in diam") ->  | G145: =IF(C145=0,"NA",IF(curve=1,NH4Cl_pipe_diam,VLOOKUP(NH4Cl_pipe_diam,pvc_pipe_cost_cl,2))) -> NA | H145: =IF(C145=0,"","in diam") ->  | I145: =IF(C145=0,"NA",IF(curve=1,pvc_pipe_eq_NH4Cl,VLOOKUP(NH4Cl_pipe_diam,pvc_pipe_cost_cl,3))) -> NA | J145: =IF(OR(C145=0,I145="contact vendor"),"--",C145*I145) -> -- | K145: =IF(C145=0,"NA",VLOOKUP(NH4Cl_pipe_diam,pvc_pipe_cost_cl,IF(ss_cat="large",4,5))) -> NA | M145: =$B$132&" - "&$B$143&" - "&B145 -> Piping - Ammonium Chloride Piping - PVC | N145: 1 | O145: 2 | P145: 4 | Q145: 1 | R145: 2 | S145: 4 | T145: 1 | U145: 2 | V145: 4 | W145: 0 | X145: 0
A146: 4.3.1 | B146: Stainless Steel | C146: =NH4Cl_pipe_length -> 0 | D146: lf | E146: =IF(C146=0,"NA",NH4Cl_pipe_diam) -> NA | F146: =IF(C146=0,"","in diam") ->  | G146: =IF(C146=0,"NA",IF(curve=1,NH4Cl_pipe_diam,VLOOKUP(NH4Cl_pipe_diam,ss_pipe_cost_cl,2))) -> NA | I146: =IF(C146=0,"NA",IF(curve=1,ss_pipe_eq_NH4Cl,VLOOKUP(NH4Cl_pipe_diam,ss_pipe_cost_cl,3))) -> NA | J146: =IF(OR(C146=0,I146="contact vendor"),"--",C146*I146) -> -- | K146: =IF(C146=0,"NA",VLOOKUP(NH4Cl_pipe_diam,ss_pipe_cost_cl,IF(ss_cat="large",4,5))) -> NA | M146: =$B$132&" - "&$B$143&" - "&B146 -> Piping - Ammonium Chloride Piping - Stainless Steel | N146: 4 | O146: 4 | P146: 1 | Q146: 4 | R146: 4 | S146: 1 | T146: 4 | U146: 4 | V146: 1 | W146: 0 | X146: 0
A147: 4.3.1 | B147: Steel | C147: =NH4Cl_pipe_length -> 0 | D147: lf | E147: =IF(C147=0,"NA",NH4Cl_pipe_diam) -> NA | F147: =IF(C147=0,"","in diam") ->  | G147: =IF(C147=0,"NA",IF(curve=1,NH4Cl_pipe_diam,VLOOKUP(NH4Cl_pipe_diam,st_pipe_cost_cl,2))) -> NA | I147: =IF(C147=0,"NA",IF(curve=1,st_pipe_eq_NH4Cl,VLOOKUP(NH4Cl_pipe_diam,st_pipe_cost_cl,3))) -> NA | J147: =IF(OR(C147=0,I147="contact vendor"),"--",C147*I147) -> -- | K147: =IF(C147=0,"NA",VLOOKUP(NH4Cl_pipe_diam,st_pipe_cost_cl,IF(ss_cat="large",4,5))) -> NA | M147: =$B$132&" - "&$B$143&" - "&B147 -> Piping - Ammonium Chloride Piping - Steel | N147: 3 | O147: 3 | P147: 2 | Q147: 3 | R147: 3 | S147: 2 | T147: 3 | U147: 3 | V147: 2 | W147: 0 | X147: 0
A148: 4.4 | B148: Phosphoric Acid Piping | W148: 0 | X148: 0
A149: 4.4.1 | B149: CPVC | C149: =H3PO4_pipe_length -> 20 | D149: lf | E149: =IF(C149=0,"NA",H3PO4_pipe_diam) -> 0.5 | F149: =IF(C149=0,"","in diam") -> in diam | G149: =IF(C149=0,"NA",IF(curve=1,H3PO4_pipe_diam,VLOOKUP(H3PO4_pipe_diam,cpvc_pipe_cost_cl,2))) -> 0.5 | H149: in diam | I149: =IF(C149=0,"NA",IF(curve=1,cpvc_pipe_eq_H3PO4,VLOOKUP(H3PO4_pipe_diam,cpvc_pipe_cost_cl,3))) -> 2.708213782 | J149: =IF(OR(C149=0,I149="contact vendor"),"--",C149*I149) -> 54.16427565 | K149: =IF(C149=0,"NA",VLOOKUP(H3PO4_pipe_diam,cpvc_pipe_cost_cl,IF(ss_cat="large",4,5))) -> 17 | L149: 0 | M149: =$B$132&" - "&$B$148&" - "&B149 -> Piping - Phosphoric Acid Piping - CPVC | N149: 2 | O149: 1 | P149: 3 | Q149: 2 | R149: 1 | S149: 3 | T149: 2 | U149: 1 | V149: 3 | W149: 0 | X149: 0
A150: 4.4.1 | B150: PVC | C150: =H3PO4_pipe_length -> 20 | D150: lf | E150: =IF(C150=0,"NA",H3PO4_pipe_diam) -> 0.5 | F150: =IF(C150=0,"","in diam") -> in diam | G150: =IF(C150=0,"NA",IF(curve=1,H3PO4_pipe_diam,VLOOKUP(H3PO4_pipe_diam,pvc_pipe_cost_cl,2))) -> 0.5 | H150: in diam | I150: =IF(C150=0,"NA",IF(curve=1,pvc_pipe_eq_H3PO4,VLOOKUP(H3PO4_pipe_diam,pvc_pipe_cost_cl,3))) -> 2.536674476 | J150: =IF(OR(C150=0,I150="contact vendor"),"--",C150*I150) -> 50.73348952 | K150: =IF(C150=0,"NA",VLOOKUP(H3PO4_pipe_diam,pvc_pipe_cost_cl,IF(ss_cat="large",4,5))) -> 17 | L150: 1 | M150: =$B$132&" - "&$B$148&" - "&B150 -> Piping - Phosphoric Acid Piping - PVC | N150: 1 | O150: 2 | P150: 4 | Q150: 1 | R150: 2 | S150: 4 | T150: 1 | U150: 2 | V150: 4 | W150: 1 | X150: 2.984322913
A151: 4.4.1 | B151: Stainless Steel | C151: =H3PO4_pipe_length -> 20 | D151: lf | E151: =IF(C151=0,"NA",H3PO4_pipe_diam) -> 0.5 | F151: =IF(C151=0,"","in diam") -> in diam | G151: =IF(C151=0,"NA",IF(curve=1,H3PO4_pipe_diam,VLOOKUP(H3PO4_pipe_diam,ss_pipe_cost_cl,2))) -> 0.5 | H151: in diam | I151: =IF(C151=0,"NA",IF(curve=1,ss_pipe_eq_H3PO4,VLOOKUP(H3PO4_pipe_diam,ss_pipe_cost_cl,3))) -> 15.23940334 | J151: =IF(OR(C151=0,I151="contact vendor"),"--",C151*I151) -> 304.7880668 | K151: =IF(C151=0,"NA",VLOOKUP(H3PO4_pipe_diam,ss_pipe_cost_cl,IF(ss_cat="large",4,5))) -> 40 | L151: 0 | M151: =$B$132&" - "&$B$148&" - "&B151 -> Piping - Phosphoric Acid Piping - Stainless Steel | N151: 4 | O151: 4 | P151: 1 | Q151: 4 | R151: 4 | S151: 1 | T151: 4 | U151: 4 | V151: 1 | W151: 0 | X151: 0
A152: 4.4.1 | B152: Steel | C152: =H3PO4_pipe_length -> 20 | D152: lf | E152: =IF(C152=0,"NA",H3PO4_pipe_diam) -> 0.5 | F152: =IF(C152=0,"","in diam") -> in diam | G152: =IF(C152=0,"NA",IF(curve=1,H3PO4_pipe_diam,VLOOKUP(H3PO4_pipe_diam,st_pipe_cost_cl,2))) -> 0.5 | H152: in diam | I152: =IF(C152=0,"NA",IF(curve=1,st_pipe_eq_H3PO4,VLOOKUP(H3PO4_pipe_diam,st_pipe_cost_cl,3))) -> contact vendor | J152: =IF(OR(C152=0,I152="contact vendor"),"--",C152*I152) -> -- | K152: =IF(C152=0,"NA",VLOOKUP(H3PO4_pipe_diam,st_pipe_cost_cl,IF(ss_cat="large",4,5))) -> 33 | L152: 0 | M152: =$B$132&" - "&$B$148&" - "&B152 -> Piping - Phosphoric Acid Piping - Steel | N152: 3 | O152: 3 | P152: 2 | Q152: 3 | R152: 3 | S152: 2 | T152: 3 | U152: 3 | V152: 2 | W152: 0 | X152: 0
A153: 4.5 | B153: Process Piping | W153: 0 | X153: 0
A154: 4.5.1 | B154: Ductile Iron | C154: =proc_pipe_length -> 40 | D154: lf | E154: =proc_pipe_diam -> 1.5 | F154: in. diam | G154: =IF(curve=1,proc_pipe_diam,VLOOKUP(proc_pipe_diam,di_pipe_cost_cl,2)) -> 1.5 | H154: in. diam | I154: =IF(curve=1,di_pipe_eq_proc,VLOOKUP(proc_pipe_diam,di_pipe_cost_cl,3)) -> contact vendor | J154: =IF(I154="contact vendor","--",C154*I154) -> -- | K154: =VLOOKUP(proc_pipe_diam,di_pipe_cost_cl,IF(ss_cat="large",4,5)) -> 35 | L154: 0 | M154: =$B$132&" - "&$B$153&" "&" - "&B154 -> Piping - Process Piping - Ductile Iron | N154: 3 | O154: 3 | P154: 3 | Q154: 3 | R154: 3 | S154: 3 | T154: 3 | U154: 3 | V154: 3 | W154: 0 | X154: 0
A155: 4.5.1 | B155: CPVC | C155: =proc_pipe_length -> 40 | D155: lf | E155: =proc_pipe_diam -> 1.5 | F155: in. diam | G155: =IF(curve=1,proc_pipe_diam,VLOOKUP(proc_pipe_diam,cpvc_pipe_cost_cl,2)) -> 1.5 | H155: in. diam | I155: =IF(curve=1,cpvc_pipe_eq_proc,VLOOKUP(proc_pipe_diam,cpvc_pipe_cost_cl,3)) -> 7.094422356 | J155: =IF(I155="contact vendor","--",C155*I155) -> 283.7768942 | K155: =VLOOKUP(proc_pipe_diam,cpvc_pipe_cost_cl,IF(ss_cat="large",4,5)) -> 17 | L155: 0 | M155: =$B$132&" - "&$B$153&" "&" - "&B155 -> Piping - Process Piping - CPVC | N155: 2 | O155: 1 | P155: 4 | Q155: 2 | R155: 1 | S155: 4 | T155: 2 | U155: 1 | V155: 4 | W155: 0 | X155: 0
A156: 4.5.1 | B156: PVC | C156: =proc_pipe_length -> 40 | D156: lf | E156: =proc_pipe_diam -> 1.5 | F156: in. diam | G156: =IF(curve=1,proc_pipe_diam,VLOOKUP(proc_pipe_diam,pvc_pipe_cost_cl,2)) -> 1.5 | H156: in. diam | I156: =IF(curve=1,pvc_pipe_eq_proc,VLOOKUP(proc_pipe_diam,pvc_pipe_cost_cl,3)) -> 2.992616126 | J156: =IF(I156="contact vendor","--",C156*I156) -> 119.704645 | K156: =VLOOKUP(proc_pipe_diam,pvc_pipe_cost_cl,IF(ss_cat="large",4,5)) -> 17 | L156: 1 | M156: =$B$132&" - "&$B$153&" "&" - "&B156 -> Piping - Process Piping - PVC | N156: 1 | O156: 2 | P156: 5 | Q156: 1 | R156: 2 | S156: 5 | T156: 1 | U156: 2 | V156: 5 | W156: 1 | X156: 7.041449708
A157: 4.5.1 | B157: Stainless Steel | C157: =proc_pipe_length -> 40 | D157: lf | E157: =proc_pipe_diam -> 1.5 | F157: in. diam | G157: =IF(curve=1,proc_pipe_diam,VLOOKUP(proc_pipe_diam,ss_pipe_cost_cl,2)) -> 1.5 | H157: in. diam | I157: =IF(curve=1,ss_pipe_eq_proc,VLOOKUP(proc_pipe_diam,ss_pipe_cost_cl,3)) -> 48.76188922 | J157: =IF(I157="contact vendor","--",C157*I157) -> 1950.475569 | K157: =VLOOKUP(proc_pipe_diam,ss_pipe_cost_cl,IF(ss_cat="large",4,5)) -> 40 | L157: 0 | M157: =$B$132&" - "&$B$153&" "&" - "&B157 -> Piping - Process Piping - Stainless Steel | N157: 5 | O157: 5 | P157: 1 | Q157: 5 | R157: 5 | S157: 1 | T157: 5 | U157: 5 | V157: 1 | W157: 0 | X157: 0
A158: 4.5.1 | B158: Steel | C158: =proc_pipe_length -> 40 | D158: lf | E158: =proc_pipe_diam -> 1.5 | F158: in. diam | G158: =IF(curve=1,proc_pipe_diam,VLOOKUP(proc_pipe_diam,st_pipe_cost_cl,2)) -> 1.5 | H158: in. diam | I158: =IF(curve=1,st_pipe_eq_proc,VLOOKUP(proc_pipe_diam,st_pipe_cost_cl,3)) -> 25.18777166 | J158: =IF(I158="contact vendor","--",C158*I158) -> 1007.510866 | K158: =VLOOKUP(proc_pipe_diam,st_pipe_cost_cl,IF(ss_cat="large",4,5)) -> 33 | L158: 0 | M158: =$B$132&" - "&$B$153&" "&" - "&B158 -> Piping - Process Piping - Steel | N158: 4 | O158: 4 | P158: 2 | Q158: 4 | R158: 4 | S158: 2 | T158: 4 | U158: 4 | V158: 2 | W158: 0 | X158: 0
A159: 4.6 | B159: Bypass Piping | W159: 0 | X159: 0
A160: 4.6.1 | B160: CPVC | C160: =bp_pipe_length -> 0 | D160: lf | E160: =IF(bp_pct>0,bp_pipe_diam,"NA") -> NA | F160: =IF(bp_pct=0," ","in. diam") ->  | G160: =IF(bp_pct=0,"NA",IF(curve=1,bp_pipe_diam,VLOOKUP(bp_pipe_diam,cpvc_pipe_cost_cl,2))) -> NA | H160: =IF(bp_pct=0," ","in. diam") ->  | I160: =IF(bp_pct=0,"NA",IF(curve=1,cpvc_pipe_eq_bp,VLOOKUP(bp_pipe_diam,cpvc_pipe_cost_cl,3))) -> NA | J160: =IF(bp_pct=0,0,IF(I160="contact vendor","--",C160*I160)) -> 0 | K160: =IF(bp_pct=0,"NA",VLOOKUP(bp_pipe_diam,cpvc_pipe_cost_cl,IF(ss_cat="large",4,5))) -> NA | M160: =$B$132&" - "&$B$159&" "&" - "&B160 -> Piping - Bypass Piping - CPVC | N160: 2 | O160: 1 | P160: 3 | Q160: 2 | R160: 1 | S160: 3 | T160: 2 | U160: 1 | V160: 3 | W160: 0 | X160: 0
A161: 4.6.1 | B161: PVC | C161: =bp_pipe_length -> 0 | D161: lf | E161: =IF(bp_pct>0,bp_pipe_diam,"NA") -> NA | F161: =IF(bp_pct=0," ","in. diam") ->  | G161: =IF(bp_pct=0,"NA",IF(curve=1,bp_pipe_diam,VLOOKUP(bp_pipe_diam,pvc_pipe_cost_cl,2))) -> NA | H161: =IF(bp_pct=0," ","in. diam") ->  | I161: =IF(bp_pct=0,"NA",IF(curve=1,pvc_pipe_eq_bp,VLOOKUP(bp_pipe_diam,pvc_pipe_cost_cl,3))) -> NA | J161: =IF(bp_pct=0,0,IF(I161="contact vendor","--",C161*I161)) -> 0 | K161: =IF(bp_pct=0,"NA",VLOOKUP(bp_pipe_diam,pvc_pipe_cost_cl,IF(ss_cat="large",4,5))) -> NA | M161: =$B$132&" - "&$B$159&" "&" - "&B161 -> Piping - Bypass Piping - PVC | N161: 1 | O161: 2 | P161: 4 | Q161: 1 | R161: 2 | S161: 4 | T161: 1 | U161: 2 | V161: 4 | W161: 0 | X161: 0
A162: 4.6.1 | B162: Stainless Steel | C162: =bp_pipe_length -> 0 | D162: lf | E162: =IF(bp_pct>0,bp_pipe_diam,"NA") -> NA | F162: =IF(bp_pct=0," ","in. diam") ->  | G162: =IF(bp_pct=0,"NA",IF(curve=1,bp_pipe_diam,VLOOKUP(bp_pipe_diam,ss_pipe_cost_cl,2))) -> NA | H162: =IF(bp_pct=0," ","in. diam") ->  | I162: =IF(bp_pct=0,"NA",IF(curve=1,ss_pipe_eq_bp,VLOOKUP(bp_pipe_diam,ss_pipe_cost_cl,3))) -> NA | J162: =IF(bp_pct=0,0,IF(I162="contact vendor","--",C162*I162)) -> 0 | K162: =IF(bp_pct=0,"NA",VLOOKUP(bp_pipe_diam,ss_pipe_cost_cl,IF(ss_cat="large",4,5))) -> NA | M162: =$B$132&" - "&$B$159&" "&" - "&B162 -> Piping - Bypass Piping - Stainless Steel | N162: 4 | O162: 4 | P162: 1 | Q162: 4 | R162: 4 | S162: 1 | T162: 4 | U162: 4 | V162: 1 | W162: 0 | X162: 0
A163: 4.6.1 | B163: Steel | C163: =bp_pipe_length -> 0 | D163: lf | E163: =IF(bp_pct>0,bp_pipe_diam,"NA") -> NA | F163: =IF(bp_pct=0," ","in. diam") ->  | G163: =IF(bp_pct=0,"NA",IF(curve=1,bp_pipe_diam,VLOOKUP(bp_pipe_diam,st_pipe_cost_cl,2))) -> NA | H163: =IF(bp_pct=0," ","in. diam") ->  | I163: =IF(bp_pct=0,"NA",IF(curve=1,st_pipe_eq_bp,VLOOKUP(bp_pipe_diam,st_pipe_cost_cl,3))) -> NA | J163: =IF(bp_pct=0,0,IF(I163="contact vendor","--",C163*I163)) -> 0 | K163: =IF(bp_pct=0,"NA",VLOOKUP(bp_pipe_diam,st_pipe_cost_cl,IF(ss_cat="large",4,5))) -> NA | M163: =$B$132&" - "&$B$159&" "&" - "&B163 -> Piping - Bypass Piping - Steel | N163: 3 | O163: 3 | P163: 2 | Q163: 3 | R163: 3 | S163: 2 | T163: 3 | U163: 3 | V163: 2 | W163: 0 | X163: 0
A164: 4.7 | B164: Inlet and Outlet Piping | W164: 0 | X164: 0
A165: 4.7.1 | B165: Ductile Iron | C165: =in_out_pipe_length -> 40 | D165: lf | E165: =in_out_pipe_diam -> 1.5 | F165: in. diam | G165: =IF(curve=1,in_out_pipe_diam,VLOOKUP(in_out_pipe_diam,di_pipe_cost_cl,2)) -> 1.5 | H165: in. diam | I165: =IF(curve=1,di_pipe_eq_in_out,VLOOKUP(in_out_pipe_diam,di_pipe_cost_cl,3)) -> contact vendor | J165: =IF(I165="contact vendor","--",C165*I165) -> -- | K165: =VLOOKUP(in_out_pipe_diam,di_pipe_cost_cl,IF(ss_cat="large",4,5)) -> 35 | L165: 0 | M165: =$B$132&" - "&$B$164&" "&" - "&B165 -> Piping - Inlet and Outlet Piping - Ductile Iron | N165: 3 | O165: 3 | P165: 3 | Q165: 3 | R165: 3 | S165: 3 | T165: 3 | U165: 3 | V165: 3 | W165: 0 | X165: 0
A166: 4.7.1 | B166: CPVC | C166: =in_out_pipe_length -> 40 | D166: lf | E166: =in_out_pipe_diam -> 1.5 | F166: in. diam | G166: =IF(curve=1,in_out_pipe_diam,VLOOKUP(in_out_pipe_diam,cpvc_pipe_cost_cl,2)) -> 1.5 | H166: in. diam | I166: =IF(curve=1,cpvc_pipe_eq_in_out,VLOOKUP(in_out_pipe_diam,cpvc_pipe_cost_cl,3)) -> 7.094422356 | J166: =IF(I166="contact vendor","--",C166*I166) -> 283.7768942 | K166: =VLOOKUP(in_out_pipe_diam,cpvc_pipe_cost_cl,IF(ss_cat="large",4,5)) -> 17 | L166: 0 | M166: =$B$132&" - "&$B$164&" "&" - "&B166 -> Piping - Inlet and Outlet Piping - CPVC | N166: 2 | O166: 1 | P166: 4 | Q166: 2 | R166: 1 | S166: 4 | T166: 2 | U166: 1 | V166: 4 | W166: 0 | X166: 0
A167: 4.7.1 | B167: PVC | C167: =in_out_pipe_length -> 40 | D167: lf | E167: =in_out_pipe_diam -> 1.5 | F167: in. diam | G167: =IF(curve=1,in_out_pipe_diam,VLOOKUP(in_out_pipe_diam,pvc_pipe_cost_cl,2)) -> 1.5 | H167: in. diam | I167: =IF(curve=1,pvc_pipe_eq_in_out,VLOOKUP(in_out_pipe_diam,pvc_pipe_cost_cl,3)) -> 2.992616126 | J167: =IF(I167="contact vendor","--",C167*I167) -> 119.704645 | K167: =VLOOKUP(in_out_pipe_diam,pvc_pipe_cost_cl,IF(ss_cat="large",4,5)) -> 17 | L167: 1 | M167: =$B$132&" - "&$B$164&" "&" - "&B167 -> Piping - Inlet and Outlet Piping - PVC | N167: 1 | O167: 2 | P167: 5 | Q167: 1 | R167: 2 | S167: 5 | T167: 1 | U167: 2 | V167: 5 | W167: 1 | X167: 7.041449708
A168: 4.7.1 | B168: Stainless Steel | C168: =in_out_pipe_length -> 40 | D168: lf | E168: =in_out_pipe_diam -> 1.5 | F168: in. diam | G168: =IF(curve=1,in_out_pipe_diam,VLOOKUP(in_out_pipe_diam,ss_pipe_cost_cl,2)) -> 1.5 | H168: in. diam | I168: =IF(curve=1,ss_pipe_eq_in_out,VLOOKUP(in_out_pipe_diam,ss_pipe_cost_cl,3)) -> 48.76188922 | J168: =IF(I168="contact vendor","--",C168*I168) -> 1950.475569 | K168: =VLOOKUP(in_out_pipe_diam,ss_pipe_cost_cl,IF(ss_cat="large",4,5)) -> 40 | L168: 0 | M168: =$B$132&" - "&$B$164&" "&" - "&B168 -> Piping - Inlet and Outlet Piping - Stainless Steel | N168: 5 | O168: 5 | P168: 1 | Q168: 5 | R168: 5 | S168: 1 | T168: 5 | U168: 5 | V168: 1 | W168: 0 | X168: 0
A169: 4.7.1 | B169: Steel | C169: =in_out_pipe_length -> 40 | D169: lf | E169: =in_out_pipe_diam -> 1.5 | F169: in. diam | G169: =IF(curve=1,in_out_pipe_diam,VLOOKUP(in_out_pipe_diam,st_pipe_cost_cl,2)) -> 1.5 | H169: in. diam | I169: =IF(curve=1,st_pipe_eq_in_out,VLOOKUP(in_out_pipe_diam,st_pipe_cost_cl,3)) -> 25.18777166 | J169: =IF(I169="contact vendor","--",C169*I169) -> 1007.510866 | K169: =VLOOKUP(in_out_pipe_diam,st_pipe_cost_cl,IF(ss_cat="large",4,5)) -> 33 | L169: 0 | M169: =$B$132&" - "&$B$164&" "&" - "&B169 -> Piping - Inlet and Outlet Piping - Steel | N169: 4 | O169: 4 | P169: 2 | Q169: 4 | R169: 4 | S169: 2 | T169: 4 | U169: 4 | V169: 2 | W169: 0 | X169: 0
A170: 4.8 | B170: Residuals Piping | W170: 0 | X170: 0
A171: 4.8.1 | B171: CPVC | C171: =res_pipe_length -> 60 | D171: lf | E171: =res_pipe_diam -> 1 | F171: in. diam | G171: =IF(curve=1,res_pipe_diam,VLOOKUP(res_pipe_diam,cpvc_pipe_cost_cl,2)) -> 1 | H171: in. diam | I171: =IF(curve=1,cpvc_pipe_eq_res,VLOOKUP(res_pipe_diam,cpvc_pipe_cost_cl,3)) -> 4.752264088 | J171: =IF(I171="contact vendor","--",C171*I171) -> 285.1358453 | K171: =VLOOKUP(res_pipe_diam,cpvc_pipe_cost_cl,IF(ss_cat="large",4,5)) -> 17 | L171: 0 | M171: =$B$132&" - "&$B$170&" "&" - "&B171 -> Piping - Residuals Piping - CPVC | N171: 2 | O171: 1 | P171: 3 | Q171: 2 | R171: 1 | S171: 3 | T171: 2 | U171: 1 | V171: 3 | W171: 0 | X171: 0
A172: 4.8.1 | B172: PVC | C172: =res_pipe_length -> 60 | D172: lf | E172: =res_pipe_diam -> 1 | F172: in. diam | G172: =IF(curve=1,res_pipe_diam,VLOOKUP(res_pipe_diam,pvc_pipe_cost_cl,2)) -> 1 | H172: in. diam | I172: =IF(curve=1,pvc_pipe_eq_res,VLOOKUP(res_pipe_diam,pvc_pipe_cost_cl,3)) -> 2.7370561 | J172: =IF(I172="contact vendor","--",C172*I172) -> 164.223366 | K172: =VLOOKUP(res_pipe_diam,pvc_pipe_cost_cl,IF(ss_cat="large",4,5)) -> 17 | L172: 1 | M172: =$B$132&" - "&$B$170&" "&" - "&B172 -> Piping - Residuals Piping - PVC | N172: 1 | O172: 2 | P172: 4 | Q172: 1 | R172: 2 | S172: 4 | T172: 1 | U172: 2 | V172: 4 | W172: 1 | X172: 9.660198
A173: 4.8.1 | B173: Stainless Steel | C173: =res_pipe_length -> 60 | D173: lf | E173: =res_pipe_diam -> 1 | F173: in. diam | G173: =IF(curve=1,res_pipe_diam,VLOOKUP(res_pipe_diam,ss_pipe_cost_cl,2)) -> 1 | H173: in. diam | I173: =IF(curve=1,ss_pipe_eq_res,VLOOKUP(res_pipe_diam,ss_pipe_cost_cl,3)) -> 32.5057023 | J173: =IF(I173="contact vendor","--",C173*I173) -> 1950.342138 | K173: =VLOOKUP(res_pipe_diam,ss_pipe_cost_cl,IF(ss_cat="large",4,5)) -> 40 | L173: 0 | M173: Piping - Residuals Piping - Stainless Steel | N173: 4 | O173: 4 | P173: 1 | Q173: 4 | R173: 4 | S173: 1 | T173: 4 | U173: 4 | V173: 1 | W173: 0 | X173: 0
A174: 4.8.1 | B174: Steel | C174: =res_pipe_length -> 60 | D174: lf | E174: =res_pipe_diam -> 1 | F174: in. diam | G174: =IF(curve=1,res_pipe_diam,VLOOKUP(res_pipe_diam,st_pipe_cost_cl,2)) -> 1 | H174: in. diam | I174: =IF(curve=1,st_pipe_eq_res,VLOOKUP(res_pipe_diam,st_pipe_cost_cl,3)) -> 15.38678202 | J174: =IF(I174="contact vendor","--",C174*I174) -> 923.2069209 | K174: =VLOOKUP(res_pipe_diam,st_pipe_cost_cl,IF(ss_cat="large",4,5)) -> 33 | L174: 0 | M174: Piping - Residuals Piping - Steel | N174: 3 | O174: 3 | P174: 2 | Q174: 3 | R174: 3 | S174: 2 | T174: 3 | U174: 3 | V174: 2 | W174: 0 | X174: 0
A175: 4.8.2 | B175: Excavation | C175: =res_trench_vol -> 0 | D175: cy | E175: NA | G175: NA | I175: =IF(C175=0,"NA",VLOOKUP(0,excavate_cost_cl,3)) -> NA | J175: =IF(OR(I175="contact vendor",C175=0),"--",C175*I175) -> -- | K175: =IF(C175=0,"NA",SUMPRODUCT(L171:L174,K171:K174)) -> NA | M175: Piping - Residuals Piping - Excavation | N175: 1 | O175: 1 | P175: 1 | Q175: 1 | R175: 1 | S175: 1 | T175: 1 | U175: 1 | V175: 1 | W175: 0 | X175: 0
A176: 4.8.3 | B176: Bedding | C176: =res_pipe_bedding_vol -> 0 | D176: cy | E176: NA | G176: NA | I176: =IF(C176=0,"NA",VLOOKUP(0,bedding_cost_cl,3)) -> NA | J176: =IF(OR(I176="contact vendor",C176=0),"--",C176*I176) -> -- | K176: =IF(C176=0,"NA",SUMPRODUCT(L171:L174,K171:K174)) -> NA | M176: Piping - Residuals Piping - Bedding | N176: 1 | O176: 1 | P176: 1 | Q176: 1 | R176: 1 | S176: 1 | T176: 1 | U176: 1 | V176: 1 | W176: 0 | X176: 0
A177: 4.8.4 | B177: Backfill and Compaction | C177: =res_trench_vol -> 0 | D177: cy | E177: NA | G177: NA | I177: =IF(C177=0,"NA",VLOOKUP(0,backfill_cost_cl,3)) -> NA | J177: =IF(OR(I177="contact vendor",C177=0),"--",C177*I177) -> -- | K177: =IF(C177=0,"NA",SUMPRODUCT(L171:L174,K171:K174)) -> NA | M177: Piping - Residuals Piping - Backfill and Compaction | N177: 1 | O177: 1 | P177: 1 | Q177: 1 | R177: 1 | S177: 1 | T177: 1 | U177: 1 | V177: 1 | W177: 0 | X177: 0
A178: 4.8.5 | B178: Thrust Blocks | C178: =res_block_vol -> 0 | D178: cy | E178: NA | G178: NA | I178: =IF(C178=0,"NA",VLOOKUP(0,conc_basin_cost_cl,3)) -> NA | J178: =IF(OR(I178="contact vendor",C178=0),"--",C178*I178) -> -- | K178: =IF(C178=0,"NA",SUMPRODUCT(L171:L174,K171:K174)) -> NA | M178: Piping - Residuals Piping - Thrust Blocks | N178: 1 | O178: 1 | P178: 1 | Q178: 1 | R178: 1 | S178: 1 | T178: 1 | U178: 1 | V178: 1 | W178: 0 | X178: 0
A179: 4.9 | B179: Fluidized Bed Recycle Piping | W179: =IF(ISERROR(K179*L179),0,IF(K179<1,0,L179)) -> 0 | X179: =IF(W179,J179/K179,0) -> 0
A180: 4.9.1 | B180: CPVC | C180: =recycle_pipe_length -> 0 | D180: lf | E180: =IF(C180>0,recycle_pipe_diam,"NA") -> NA | F180: =IF(C180=0," ","in. diam") ->  | G180: =IF(C180=0,"NA",IF(curve=1,recycle_pipe_diam,VLOOKUP(recycle_pipe_diam,cpvc_pipe_cost_cl,2))) -> NA | H180: =IF(C180=0," ","in. diam") ->  | I180: =IF(C180=0,"NA",IF(curve=1,cpvc_pipe_eq_rec,VLOOKUP(recycle_pipe_diam,cpvc_pipe_cost_cl,3))) -> NA | J180: =IF(C180=0,0,IF(I180="contact vendor","--",C180*I180)) -> 0 | K180: =IF(C180=0,"NA",VLOOKUP(recycle_pipe_diam,cpvc_pipe_cost_cl,IF(ss_cat="large",4,5))) -> NA | M180: =$B$132&" - "&$B$179&" "&" - "&B180 -> Piping - Fluidized Bed Recycle Piping - CPVC | N180: 2 | O180: 1 | P180: 3 | Q180: 2 | R180: 1 | S180: 3 | T180: 2 | U180: 1 | V180: 3 | W180: 0 | X180: 0
A181: 4.9.1 | B181: PVC | C181: =recycle_pipe_length -> 0 | D181: lf | E181: =IF(C181>0,recycle_pipe_diam,"NA") -> NA | F181: =IF(C181=0," ","in. diam") ->  | G181: =IF(C181=0,"NA",IF(curve=1,recycle_pipe_diam,VLOOKUP(recycle_pipe_diam,pvc_pipe_cost_cl,2))) -> NA | H181: =IF(C181=0," ","in. diam") ->  | I181: =IF(C181=0,"NA",IF(curve=1,pvc_pipe_eq_rec,VLOOKUP(recycle_pipe_diam,pvc_pipe_cost_cl,3))) -> NA | J181: =IF(C181=0,0,IF(I181="contact vendor","--",C181*I181)) -> 0 | K181: =IF(C181=0,"NA",VLOOKUP(recycle_pipe_diam,pvc_pipe_cost_cl,IF(ss_cat="large",4,5))) -> NA | M181: =$B$132&" - "&$B$179&" "&" - "&B181 -> Piping - Fluidized Bed Recycle Piping - PVC | N181: 1 | O181: 2 | P181: 4 | Q181: 1 | R181: 2 | S181: 4 | T181: 1 | U181: 2 | V181: 4 | W181: 0 | X181: 0
A182: 4.9.1 | B182: Stainless Steel | C182: =recycle_pipe_length -> 0 | D182: lf | E182: =IF(C182>0,recycle_pipe_diam,"NA") -> NA | F182: =IF(C182=0," ","in. diam") ->  | G182: =IF(C182=0,"NA",IF(curve=1,recycle_pipe_diam,VLOOKUP(recycle_pipe_diam,ss_pipe_cost_cl,2))) -> NA | H182: =IF(C182=0," ","in. diam") ->  | I182: =IF(C182=0,"NA",IF(curve=1,ss_pipe_eq_rec,VLOOKUP(recycle_pipe_diam,ss_pipe_cost_cl,3))) -> NA | J182: =IF(C182=0,0,IF(I182="contact vendor","--",C182*I182)) -> 0 | K182: =IF(C182=0,"NA",VLOOKUP(recycle_pipe_diam,ss_pipe_cost_cl,IF(ss_cat="large",4,5))) -> NA | M182: =$B$132&" - "&$B$179&" "&" - "&B182 -> Piping - Fluidized Bed Recycle Piping - Stainless Steel | N182: 4 | O182: 4 | P182: 1 | Q182: 4 | R182: 4 | S182: 1 | T182: 4 | U182: 4 | V182: 1 | W182: 0 | X182: 0
A183: 4.9.1 | B183: Steel | C183: =recycle_pipe_length -> 0 | D183: lf | E183: =IF(C183>0,recycle_pipe_diam,"NA") -> NA | F183: =IF(C183=0," ","in. diam") ->  | G183: =IF(C183=0,"NA",IF(curve=1,recycle_pipe_diam,VLOOKUP(recycle_pipe_diam,st_pipe_cost_cl,2))) -> NA | H183: =IF(C183=0," ","in. diam") ->  | I183: =IF(C183=0,"NA",IF(curve=1,st_pipe_eq_rec,VLOOKUP(recycle_pipe_diam,st_pipe_cost_cl,3))) -> NA | J183: =IF(C183=0,0,IF(I183="contact vendor","--",C183*I183)) -> 0 | K183: =IF(C183=0,"NA",VLOOKUP(recycle_pipe_diam,st_pipe_cost_cl,IF(ss_cat="large",4,5))) -> NA | M183: =$B$132&" - "&$B$179&" "&" - "&B183 -> Piping - Fluidized Bed Recycle Piping - Steel | N183: 3 | O183: 3 | P183: 2 | Q183: 3 | R183: 3 | S183: 2 | T183: 3 | U183: 3 | V183: 2 | W183: 0 | X183: 0
A184: 4.1 | B184: Dilute Hydrogen Peroxide Piping | W184: 0 | X184: 0
A185: 4.10.1 | B185: CPVC | C185: =H202_pipe_length -> 0 | D185: lf | E185: =IF(C185=0,"NA",H202_pipe_diam) -> NA | F185: =IF(C185=0,"","in diam") ->  | G185: =IF(C185=0,"NA",IF(curve=1,H202_pipe_diam,VLOOKUP(H202_pipe_diam,cpvc_pipe_cost_cl,2))) -> NA | H185: =IF(C185=0,"","in diam") ->  | I185: =IF(C185=0,"NA",IF(curve=1,cpvc_pipe_eq_H2O2,VLOOKUP(H202_pipe_diam,cpvc_pipe_cost_cl,3))) -> NA | J185: =IF(OR(C185=0,I185="contact vendor"),"--",C185*I185) -> -- | K185: =IF(C185=0,"NA",VLOOKUP(H202_pipe_diam,cpvc_pipe_cost_cl,IF(ss_cat="large",4,5))) -> NA | M185: =$B$132&" - "&$B$184&" - "&B185 -> Piping - Dilute Hydrogen Peroxide Piping - CPVC | N185: 2 | O185: 1 | P185: 3 | Q185: 2 | R185: 1 | S185: 3 | T185: 2 | U185: 1 | V185: 3 | W185: 0 | X185: 0
A186: 4.10.1 | B186: PVC | C186: =H202_pipe_length -> 0 | D186: lf | E186: =IF(C186=0,"NA",H202_pipe_diam) -> NA | F186: =IF(C186=0,"","in diam") ->  | G186: =IF(C186=0,"NA",IF(curve=1,H202_pipe_diam,VLOOKUP(H202_pipe_diam,pvc_pipe_cost_cl,2))) -> NA | H186: =IF(C186=0,"","in diam") ->  | I186: =IF(C186=0,"NA",IF(curve=1,pvc_pipe_eq_H2O2,VLOOKUP(H202_pipe_diam,pvc_pipe_cost_cl,3))) -> NA | J186: =IF(OR(C186=0,I186="contact vendor"),"--",C186*I186) -> -- | K186: =IF(C186=0,"NA",VLOOKUP(H202_pipe_diam,pvc_pipe_cost_cl,IF(ss_cat="large",4,5))) -> NA | M186: =$B$132&" - "&$B$184&" - "&B186 -> Piping - Dilute Hydrogen Peroxide Piping - PVC | N186: 1 | O186: 2 | P186: 4 | Q186: 1 | R186: 2 | S186: 4 | T186: 1 | U186: 2 | V186: 4 | W186: 0 | X186: 0
A187: 4.10.1 | B187: Stainless Steel | C187: =H202_pipe_length -> 0 | D187: lf | E187: =IF(C187=0,"NA",H202_pipe_diam) -> NA | F187: =IF(C187=0,"","in diam") ->  | G187: =IF(C187=0,"NA",IF(curve=1,H202_pipe_diam,VLOOKUP(H202_pipe_diam,ss_pipe_cost_cl,2))) -> NA | H187: =IF(C187=0,"","in diam") ->  | I187: =IF(C187=0,"NA",IF(curve=1,ss_pipe_eq_H2O2,VLOOKUP(H202_pipe_diam,ss_pipe_cost_cl,3))) -> NA | J187: =IF(OR(C187=0,I187="contact vendor"),"--",C187*I187) -> -- | K187: =IF(C187=0,"NA",VLOOKUP(H202_pipe_diam,ss_pipe_cost_cl,IF(ss_cat="large",4,5))) -> NA | M187: =$B$132&" - "&$B$184&" - "&B187 -> Piping - Dilute Hydrogen Peroxide Piping - Stainless Steel | N187: 4 | O187: 4 | P187: 1 | Q187: 4 | R187: 4 | S187: 1 | T187: 4 | U187: 4 | V187: 1 | W187: 0 | X187: 0
A188: 4.10.1 | B188: Steel | C188: =H202_pipe_length -> 0 | D188: lf | E188: =IF(C188=0,"NA",H202_pipe_diam) -> NA | F188: =IF(C188=0,"","in diam") ->  | G188: =IF(C188=0,"NA",IF(curve=1,H202_pipe_diam,VLOOKUP(H202_pipe_diam,st_pipe_cost_cl,2))) -> NA | H188: =IF(C188=0,"","in diam") ->  | I188: =IF(C188=0,"NA",IF(curve=1,st_pipe_eq_H2O2,VLOOKUP(H202_pipe_diam,st_pipe_cost_cl,3))) -> NA | J188: =IF(OR(C188=0,I188="contact vendor"),"--",C188*I188) -> -- | K188: =IF(C188=0,"NA",VLOOKUP(H202_pipe_diam,st_pipe_cost_cl,IF(ss_cat="large",4,5))) -> NA | M188: =$B$132&" - "&$B$184&" - "&B188 -> Piping - Dilute Hydrogen Peroxide Piping - Steel | N188: 3 | O188: 3 | P188: 2 | Q188: 3 | R188: 3 | S188: 2 | T188: 3 | U188: 3 | V188: 2 | W188: 0 | X188: 0
A189: 4.11 | B189: Polymer Addition Piping | W189: 0 | X189: 0
A190: 4.11.1 | B190: CPVC | C190: =polymer_pipe_length -> 20 | D190: lf | E190: =IF(C190=0,"NA",polymer_pipe_diam) -> 0.5 | F190: =IF(C190=0,"","in diam") -> in diam | G190: =IF(C190=0,"NA",IF(curve=1,polymer_pipe_diam,VLOOKUP(polymer_pipe_diam,cpvc_pipe_cost_cl,2))) -> 0.5 | H190: =IF(C190=0,"","in diam") -> in diam | I190: =IF(C190=0,"NA",IF(curve=1,cpvc_pipe_eq_polymer,VLOOKUP(polymer_pipe_diam,cpvc_pipe_cost_cl,3))) -> 2.708213782 | J190: =IF(OR(C190=0,I190="contact vendor"),"--",C190*I190) -> 54.16427565 | K190: =IF(C190=0,"NA",VLOOKUP(polymer_pipe_diam,cpvc_pipe_cost_cl,IF(ss_cat="large",4,5))) -> 17 | L190: 0 | M190: =$B$132&" - "&$B$189&" - "&B190 -> Piping - Polymer Addition Piping - CPVC | N190: 2 | O190: 1 | P190: 3 | Q190: 2 | R190: 1 | S190: 3 | T190: 2 | U190: 1 | V190: 3 | W190: 0 | X190: 0
A191: 4.11.1 | B191: PVC | C191: =polymer_pipe_length -> 20 | D191: lf | E191: =IF(C191=0,"NA",polymer_pipe_diam) -> 0.5 | F191: =IF(C191=0,"","in diam") -> in diam | G191: =IF(C191=0,"NA",IF(curve=1,polymer_pipe_diam,VLOOKUP(polymer_pipe_diam,pvc_pipe_cost_cl,2))) -> 0.5 | H191: =IF(C191=0,"","in diam") -> in diam | I191: =IF(C191=0,"NA",IF(curve=1,pvc_pipe_eq_polymer,VLOOKUP(polymer_pipe_diam,pvc_pipe_cost_cl,3))) -> 2.536674476 | J191: =IF(OR(C191=0,I191="contact vendor"),"--",C191*I191) -> 50.73348952 | K191: =IF(C191=0,"NA",VLOOKUP(polymer_pipe_diam,pvc_pipe_cost_cl,IF(ss_cat="large",4,5))) -> 17 | L191: 1 | M191: =$B$132&" - "&$B$189&" - "&B191 -> Piping - Polymer Addition Piping - PVC | N191: 1 | O191: 2 | P191: 4 | Q191: 1 | R191: 2 | S191: 4 | T191: 1 | U191: 2 | V191: 4 | W191: 1 | X191: 2.984322913
A192: 4.11.1 | B192: Stainless Steel | C192: =polymer_pipe_length -> 20 | D192: lf | E192: =IF(C192=0,"NA",polymer_pipe_diam) -> 0.5 | F192: =IF(C192=0,"","in diam") -> in diam | G192: =IF(C192=0,"NA",IF(curve=1,polymer_pipe_diam,VLOOKUP(polymer_pipe_diam,ss_pipe_cost_cl,2))) -> 0.5 | H192: =IF(C192=0,"","in diam") -> in diam | I192: =IF(C192=0,"NA",IF(curve=1,ss_pipe_eq_polymer,VLOOKUP(polymer_pipe_diam,ss_pipe_cost_cl,3))) -> 15.23940334 | J192: =IF(OR(C192=0,I192="contact vendor"),"--",C192*I192) -> 304.7880668 | K192: =IF(C192=0,"NA",VLOOKUP(polymer_pipe_diam,ss_pipe_cost_cl,IF(ss_cat="large",4,5))) -> 40 | L192: 0 | M192: =$B$132&" - "&$B$189&" - "&B192 -> Piping - Polymer Addition Piping - Stainless Steel | N192: 4 | O192: 4 | P192: 1 | Q192: 4 | R192: 4 | S192: 1 | T192: 4 | U192: 4 | V192: 1 | W192: 0 | X192: 0
A193: 4.11.1 | B193: Steel | C193: =polymer_pipe_length -> 20 | D193: lf | E193: =IF(C193=0,"NA",polymer_pipe_diam) -> 0.5 | F193: =IF(C193=0,"","in diam") -> in diam | G193: =IF(C193=0,"NA",IF(curve=1,polymer_pipe_diam,VLOOKUP(polymer_pipe_diam,st_pipe_cost_cl,2))) -> 0.5 | H193: =IF(C193=0,"","in diam") -> in diam | I193: =IF(C193=0,"NA",IF(curve=1,st_pipe_eq_polymer,VLOOKUP(polymer_pipe_diam,st_pipe_cost_cl,3))) -> contact vendor | J193: =IF(OR(C193=0,I193="contact vendor"),"--",C193*I193) -> -- | K193: =IF(C193=0,"NA",VLOOKUP(polymer_pipe_diam,st_pipe_cost_cl,IF(ss_cat="large",4,5))) -> 33 | L193: 0 | M193: =$B$132&" - "&$B$189&" - "&B193 -> Piping - Polymer Addition Piping - Steel | N193: 3 | O193: 3 | P193: 2 | Q193: 3 | R193: 3 | S193: 2 | T193: 3 | U193: 3 | V193: 2 | W193: 0 | X193: 0
A194: 5 | B194: Valves and Fittings | W194: 0 | X194: 0
A195: 5.1 | B195: Motor/Air Operated (on/off) | W195: 0 | X195: 0
A196: 5.1.1 | B196: Process - Polypropylene/PVC | C196: =tot_proc_MOVs -> 10 | D196: units | E196: =tank_valve_size -> 1.5 | F196: in. diam | G196: =IF(curve=1,tank_valve_size,VLOOKUP(tank_valve_size,pp_mov_cost_cl,2)) -> 1.5 | H196: in. diam | I196: =IF(curve=1,pp_mov_eq_tank,VLOOKUP(tank_valve_size,pp_mov_cost_cl,3)) -> 613.1208175 | J196: =IF(I196="contact vendor","--",C196*I196) -> 6131.208175 | K196: =VLOOKUP(tank_valve_size,pp_mov_cost_cl,IF(ss_cat="large",4,5)) -> 20 | L196: 1 | M196: =$B$194&" - "&$B$195&" - "&B196 -> Valves and Fittings - Motor/Air Operated (on/off) - Process - Polypropylene/PVC | N196: 1 | O196: 2 | P196: 3 | Q196: 1 | R196: 2 | S196: 3 | T196: 1 | U196: 2 | V196: 3 | W196: 1 | X196: 306.5604087
A197: 5.1.1 | B197: Process - Stainless Steel | C197: =tot_proc_MOVs -> 10 | D197: units | E197: =tank_valve_size -> 1.5 | F197: in. diam | G197: =IF(curve=1,tank_valve_size,VLOOKUP(tank_valve_size,ss_mov_cost_cl,2)) -> 1.5 | H197: in. diam | I197: =IF(curve=1,ss_mov_eq_tank,VLOOKUP(tank_valve_size,ss_mov_cost_cl,3)) -> 963.2431708 | J197: 9632.431708 | K197: =VLOOKUP(tank_valve_size,ss_mov_cost_cl,IF(ss_cat="large",4,5)) -> 20 | L197: 0 | M197: =$B$194&" - "&$B$195&" - "&B197 -> Valves and Fittings - Motor/Air Operated (on/off) - Process - Stainless Steel | N197: 3 | O197: 3 | P197: 1 | Q197: 3 | R197: 3 | S197: 1 | T197: 3 | U197: 3 | V197: 1 | W197: 0 | X197: 0
A198: 5.1.1 | B198: Process - Cast Iron | C198: =tot_proc_MOVs -> 10 | D198: units | E198: =tank_valve_size -> 1.5 | F198: in. diam | G198: =IF(curve=1,tank_valve_size,VLOOKUP(tank_valve_size,ci_mov_cost_cl,2)) -> 1.5 | H198: in. diam | I198: =IF(curve=1,ss_mov_eq_tank,VLOOKUP(tank_valve_size,ci_mov_cost_cl,3)) -> 963.2431708 | J198: 9632.431708 | K198: =VLOOKUP(tank_valve_size,ci_mov_cost_cl,IF(ss_cat="large",4,5)) -> 20 | L198: 0 | M198: Valves and Fittings - Motor/Air Operated (on/off) - Process - Cast Iron | N198: 2 | O198: 1 | P198: 2 | Q198: 2 | R198: 1 | S198: 2 | T198: 2 | U198: 1 | V198: 2 | W198: 0 | X198: 0
A199: 5.1.2 | B199: Backwash - Polypropylene/PVC | C199: =tot_back_MOVs -> 9 | D199: units | E199: =back_valve_size -> 4 | F199: in. diam | G199: =IF(curve=1,back_valve_size,VLOOKUP(back_valve_size,pp_mov_cost_cl,2)) -> 4 | H199: in. diam | I199: =IF(curve=1,pp_mov_eq_back,VLOOKUP(back_valve_size,pp_mov_cost_cl,3)) -> 1043.428139 | J199: 9390.85325 | K199: =VLOOKUP(back_valve_size,pp_mov_cost_cl,IF(ss_cat="large",4,5)) -> 20 | L199: 1 | M199: Valves and Fittings - Motor/Air Operated (on/off) - Backwash - Polypropylene/PVC | N199: 1 | O199: 2 | P199: 3 | Q199: 1 | R199: 2 | S199: 3 | T199: 1 | U199: 2 | V199: 3 | W199: 1 | X199: 469.5426625
A200: 5.1.2 | B200: Backwash - Stainless Steel | C200: =tot_back_MOVs -> 9 | D200: units | E200: =back_valve_size -> 4 | F200: in. diam | G200: =IF(curve=1,back_valve_size,VLOOKUP(back_valve_size,ss_mov_cost_cl,2)) -> 4 | H200: in. diam | I200: =IF(curve=1,ss_mov_eq_back,VLOOKUP(back_valve_size,ss_mov_cost_cl,3)) -> 3003.454802 | J200: 27031.09322 | K200: =VLOOKUP(back_valve_size,ss_mov_cost_cl,IF(ss_cat="large",4,5)) -> 20 | L200: 0 | M200: Valves and Fittings - Motor/Air Operated (on/off) - Backwash - Stainless Steel | N200: 3 | O200: 3 | P200: 1 | Q200: 3 | R200: 3 | S200: 1 | T200: 3 | U200: 3 | V200: 1 | W200: 0 | X200: 0
A201: 5.1.2 | B201: Backwash - Cast Iron | C201: =tot_back_MOVs -> 9 | D201: units | E201: =back_valve_size -> 4 | F201: in. diam | G201: =IF(curve=1,back_valve_size,VLOOKUP(back_valve_size,ci_mov_cost_cl,2)) -> 4 | H201: in. diam | I201: =IF(curve=1,ci_mov_eq_back,VLOOKUP(back_valve_size,ci_mov_cost_cl,3)) -> 1770.315857 | J201: 15932.84272 | K201: =VLOOKUP(back_valve_size,ci_mov_cost_cl,IF(ss_cat="large",4,5)) -> 20 | L201: 0 | M201: Valves and Fittings - Motor/Air Operated (on/off) - Backwash - Cast Iron | N201: 2 | O201: 1 | P201: 2 | Q201: 2 | R201: 1 | S201: 2 | T201: 2 | U201: 1 | V201: 2 | W201: 0 | X201: 0
... 410 more rows

Sheet Critical Design Assumptions
A1: Default Critical Design Assumptions
A2: Users may change any of the cells in the Value column; cells in gold are most important and may vary based on contaminant treated and site-specific conditions
A4: Assumption | B4: Range Name | C4: Value | D4: Units | E4: Guidance
A5: Cost estimating method | B5: curve | C5: 1 | D5: <-- enter 1 to use cost equations, leave blank to use lookup tables for component costs | E5: Keeping this assumption with a value of 1 is strongly recommended; the cost equations method is more appropriate for national cost estimating and will be more accurate for nearly all user-specified designs
A7: Treatment Flow
A8: Percent of Total Flow that is Bypassed | B8: bp_pct | C8: 0 | E8: Typically, bypass flow ranges between 0% and 50% of inflow. Enter zero to remove bypass piping and components. 0% is default consistent with the type of cost curves that EPA will need for its national cost simulation model.
A9: Minimum average flow as percentage of design | B9: min_avg_flow | C9: 0.1 | E9: The minimum ratio of average flow to design flow. If the ratio falls below this value, it will trigger a warning on the INPUT sheet. If this value is zero, no minimum is enforced.
A11: Bioreactor Design (both system types)
A12: Number of redundant bioreactorvessels for small systems with only one vessel | B12: NRD_small_1 | C12: 1 | D12: units | E12: If a design includes only one operating vessel, there should be at least one additional vessel
A13: Number of redundant bioreactor vessels for small systems with multiple vessels | B13: NRD_small | C13: 0 | D13: units | E13: Small systems can operate at reduced capacity while one vessel is down for backwash, if there are multiple vessels
A14: Add a redundant bioreactor per x parallel lines (Fixed bed designs only) | B14: redund_freq | C14: 8 | D14: number of parallel lines/redundant unit
A15: Loading rate minimum | B15: load_min | C15: 1 | D15: gpm/square ft | E15: Harding ESE, 2001
A16: Loading rate maximum | B16: load_max | C16: 10 | D16: gpm/square ft | E16: Harding ESE, 2001
A17: GAC bulk density | B17: GAC_density | C17: 30 | D17: lbs/cubic ft | E17: Bulk density, not particle density. GAC density range of 22-30 lb/cubic ft; lignite GAC approximately 22 and bituminous GAC approximately 28 lb/cubic ft (Randal J. Braker, General Manager, Duck River Utility Commission)
A19: Pressure Vessel Design
A20: Maximum vessel height (circular vessels) | B20: max_height | C20: 24 | D20: feet
A21: Maximum vessel diameter | B21: max_diam_override | C21: 14 | D21: feet | E21: Maximum vessel diameter will be chosen from a table of conventional sizes for commercial vessels, unless entered here. Systems have used vessels up to 14' diam and height in practice (AWWA Inorganic Contaminants Workshop 2006)
A22: Maximum vessel length (longitudinal vessels) | B22: max_length | C22: 53 | D22: feet | E22: Limitation on transportation is 53 feet in length
A23: Free board above media at full expansion (fixed bed designs) | B23: free_board | C23: 1 | D23: feet
A24: Underdrain space for horizontal vessels | B24: horiz_underdrain | C24: 1.5 | D24: feet | E24: 1.5 feet is a conservative value for a 10' tank. Bob Dvorin, 5/16/05.
A25: Vessel thickness of wall | B25: Vessel_thickness | C25: 0 | D25: feet | E25: Set to zero because vendor designs and quotes are usually expressed in inside diameter. Increase if user desires to input outside diameter.
A26: Ratio of length to diameter for horizontal vessels | B26: length_diam_ratio | C26: 2.5 | E26: Used only for autosize procedure
A27: Minimum bed depth for autosize | B27: min_bed_depth | C27: 2 | D27: feet
A28: Maximum bed depth for autosize | B28: max_bed_depth | C28: 12 | D28: feet
A29: Target Bed Depth (Designs < 1MGD) | B29: target_bed_depth_under | C29: 4 | D29: feet | E29: Used only for autosize procedure
A30: Target Bed Depth (Designs > 1 MGD) | B30: target_bed_depth_over | C30: 5 | D30: feet | E30: Used only for autosize procedure
A31: Target Fluidized Bed Depth (Designs < 1MGD) | B31: target_bed_depth_under_fluid | C31: 5 | D31: feet | E31: Used only for autosize procedure
A32: Target Fluidized Bed Depth (Designs > 1 MGD) | B32: target_bed_depth_over_fluid | C32: 10 | D32: feet | E32: Used only for autosize procedure
A33: Biomass Seperator Air Scour Volume for fluidized beds | B33: biomass_air_scour | C33: 0.3 | D33: CFH/gpm | E33: 15 CFH air for 50 gpm water treated (U.S. DoD, 2009)
A34: Volume Tolerance, vertical vessels <1 mgd | B34: vol_tol_vert_small | C34: 0.5 | E34: Used to check size compatibility of specified volume with required volume
A35: Volume Tolerance, vertical vessels >1 mgd | B35: vol_tol_vert_med | C35: 0.4
A36: Volume Tolerance, horizontal vessels | B36: vol_tol_horiz | C36: 0.4
A37: Recycle % for fluidized beds | B37: recycle_fluid | C37: 0.5 | E37: Guidance: Typical recycle rates are 30-80%
A38: Bed expansion during backwash | B38: bed_expansion | C38: 0.5
A39: Media Expansion when fluidized | B39: bed_expansion_fluidized | C39: 0.7
A40: Freeboard above fully expanded media (Design < 1MGD) | B40: freeboard_fluidized_small | C40: 4 | D40: ft | E40: Guidance: 3 to 5 ft
A41: Freeboard above fully expanded media (Design > 1MGD) | B41: freeboard_fluidized | C41: 7 | D41: ft | E41: Guidance: 6 to 8 ft
A43: Gravity Basin Design
A44: Number of redundant bioreactor basins for medium systems | B44: NRD_basins_medium | C44: 1 | D44: units
A45: Number of redundant bioreactor basins for large systems | B45: NRD_basins_large | C45: 2 | D45: units
A46: Basin freeboard above filter media at full expansion | B46: basin_freeboard | C46: 2 | D46: ft
A47: Maximum bed depth (gravity) | B47: max_depth | C47: 10 | D47: ft | E47: Guidance: Typical gravity bed depths are 3-10 feet
A48: Minimum bed depth (gravity) | B48: min_depth | C48: 3 | D48: ft | E48: Guidance: Typical gravity bed depths are 3-10 feet
A49: Maximum basin width | B49: max_width | C49: 30 | D49: ft
A50: Minimum basin width | B50: min_width | C50: 3 | D50: ft
A51: Maximum basin length | B51: max_length_g | C51: 30 | D51: ft
A52: Minimum basin length | B52: min_length_g | C52: 3 | D52: ft
A53: Target Bed Depth (Gravity Designs < 1MGD) | B53: target_bed_depth_under_g | C53: 5 | D53: feet | E53: Used only for autosize procedure
A54: Target Bed Depth (Gravity Designs > 1 MGD) | B54: target_bed_depth_over_g | C54: 5 | D54: feet | E54: Used only for autosize procedure
A55: Number of stair risers for storage basins | B55: risers | C55: 15 | D55: risers | E55: This assumption used only if concrete basins are used.
A56: Concrete thickness for storage basins | B56: conc_thick | C56: 1 | D56: ft | E56: This assumption used only if concrete basins are used.
A57: Overexcavation for storage basins | B57: overexcavate | C57: 4 | D57: ft | E57: 2 feet each side in each dimension. This assumption used only if concrete basins are used.
A59: Post-Treatment Design
A60: Aeration Tank Residence Time | B60: hrt_aeration | C60: 8 | D60: min | E60: US DoD 2009
A61: Aeration Rate | B61: rate_aeration | C61: 6.5 | D61: scfm/100gpm | E61: US DoD 2009
A62: Hydrogen Peroxide Dose | B62: H2O2_dose | C62: 6 | D62: mg/L | E62: 4-8 mg/L (US DoD, 2008)
A63: Percent grade of H2O2 | B63: H2O2_grade | C63: 0.5
A64: Specific gravity of H2O2 at the indicated grade | B64: H2O2_sg | C64: 1.19 | E64: FMC Corporation, MSDS for 40-60% H2O2, http://www.h2o2.com/intro/FMC_MSDS_40_to_60.pdf
A65: Diluted concentration to be fed | B65: H2O2_dilute_conc | C65: 0.05 | E65: Hydrogen peroxide is added to water as a dilute solution (MWH, Water Treatment: Principles and Design, second edition, page 552 and Table 8-4).
A66: Number of static mixers for H2O2 addition | B66: n_mixers | C66: 1 | D66: units
A67: EBCT for Filtration | B67: ebct_filt | C67: 10 | D67: min | E67: (US DoD, 2008)
A68: Bed Depth for Filtration < 0.1 MGD | B68: bed_depth_filt_small | C68: 5 | D68: ft
A69: Bed Depth for Filtration 0.1 MGD-10 MGD | B69: bed_depth_filt | C69: 7 | D69: ft | E69: (US DoD, 2008)
A70: Bed Depth for Filtration > 10 MGD | B70: bed_depth_filt_large | C70: 9 | D70: ft
A71: Filter loading rate minimum | B71: load_min_filt | C71: 1 | D71: gpm/square ft | E71: used in autosize routine
A72: Filter loading rate maximum | B72: load_max_filt | C72: 10 | D72: gpm/square ft | E72: used in autosize routine
A73: Number of redundant polishing filters for small systems with only one vessel | B73: filt_NRD_small_1 | C73: 1 | D73: units | E73: If a design includes only one operatingfilter, there should be at least one additional vessel
A74: Number of redundant polishing filters for small systems with multiple vessels | B74: filt_NRD_small | C74: 0 | D74: units | E74: Small systems can operate at reduced capacity while one filter is down for backwash, if there are multiple filters
A75: Number of redundant polishing filters for medium systems | B75: filt_NRD_basins_medium | C75: 1 | D75: units
A76: Number of redundant polishing filters for large systems | B76: filt_NRD_basins_large | C76: 2 | D76: units
A77: Bed expansion during backwash | B77: filt_bed_expansion | C77: 0.5
A78: Basin freeboard above filter media at full expansion | B78: filt_freeboard | C78: 2 | D78: ft
A79: Fraction of media anthracite | B79: anthracite_fraction | C79: 0.67 | E79: =IF(SUM(C79:C82)<>1,"WARNING: Total of fractions for each media type must sum to 1","Media fractions OK") -> Media fractions OK
A80: Fraction of media sand | B80: sand_fraction | C80: 0.33 | E80: =IF(AND(COUNTIF(C79:C82,".0")=0,COUNTIF(C79:C82,".0")>3),"Number of different media used should be between 1 and 3.","Number of media used is OK.") -> Number of media used is OK.
A81: Fraction of media garnet/ilmenite | B81: garnet_fraction | C81: 0 | E81: =IF(COUNTIF(C79:C82,".0")=1,"Single",IF(COUNTIF(C79:C82,".0")=2,"Dual",IF(COUNTIF(C79:C82,".0")=3,"Triple","Error with "))) -> Dual
A82: Fraction of media GAC | B82: GAC_fraction | C82: 0
A83: Anthracite density | B83: anthracite_density | C83: 50 | D83: lb/cubic ft
A84: Garnet density | B84: garnet_density | C84: 140 | D84: lb/cubic ft | E84: Clack Corporation information bulletin
A85: Coagulant dosage prior to post-treatment filtration | B85: coag_dose_filt | C85: 10 | D85: mg/L | E85: Coagulant is presumed to be ferric chloride
A86: Coagulant bulk density | B86: coag_density_filt | C86: 43 | D86: lb/ft3 | E86: For chemical storage area calculations
A87: Coagulant mix time prior to filtration | B87: coag_mix_time | C87: 60 | D87: seconds | E87: American Water Works Association and American Society of Civil Engineers. Water Treatment Plant Design. Third Edition. New York: McGraw Hill, 1998. Pp 92. Detention times of 10-60 s; see also Viessman and Hammer, 1993, and others
A88: Coagulant mix tank mixer horsepower | B88: mix_hp_per | C88: 0.25 | D88: hp per 1,000 gallons
A89: Minimum coagulant tank mixer horsepower | B89: min_mix_hp | C89: =1/3 -> 0.3333333333 | D89: hp
A91: Pumping
A92: Safety factor for pumps | B92: pump_safety_factor | C92: 0.25
A93: Redundant booster pumps | B93: NRD_pumps | C93: 0 | D93: pumps | E93: Multiple pump approach eliminates need for redundant pumps.
A94: Redundant backwash pumps | B94: NRD_back_pumps | C94: 1 | D94: pump
A95: Redundant recycle pumps | B95: NRD_recycle_pumps | C95: 1 | D95: pump
A96: Number of redundant chemical metering pumps | B96: NRD_cm_pump | C96: 1 | D96: pumps
A97: Minimum chemical feed pump size | B97: min_chem_flow | C97: 0.13 | D97: gph | E97: Metering pumps will be designed to meet this minimum
A99: Electron Donor/Nutrient Properties
A100: Acetic Acid density | B100: CH3NOOH_dens | C100: 8.42 | D100: lbs/gal | E100: Specific gravity of 1.049 for 100% acetic acid translates to 1.009 for 20% acetic acid
A101: Acetic Acid solution strength | B101: CH3NOOH_strength | C101: 0.2 | D101: as acetic acid
A102: Ethanol density | B102: ethanol_dens | C102: 6.58 | D102: lbs/gal | E102: 0.789 g/cm3
A103: Ammonium Chloride density | B103: NH4CL_dens | C103: 12.7 | D103: lbs/gal | E103: 1.5274 g/cm3
A104: Phosphoric Acid density | B104: H3PO4_dens | C104: 13.17 | D104: lbs/gal | E104: Based on specific gravity of 1.579 for 75% phosphoric acid at 20 degrees centigrade
A105: Phosphoric Acid solution strength | B105: H3PO4_strength | C105: =75%*(30.9738/98.2134) -> 0.2365293331 | D105: as P | E105: Ratio of molar mass of P and H3PO4 (30.9738/98.2134) converts percent as H3PO4 to percent as P
A107: Backwash
A108: Bioreactor water backwash rate | B108: h2oflush_backwash_rate | C108: 8 | D108: gpm/square ft | E108: Guidance: Typical bioreactor backwash rates are between 6-10 gpm/square ft
A109: Bioreactor backwash time | B109: backwash_time | C109: 10 | D109: minutes
A110: Filter water backwash rate | B110: filter_h2oflush_backwash_rate | C110: 15 | D110: gpm/square ft
A111: Filter backwash time | B111: filter_backwash_time | C111: 7 | D111: minutes
A112: Media attrition during bioreactor backwash | B112: media_loss_rate | C112: 0.1 | D112: per year | E112: Normal media attrition rate is in the range of 3-10 % per year, usually balanced by adding media to the bioreactor
A113: Media attrition during post-treatment filter backwash | B113: filter_media_loss_rate | C113: 0.1 | D113: per year | E113: Normal media attrition rate is in the range of 3-10 % per year, usually balanced by adding media to the filter
A114: Media attrition during biomass removal air scour | B114: fluid_media_loss_rate | C114: 0.05 | D114: per year
A115: Air scour volume | B115: air_scour_vol | C115: 4 | D115: CFM/square ft
A116: Air scour time | B116: air_scour_time | C116: 5 | D116: minutes
A117: Redundant blowers | B117: NRD_blowers | C117: 1 | D117: units
A119: Chemical Storage
A120: Days of chemical storage for H2O2 | B120: H2O2_days | C120: 7 | D120: days | E120: Reduce chemical storage time for H2O2 since it is unstable.
A121: Days of chemical storage for all other chemicals | B121: chem_storage | C121: 30 | D121: days | E121: US DoD, 2009
A122: Include a separate day tank if daily volume is x or greater | B122: day_tank_needed | C122: 5 | D122: gal
A123: Include mixers for chemical tanks | B123: include_cmix | C123: 0 | D123: <--- enter 1 for yes, 0 for no
A124: Chemical tank mixer horsepower | B124: cmix_hp_per | C124: 0.25 | D124: hp per 1000 gal
A125: Minimum chemical tank mixer horsepower | B125: min_cmix_hp | C125: =1/3 -> 0.3333333333 | D125: hp
A127: Secondary Containment Requirements
A128: Include secondary containment | B128: include_sec_cont | C128: 1 | D128: <--- enter 1 for yes, 0 for no
A129: Volume required as a percentage of the largest tank | B129: sec_cont_pct_of_largest | C129: 1.1
A130: Volume required as a percentage of total storage | B130: sec_cont_pct_of_total | C130: 0.1
A131: Additional freeboard | B131: sec_cont_freeboard | C131: 6 | D131: inches | E131: Additional freeboard is typically required to contain precipitation when storage is outside; we also include freeboard indoors to ensure a minimum reasonable curb height
A132: Maximum curb thickness | B132: sec_cont_max_thick | C132: 1 | D132: foot | E132: Calculations assume thickness equal to height, up to this maximum
A133: Chemical resistant coating coverage | B133: sec_cont_coating_cvg | C133: 125 | D133: square feet/gallon
A135: Valves and Instrumentation
A136: See the Valve Table at the bottom of this page for additional assumptions relating to valves
A137: Number of manual valves on influent and effluent line | B137: tot_man_valves | C137: 2 | D137: valves | E137: For emergency shut off
A138: Number of manual valves on process line per vessel | B138: proc_man_vessel | C138: 1 | D138: valve/vessel | E138: For filter to waste
A140: Number of check valves on backwash line if no backwash pumps | B140: back_chv_no_back | C140: 1 | D140: valves
A141: Number of check valves on backwash line per backwash pump | B141: back_chv_pump | C141: 1 | D141: valves/pump
A142: Number of check valves on chemcial line per chemical pump | B142: chem_chv_pump | C142: 2 | D142: valves/pump
A143: Number of check valves on influent line | B143: tot_in_chv | C143: 1 | D143: valves
A144: Number of check valves on nutrient feed line | B144: tot_nutrient_chv | C144: 1 | D144: valves | E144: Prevents biomass gorwth in nutirent line
A145: Number of check valves on polymer line per metering pump | B145: polymer_chv_pump | C145: 1 | D145: valves/pump | E145: Applies only with polymer addition to residuals
A146: Number of check valves on bypass line | B146: tot_bp_chv | C146: 1 | D146: valves
A148: Flow meters for influent and effluent line | B148: tot_fm_in | C148: 1 | D148: units | E148: Flow meter assemblies include pressure gauges
A149: Flow meters for process line per vessel | B149: fm_proc | C149: 0 | D149: units/vessel
A150: Flow meters for backwash line | B150: tot_fm_back | C150: 1 | D150: units | E150: At backwash discharge outlet
A151: Level switch/ alarm to PLC | B151: level_switch | C151: 0 | D151: units/vessel
A152: Level switch/ alarm to PLC for small systems | B152: level_switch_small | C152: 0 | D152: units/vessel
A153: Level switch/alarms per bioreactoror | B153: level_switch_g | C153: 1 | D153: units/basin
A154: Level switch/alarms per bioreactoror for small systems | B154: level_switch_small_g | C154: 0 | D154: units/basin
A155: High/Low alarm for backwash tank | B155: alarm_back | C155: 1 | D155: units/vessel
A156: High/Low alarms for chemical tank | B156: alarm_chem | C156: 1 | D156: units/vessel
A157: ORP sensor | B157: ORP_sensor | C157: 2 | D157: units | E157: One at inlet, one at output.
A158: pH meters | B158: pH_controls | C158: 0 | D158: units
A159: Temperature meters | B159: temp_meters | C159: 2 | D159: units | E159: One for influent line, one for effluent line
A160: Temperature meters for small systems | B160: temp_meters_small | C160: 2 | D160: units | E160: One for influent line, one for effluent line
A161: Turbidity meters per vessel | B161: turb_tank | C161: 1 | D161: units/vessel | E161: One for effluent line
A162: Turbitity meters per gravity bioreactoror | B162: turb_tank_g | C162: 1 | D162: units/basin
A163: Turbitity meters per filter | B163: turb_tank_filt | C163: 1 | D163: units/basin | E163: One for effluent line
A164: Additional turbididy meters | B164: add_turb | C164: 0 | D164: units
A165: Head loss sensors per vessel | B165: head_tank | C165: 1 | D165: units/vessel
A166: Online Perchlorate/Nitrate Analyzers (perchlorate treatment) | B166: ClO4_analyzer | C166: 1 | D166: units
A167: Online Nitrate Analyzers (nitrate treatment only) | B167: N_analyzer | C167: 1 | D167: units
A168: Online Dissolved Oxygen Analyzer | B168: DO_analyzer | C168: 1 | D168: units
A169: Sampling ports per vessel | B169: ports_tank | C169: 1 | D169: units/vessel
A170: Sampling ports for blended effluent | B170: ports_bp | C170: 1 | D170: units
A171: Additional sampling ports | B171: add_ports | C171: 3 | D171: units | E171: One for influent line, one for effluent line, one on residual side of backwash line
A172: Number of electrical enclosures | B172: elec_encl | C172: 0 | D172: units | E172: Required only for technologies with significant electric-powered equipment outside a building
A174: System Controls
A175: See the I/O Port Table at the bottom of this page for additional assumptions relating to system controls
A176: Controllers are used only under full automation
A177: To change the degree of automation, change the number of controllers to zero for the appropriate items.
A178: Drive controllers per booster pump | B178: S_booster_pump | C178: 1
A179: Drive controllers per backwash pump and air scour blower | B179: S_back_pump | C179: 1
A180: Drive controllers per recycle pump | B180: S_recycle_pump | C180: 1
A181: Drive controllers per eductor | B181: S_eductor | C181: 0
A182: Drive controllers per residuals pump | B182: S_res_pump | C182: 1
A183: Drive controllers per feeder | B183: S_feeder | C183: 1
A184: Drive controllers per mixer | B184: S_mixer | C184: 1
A185: Drive controllers per chemical metering pump | B185: S_cm_pump | C185: 1
A187: Number of CPUs | B187: plc_cpu | C187: 2 | D187: unit | E187: One CPU is needed to run the local and expansion bases and modules (max 8192 I/O); using two to provide redundancy
A188: Ethernet modules | B188: plc_ethernet | C188: 2 | D188: unit | E188: One ethernet module is needed; using two to provide redundancy
A189: Operator interfaces | B189: plc_interface | C189: 2 | D189: unit | E189: Two to provide redundancy in the event of SCADA node failure
A190: UPSs | B190: ups | C190: 1 | D190: unit | E190: UPS protects the PLC system from undesired outages and surges that can adversely affect the performance of the PLC unit
A191: Computer workstations per x operators | B191: workstation_ratio | C191: 1 | D191: operator/workstation | E191: Minimum will always be one, but larger systems will have multiple workstations to control the system
A192: Number of shifts | B192: shifts_day | C192: 3 | D192: shifts/day | E192: Used to determine number of workstations
A193: Printers per x computer workstations | B193: printer_ratio | C193: 4 | D193: workstations/printer | E193: Minimum will always be one, but larger systems will have multiple printers
A195: Structure/Floorplan
A196: Maximum access space per vessel or tank for custom designed systems | B196: max_space_vessels_cust | C196: 6 | D196: feet | E196: This is the MAXIMUM; space between vessels and tanks defaults to vessel or tank diameter, up to this maximum. Maximum provides space for sandblasting and painting for large vessels (5-8 feet per Richard E. Hubel, Peter Keenan, American Water Works Service Company).
A197: Maximum access space per vessel or tank for pre-engineered systems | B197: max_space_vessels_pre | C197: 1 | D197: feet | E197: Pre-engineered packages are skid-mounted with minimal access space
A198: Access space per pump for custom designed systems | B198: space_pumps_cust | C198: 4 | D198: feet | E198: Provide a minimum of 3 ft (1 m) of clear space around each item of equipment (American Water Works Association and American Society of Civil Engineers. Water Treatment Plant Design. Third Edition. New York: McGraw Hill, 1998. Pp. 695).
A199: Access space per pump for pre-engineered packages | B199: space_pumps_pre | C199: 0 | D199: feet | E199: Pumps on skid for pre-engineered packages, no additional access space
A200: Non fire Buffer for buildings | B200: non_fire_buffer | C200: 10 | D200: feet
A201: Fire Buffer for Buildings | B201: fire_buffer | C201: 40 | D201: feet
A202: Top and bottom dished vessel sections height and access space | B202: Top_bottom_Vessel_space | C202: 6 | D202: feet | E202: This is used to determine the building height for purposes of heating and cooling cost.
A203: Office space per employee | B203: space_office | C203: 100 | D203: square ft
A204: Office space per employee | B204: space_office_small | C204: 0 | D204: square ft | E204: Small systems do not require office space
A205: Concrete pad thickness | B205: pad_thick | C205: =6/12 -> 0.5 | D205: feet
A206: Concrete pad thickness for small systems | B206: pad_thick_small | C206: =4/12 -> 0.3333333333 | D206: feet
A207: Clearance space beneath the ceiling | B207: ceiling_clearance | C207: 3 | D207: feet | E207: Minimum space between the tops of storage tanks and the ceiling
A208: Additional building after… | B208: add_2nd_building | C208: 10000 | D208: sf
A210: Residuals Discharge
A211: Add ferric chloride to holding tank? | B211: coag_res | C211: 0 | D211: <-- 1 for yes, 0 for no | E211: For additional TSS removal, if desired
A212: Ferric chloride dosage for residuals | B212: coag_dose | C212: 10 | D212: mg/L | E212: Coagulant is presumed to be ferric chloride
A213: Ferric chloride bulk density | B213: coag_density | C213: 43 | D213: lb/ft3 | E213: For chemical storage area calculations
A214: Ferric chloride sludge production factor | B214: coag_spf | C214: 0.99 | D214: lbs accumulated per pound added
A215: Days of coagulant storage | B215: cstore_days | C215: 30 | D215: days
A216: Minimum settling time when coagulant is used | B216: res_coag_settle_time | C216: 90 | D216: minutes | E216: When coagulant is used, holding tanks will be sized so that residuals are present for at least this long. Based on 90-120 minute settling time in sedimentation basins (Water Treatment Plant Design, 4th ed.)
A217: Add polymer to holding tank? | B217: polymer_res | C217: 1 | D217: <-- 1 for yes, 0 for no | E217: For additional TSS removal, if desired
A218: Polymer dose | B218: polymer_dose | C218: 100 | D218: mg/L
... 114 more rows

Sheet O&M Assumptions
A1: Default O&M Assumptions
A2: Users may change any of the cells in the Value column
A4: Assumption | B4: Range Name | C4: Value | D4: Units | E4: Guidance
A5: Pumping
A6: Pump head for booster pumps | B6: booster_pump_head | C6: 25 | D6: psi | E6: Von Huben, Harry. Operator's Companion, 4th Edition. USABluebook, 2000. Pp. 17 25 psi creates a head of 60 feet
A7: Recycle pump head | B7: recycle_pump_head | C7: 25 | D7: psi
A8: Backwash pump head | B8: back_pump_head | C8: 25 | D8: psi
A9: Residuals pump head | B9: res_pump_psi | C9: 25 | D9: psi
A10: Booster Pump efficiency | B10: booster_pump_efficiency | C10: 0.75
A11: Recycle Pump efficiency | B11: recycle_pump_efficiency | C11: 0.75
A12: Cost for parts & maintenance for pumps and blowers | B12: booster_pump_maintenance | C12: 0.01 | D12: of installed cost | E12: For calculating cost of actual maintenance materials; not to be confused with depreciation. Initial proposed estimate of 5% seems high (Richard E. Hubel, Peter Keenan, American Water Works Service Company, Inc)
A13: Additional blower head above water level | B13: add_blow_head | C13: 10 | D13: inches
A14: Blower efficiency | B14: blower_effcy | C14: 0.7
A16: Labor and Materials
A17: Mangerial LOE as a percent of average technical labor | B17: Manager_percent | C17: 0.1 | D17: fraction
A18: Administrative LOE as a percent of average technical labor | B18: Clerical_percent | C18: 0.1 | D18: fraction
A19: Labor hours per week for contact basins | B19: Weekly_labor | C19: 1 | D19: hr/week/basin | E19: Gravity systems only
A20: Annual contactor materials cost as a percent of capital | B20: Materials_pct | C20: 0.01 | E20: Gravity systems only
A22: Operating LOE assumptions
A23: Minutes per instrument per day | B23: uloe_inst | C23: 5 | D23: min/day | E23: For manual systems only
A24: Recording operating paramenters for automated systems | B24: uloe_inst_auto | C24: 5 | D24: min/day | E24: For semiautomated and automated systems
A25: Minutes per pump per day | B25: uloe_pump | C25: 5 | D25: min/day | E25: For manual and semiautomated systems
A26: Minutes per valve per week | B26: uloe_valve | C26: 5 | D26: min/week | E26: For manual and semiautomated systems
A27: Minutes per backwash for automated systems | B27: uloe_autoback | C27: 1 | D27: min/event | E27: Manual and semiautomated systems use actual backwash time
A28: Minutes per 100 sf per day | B28: uloe_fp | C28: 1 | D28: min/100 sf/day
A29: Hours per media changeout | B29: uloe_throwaway | C29: =8/(20*27) -> 0.01481481481 | D29: hours/cubic foot | E29: For systems using manual media transfer. Based on 20 cubic yards per day, applied separately to removal and replacement.
A31: Maintenance LOE assumptions
A32: For instruments (includes calibration) | B32: uloe_inst_maint | C32: 10 | D32: min/month
A33: For pumps | B33: uloe_pump_maint | C33: 30.25 | D33: hours/year | E33: Based on vendor recommended maintenance activities; applied to large, frequently operated pumps only
A34: For valves | B34: uloe_valve_maint | C34: 5 | D34: min/year | E34: Applied to main process valves only
A35: For chemical supply systems | B35: uloe_chem_maint | C35: 120 | D35: min/month
A37: Energy
A38: Lighting power per sf, low-quality buildings and sheds | B38: lighting_power_low | C38: 1 | D38: W/sf | E38: 1, 2, and 4 W/sf are the assumptions used for building capital costs.
A39: Lighting power per sf, mid-quality buildings | B39: lighting_power_mid | C39: 2 | D39: W/sf
A40: Lighting power per sf, high-quality buildings | B40: lighting_power_high | C40: 4 | D40: W/sf
A42: Ventilation air change rate for contactor | B42: Air_changes_contactor | C42: 3 | D42: air changes/hr
A43: Ventilation air change rate for pump room | B43: Air_changes_pump | C43: 20 | D43: air changes/hr | E43: Could be lower (annual average 3 changes/hr) in a northern climate
A44: Ventilation air change rate for chemical storage | B44: Air_changes_chem_storage | C44: 2 | D44: air changes/hr
A45: Ventilation air change rate for offices | B45: Air_changes_office | C45: 2 | D45: air changes/hr
A46: Pressure drop across the fan | B46: Fan_pressure_drop | C46: 0.25 | D46: lbs/ft2
A47: Number of mechanical ventilation days per year first building (small system) | B47: fan_days_build1_small | C47: 90 | D47: days/year | E47: Number of days per year where natural ventilation is applicable cannot be greater than 365 days
A48: Number of mechanical ventilation days per year 2nd building (small system) | B48: fan_days_build2_small | C48: 90 | D48: days/year | E48: For small systems (<1 MGD)
A49: Number of mechanical ventilation days per year first building (medium system) | B49: fan_days_build1_medium | C49: 120 | D49: days/year | E49: For medium systems (1 - 10 MGD)
A50: Number of mechanical ventilation days per year 2nd building (medium system) | B50: fan_days_build2_medium | C50: 120 | D50: days/year
A51: Number of mechanical ventilation days per year first building (large system) | B51: fan_days_build1_large | C51: 185 | D51: days/year | E51: For large systems (> 10 MGD)
A52: Number of mechanical ventilation days per year 2nd building (large system) | B52: fan_days_build2_large | C52: 185 | D52: days/year
A54: R-value for walls | B54: R_wall | C54: 13 | D54: hr-sf-degF/BTU | E54: Assumes standard building materials. If higher R-value materials are desired, user may also need to adjust the cost of building materials in cl.xls
A55: R-value for ceilings | B55: R_ceiling | C55: 38 | D55: hr-sf-degF/BTU | E55: Assumes standard building materials. If higher R-value materials are desired, user may also need to adjust the cost of building materials in cl.xls
A56: Annual heating degree days | B56: heat_DD | C56: 4923 | D56: degree days | E56: Heating and cooling assumptions should be consistent with one another. Assumed values are for a climate that results in a total energy usage for heating and cooling equal to the national median.
A57: Annual cooling degree days | B57: cool_DD | C57: 1697 | D57: degree days | E57: Heating and cooling assumptions should be consistent with one another. Assumed values are for a climate that results in a total energy usage for heating and cooling equal to the national median.
A58: Heating ventilation/infiltration load | B58: heat_viload | C58: 168679 | D58: BTU/cfm | E58: Heating and cooling assumptions should be consistent with one another. Assumed values are for a climate that results in a total energy usage for heating and cooling equal to the national median.
A59: Cooling ventilation/infiltration load | B59: cool_viload | C59: 51771 | D59: BTU/cfm | E59: Heating and cooling assumptions should be consistent with one another. Assumed values are for a climate that results in a total energy usage for heating and cooling equal to the national median.
A60: Electric resistance heating efficiency | B60: resist_eff | C60: 0.98 | E60: See Appendix E
A61: Heat pump heating coefficient of performance | B61: COP | C61: 3.2 | E61: See Appendix E
A62: Natural gas non-condensing furnace efficiency | B62: gas_non_eff | C62: 0.8 | E62: See Appendix E
A63: Natural gas condensing furnace efficiency | B63: gas_eff | C63: 0.95 | E63: See Appendix E
A64: Standard oil furnace efficiency | B64: diesel_non_eff | C64: 0.78 | E64: See Appendix E
A65: Mid-efficiency oil furnace efficiency | B65: diesel_eff | C65: 0.85 | E65: See Appendix E
A66: Air conditioning EER | B66: EER | C66: 11 | D66: Whr/BTU | E66: See Appendix E
A67: Heat pump cooling mode EER | B67: hp_EER | C67: 10.1 | D67: Whr/BTU | E67: See Appendix E
A69: Heating oil heat content | B69: diesel_heat_content | C69: 139000 | D69: BTU/gal | E69: U.S. DOE, Energy Information Administration.

Sheet Indirect Assumptions
A1: Default Assumptions for Indirect and Add-On Costs
A2: Users may change any of the cells in the Value column
A4: Assumption | B4: Range Name | C4: Value | D4: Units | E4: Guidance
A5: Permits
A6: Include permit costs? | B6: include_permits | C6: 1 | D6: <--- enter 1 for yes, 0 for no
A7: Always include NEPA compliance costs? | B7: include_NEPA | C7: 0 | D7: <--- enter 1 for yes, 2 for no | E7: Default of 0 means NEPA compliance is included in the high component cost estimate only. Selecting 1 means NEPA compliance will be included in all estimates. Selecting 0 means NEPA compliance will never be included
A9: Pilot Study
A10: Include pilot study costs? | B10: include_pilot | C10: 1 | D10: <--- enter 1 for yes, 0 for no
A12: Mobilization and Demobilization
A13: Mobilization percentage for pre-engineered packages | B13: mob_pct_pre | C13: 0 | D13: of direct capital cost | E13: Excluded by default for pre-engineered packages
A14: Mobilization percentage for small systems | B14: mob_pct_small | C14: 0.05 | D14: of direct capital cost | E14: Typically 2-5% of the estimated construction cost. Enter 0% to exclude.
A15: Mobilization percentage for medium systems | B15: mob_pct_medium | C15: 0.04 | D15: of direct capital cost
A16: Mobilization percentage for large systems | B16: mob_pct_large | C16: 0.02 | D16: of direct capital cost
A18: Architectural Fees for Treatment Building
A19: Include architectural fee? | B19: include_arch | C19: 1 | D19: <--- enter 1 for yes, 0 for no | E19: Must be added to building cost. Change for special considerations. Includes structural, mechanical, and electrical engineering for building only.
A20: Include architectural fee for small systems? | B20: include_arch_small | C20: 0 | D20: <--- enter 1 for yes, 0 for no
A22: Installation, Transportatation, and O&P
A23: Installation, Transportatation, and O&P percentage | B23: inst_pct | C23: 0 | D23: of direct capital cost | E23: Included in line item unit costs. Add a percentage for special considerations such as a remote site or high cost location.
A25: Sitework
A26: Include sitework costs? | B26: include_sitework | C26: 1 | D26: <--- enter 1 for yes, 0 for no
A28: Yard Piping
A29: Include yard piping costs? | B29: include_yardpipe | C29: 1 | D29: <--- enter 1 for yes, 0 for no
A30: Frost depth | B30: frost | C30: 38 | D30: inches | E30: Should be consistent with (reflect same climate as) heating and cooling assumptions on O&M assumptions page. Assumptions are for St. Louis, Missouri.
A31: Minimum trench depth to top of pipe | B31: min_trench_depth | C31: 36 | D31: inches | E31: US Army Corps of Engineers recommended minimum cover for distribution pipes of 2.5 ft in grassed areas, 3 ft if buried under pavement or roadways but not less than frost penetration depth (USACOE 1984)
A32: Soil density | B32: soil_dens | C32: 97 | D32: lb/cubic ft. | E32: Based on soil density of loamy sand (1.55 gm/cc)
A33: Coefficient of passive pressure | B33: Coeff_Kp | C33: 3
A34: Reduction factor | B34: Reduction | C34: 0.467
A35: Bedding depth below pipe | B35: bedding_depth | C35: 6 | D35: inches
A36: Bedding depth surrounding the pipe | B36: bedding_pct | C36: 0.25 | D36: of pipe diameter
A37: Trench inside angle | B37: trench_angle | C37: =RADIANS(45) -> 0.7853981634 | D37: radians
A38: Pipe length from water source to the boundary of the 10 foot buffer | B38: yard_in | C38: 0 | D38: feet | E38: Use if technology is first step in treatment process
A39: Pipe length the boundary of the 10 foot buffer to distribution network | B39: yard_out | C39: 0 | D39: feet | E39: Use if technology is last step in treatment process
A41: Geotechnical & Sitework
A42: Include geotechnical costs for low cost systems? | B42: include_geo_low | C42: 0 | D42: <--- enter 1 for yes, 0 for no | E42: Note: geotechnical is always included with the evaporation pond option, regardless of the numbers entered here
A43: Include geotechnical costs for medium cost systems? | B43: include_geo_medium | C43: 0 | D43: <--- enter 1 for yes, 0 for no
A44: Include geotechnical costs for high cost systems? | B44: include_geo_high | C44: 1 | D44: <--- enter 1 for yes, 0 for no
A45: Test pit length | B45: pit_length | C45: 4 | D45: feet
A46: Test pit width | B46: pit_width | C46: 4 | D46: feet
A47: Test pit depth | B47: pit_depth | C47: 7 | D47: feet
A48: Borehole depth (pressure systems) | B48: bore_depth_p | C48: 10 | D48: feet
A49: Borehole depth for shallow basins | B49: bore_depth_min | C49: 25 | D49: feet
A50: Borehole depth for deep basins | B50: bore_depth_max | C50: 50 | D50: feet
A51: Basin excavation depth above which deeper boreholes are needed | B51: deep_bore_need | C51: 20 | D51: feet | E51: Large gravity systems with deep basins require deeper investigation
A52: Technology footprint above which boreholes are needed | B52: bore_need | C52: 2000 | D52: square feet | E52: Small system geotechnical investigation can be completed with test pits, larger systems require boreholes
A53: Minimum number of boreholes | B53: min_holes | C53: 4
A54: Borehole needed every x square feet | B54: hole_per_sf | C54: 1000 | D54: square feet
A55: Boreholes per job | B55: hole_per_job | C55: 24 | D55: boreholes/job
A56: Linear feet bored per day | B56: hole_per_day | C56: 55.5 | D56: l.f./day | E56: RS Means Costworks 2001
A58: Standby Power
A59: Include standby power costs? | B59: include_standby | C59: 1 | D59: <--- enter 1 for yes, 0 for no
A60: Include standby power costs for small systems? | B60: include_standby_small | C60: 0 | D60: <--- enter 1 for yes, 0 for no
A61: Design safety factor for standby power | B61: std_safety_factor | C61: 0 | E61: Default 0%. Apply a percentage to increase standby power requirements.
A62: Include heating in standby power | B62: need_heat | C62: 0 | D62: <--- enter 1 for yes, 0 for no | E62: If a system uses gas or diesel heat, heating will not be included, regardless of this assumption.
A63: Include cooling in standby power | B63: need_cool | C63: 0 | D63: <--- enter 1 for yes, 0 for no | E63: If both heating and cooling are included, standby power requirements will be based on the maximum of the two.
A64: Minimum standby power generator size | B64: min_standby | C64: 10 | D64: kW | E64: Minimum size for full standby generators
A66: Electrical (including yard wiring)
A67: Electrical percentage | B67: elect_pct | C67: 0.1 | D67: of direct cost
A69: Instrumentation and Control
A70: Instrumentation and control percentage | B70: i_c_pct | C70: 0 | D70: of direct cost | E70: Included as a direct cost line item.
A72: Contingency
A73: Include contingency costs for low cost systems? | B73: include_conting_low | C73: 0 | D73: <--- enter 1 for yes, 0 for no
A74: Include contingency costs for medium cost systems? | B74: include_conting_medium | C74: 0 | D74: <--- enter 1 for yes, 0 for no
A75: Include contingency costs for high cost systems? | B75: include_conting_high | C75: 1 | D75: <--- enter 1 for yes, 0 for no
A76: Technology complexity factor | B76: complexity | C76: 1.5 | E76: Technology-specific factor. See Appendices for details. Low complexity = 0.5; Average complexity = 1.0; High complexity = 1.5; Very high complexity = 2.0.
A78: Process Engineering
A79: Engineering percentage for small systems | B79: eng_pct_small | C79: 0.2 | D79: of direct capital cost | E79: Enter 0% to exclude.
A80: Engineering percentage for medium systems | B80: eng_pct_medium | C80: 0.12 | D80: of direct capital cost
A81: Engineering percentage for large systems | B81: eng_pct_large | C81: 0.08 | D81: of direct capital cost
A83: Miscellaneous Allowance
A84: Miscellaneous allowance percentage | B84: misc_pct | C84: 0.1 | D84: of direct capital cost | E84: Enter 0% to exclude.
A86: Legal, Fiscal, and Administrative
A87: Legal percentage | B87: legal_pct | C87: 0.02 | D87: of direct capital cost | E87: Enter 0% to exclude. Highly site-specific. Can range from 2-5% of equipment, installation, construction, electrical, and standby power. To estimate, add 5% to total estimated construction cost.
A89: Sales Tax
A90: Sales tax percentage | B90: tax_pct | C90: 0 | D90: of direct capital cost | E90: May be exempt if constructed with public funds. May be as high as 7.25% of equipment and construction, with national average 4.75%.
A92: Financing during Construction
A93: Financing percentage | B93: finance_pct | C93: 0.05 | D93: of direct capital cost | E93: Enter 0% to exclude. Typically assumed to be one year's interest on capital cost.
A94: Financing percentage for small systems | B94: finance_pct_small | C94: 0 | D94: of direct capital cost | E94: Small system construction assumed to take less than one year
A96: Construction Management and General Contractor Overhead
A97: Builder's risk insurance percentage | B97: br_ins_pct | C97: 0.0034 | E97: Enter 0% to exclude. 0.34% is national average rate. RSMeans Building Construction Cost Data 2009, reference section R01100-070
A98: Include performance bond cost? | B98: include_bond | C98: 1 | D98: <--- enter 1 for yes, 0 for no
A99: Include construction management cost? | B99: include_cm | C99: 1 | D99: <--- enter 1 for yes, 0 for no
A100: Include construction management cost for pre-engineered packages? | B100: include_cm_pre | C100: 0 | D100: <--- enter 1 for yes, 0 for no
A102: Concrete Pad
A103: Include concrete pad in total capital cost? | B103: include_pad | C103: 1 | D103: <--- enter 1 for yes, 0 for no
A105: Heating Table (1=include heating in buildings and O&M, 0 = do not include heating)
A106: Component Level | B106: Range Name | C106: System Size
C107: Small (<1 mgd) | D107: Medium (1-10 mgd) | E107: Large (>10 mgd)
A108: Buildings 500 square feet or greater
A109: low cost | B109: heating_table | C109: 0 | D109: 1 | E109: 1
A110: mid cost | C110: 1 | D110: 1 | E110: 1
A111: high cost | C111: 1 | D111: 1 | E111: 1
A112: Buildings less than 500 ft2 (other than those used for chlorine storage)
A113: low cost | B113: heating_table_shed | C113: 0 | D113: 0 | E113: 1
A114: mid cost | C114: 0 | D114: 0 | E114: 1
A115: high cost | C115: 1 | D115: 1 | E115: 1
A117: Cooling Table (1=include cooling in buildings and O&M, 0 = do not include cooling)
A118: Component Level | B118: Range Name | C118: System Size
C119: Small (<1 mgd) | D119: Medium (1-10 mgd) | E119: Large (>10 mgd)
A120: Buildings 500 square feet or greater
A121: low cost | B121: cooling_table | C121: 0 | D121: 0 | E121: 1
A122: mid cost | C122: 0 | D122: 1 | E122: 1
A123: high cost | C123: 1 | D123: 1 | E123: 1
A124: Buildings less than 500 ft2 (other than those used for chlorine storage)
A125: low cost | B125: cooling_table_shed | C125: 0 | D125: 0 | E125: 0
A126: mid cost | C126: 0 | D126: 0 | E126: 0
A127: high cost | C127: 0 | D127: 0 | E127: 0

Sheet Bioreactor Constraints
A1: Bioreactor Constraint Calculations
A2: This sheet performs calculations to confirm that the vessel design on the Input page meets engineering constraints
A4: Calculation | B4: Range Name | C4: Value | D4: Units | E4: Guidance
A5: From Inputs
A6: Design Flow | B6: design_flow | C6: =IF(df_units="gpm",(1-bp_pct)*design_flow_I*24*60/1000000,(1-bp_pct)*design_flow_I) -> 0.03 | D6: MGD | E6: From Inputs
A7: Average Flow | B7: average_flow | C7: =(1-bp_pct)*IF(af_units="gpm",average_flow_I*24*60/1000000,IF(af_units="fraction of design flow",average_flow_I*design_flow,average_flow_I)) -> 0.007 | D7: MGD | E7: From Inputs
A8: Design Flow Rate | B8: design_flow_rate | C8: =design_flow*1000000/(24*60) -> 20.83333333 | D8: gpm | E8: Design flow expressed in gpm
A9: Average Flow Rate | B9: average_flow_rate | C9: =average_flow*1000000/(24*60) -> 4.861111111 | D9: gpm | E9: Average flow expressed in gpm
A10: Bypass Flow Rate (design) | B10: bp_flow_rate | C10: =bp_pct/(1-bp_pct)*design_flow_rate -> 0 | D10: gpm
A11: Target Contaminant | B11: contam | C11: 1 | D11: <-- 1 for perchlorate, 2 for nitrate, 3 for other
A12: Design type chosen | B12: design_type | C12: 1 | D12: <-- 1 for Fixed Bed Pressure Vessel, 2 for Fixed Bed Gravity Basin, 3 for Fluidized Bed
A13: Empty bed contact time or Hydraulic Residence Time | B13: EBCT | C13: =ebct_I -> 12 | D13: minutes
A16: PRESSURE VESSELS
A17: Vessel geometry | B17: tank_geom | C17: =IF(tank_geom_I="horizontal",2,1) -> 1 | D17: <-- 1 for upright cylindrical, 2 for horizontally-laid cylinder
A19: From Central Cost Database
A20: Maximum Standard Vessel Diameter | B20: max_diam_std_size | C20: =max_vessel_diam_cl -> 14 | D20: feet
A21: Minimum Vessel Diameter | B21: min_diam | C21: =IF(design_type=2,"-",min_vessel_diam_cl) -> 1.5 | D21: feet
A22: Maximum Vessel Diameter | B22: max_diam | C22: =IF(design_type=2,"-",IF(max_diam_override>0,max_diam_override,max_diam_std_size)) -> 14 | D22: feet
A24: Vessel Constraints
A25: EBCT per vessel | B25: EBCT_tank | C25: =EBCT -> 12 | D25: minute
A26: Vessel surface area | B26: max_sa | C26: =IF(design_type=2,"-",IF(tank_geom=1,PI()*(comm_diam-2*Vessel_thickness)*(comm_diam-2*Vessel_thickness)/4,IF(tank_geom=2,(comm_diam-2*Vessel_thickness)*comm_height_length,0))) -> 4.908738521 | D26: square feet
A27: Height available above media bed (for horizontal vessels) | B27: distance_above | C27: =IF(design_type=2,"-",IF(tank_geom=2,comm_diam-bed_depth-horiz_underdrain,"NA")) -> NA | D27: feet
A28: Void space above media bed (for horizontal vessels) | B28: void_above | C28: =IF(design_type=2,"-",IF(tank_geom=2,comm_height_length*(comm_diam*comm_diam/2*ASIN(SQRT(distance_above/comm_diam))-(comm_diam/2-distance_above)*SQRT((comm_diam-distance_above)*distance_above)),"NA")) -> NA | D28: cubic feet
A29: Maximum flow per vessel | B29: flow_per_vessel | C29: =IF(design_type=2,"-",IF(tank_geom=1,(max_sa*IF(design_type=3,bed_depth*(1+bed_expansion_fluidized),bed_depth)*7.48)/EBCT_tank,media_volume*7.48/EBCT_tank)) -> 10.70923121 | D29: gpm
A30: Number of parallel treatment trains | B30: num_treat_lines | C30: =IF(design_type=2,"-",IF(design_type=1,ROUNDUP(design_flow_rate/flow_per_vessel,0),ROUNDUP(design_flow_rate*(1+recycle_fluid)/flow_per_vessel,0))) -> 2 | D30: lines
A31: Number of vessels excluding redundancy | B31: op_num_tanks | C31: =IF(design_type=2,"-",IF(design_type=1,ROUNDUP(design_flow_rate/flow_per_vessel,0),ROUNDUP(design_flow_rate*(1+recycle_fluid)/flow_per_vessel,0))) -> 2 | D31: units
A32: Number of redundant bioreactors | B32: NRD | C32: =IF(design_type=2,"-",IF(NRD_I<>"",NRD_I,IF(AND(design_flow>=1,design_type=1),ROUNDUP(num_treat_lines/redund_freq,0),IF(op_num_tanks=1,NRD_small_1,NRD_small)))) -> 0
A33: Total number of vessels including redundancy | B33: final_num_tanks | C33: =IF(design_type=2,0,op_num_tanks+NRD) -> 2 | D33: units
A35: Vessel requirements based on bed depth and contact time
A36: Minimum volume of contact area needed | B36: contact_material | C36: =IF(design_type=2,"-",IF(design_type=1,design_flow_rate*EBCT/(7.481),design_flow_rate*(1+recycle_fluid)*EBCT/(7.481))) -> 33.41799225 | D36: cubic feet
A37: Minimum volume of contact area per vessel | B37: contact_mat_per_vessel | C37: =IF(design_type=2,"-",contact_material/op_num_tanks) -> 16.70899612 | D37: cubic feet
A38: Minimum volume of vessel | B38: vol_vessel | C38: =IF(design_type=2,"-",IF(design_type=1,contact_mat_per_vessel*(1+bed_expansion),contact_mat_per_vessel)) -> 25.06349419 | D38: cubic feet
A39: Minimum surface area of contact material | B39: SA | C39: =IF(design_type=2,"-",contact_mat_per_vessel/(IF(design_type=3,bed_depth*(1+bed_expansion_fluidized),bed_depth))) -> 4.773998892 | D39: square feet
A41: Quantities based on user-specified vessel dimensions
A42: Final surface area of contact material | B42: comm_SA | C42: =IF(design_type=2,"-",IF(tank_geom=1,(comm_diam-(2*Vessel_thickness))^2*PI()/4,IF(tank_geom=2,(comm_diam-(2*Vessel_thickness))*comm_height_length))) -> 4.908738521 | D42: square feet
A43: Final surface loading rate | B43: comm_load_rate | C43: =IF(design_type=2,"-",IF(design_type=1,(design_flow_rate/num_treat_lines)/comm_SA,(design_flow_rate*(1+recycle_fluid)/num_treat_lines)/comm_SA)) -> 2.122065908 | D43: gpm/square ft
A44: Volume | B44: comm_vol | C44: =IF(design_type=2,"-",PI()*comm_diam^2/4*comm_height_length) -> 31.90680039 | D44: cubic feet
B45: comm_vol_gal | C45: =IF(design_type=2,"-",comm_vol*7.48) -> 238.6628669 | D45: gal
A47: Checks on user-specified dimensions
A48: Design dimensions for vertical vessels:
A49: Required height of vessel | B49: height | C49: =IF(design_type=2,"-",IF(design_type=1,bed_depth*(1+bed_expansion)+free_board,IF(design_type=3,bed_depth*(1+bed_expansion_fluidized)+IF(design_flow<1,freeboard_fluidized_small,freeboard_fluidized),"-"))) -> 6.25 | D49: feet
A50: Required vessel diameter (circular vessels) | B50: diameter | C50: =IF(design_type=2,"-",(SA*4/PI())^0.5+(2*Vessel_thickness)) -> 2.465450096 | D50: feet
A51: Minimum commercial height given diameter | B51: min_comm_height | C51: =IF(design_type=2,"-",VLOOKUP(comm_diam,vessel_size_table_cl,2)) -> 4 | D51: feet
A52: Maximum commercial height given diameter | B52: max_comm_height | C52: =IF(design_type=2,"-",VLOOKUP(comm_diam,vessel_size_table_cl,3)) -> 9 | D52: feet
A54: Void space required for horizontal vessels:
A55: For freeboard | B55: freeboard_horiz_void | C55: =IF(design_type=2,"-",comm_height_length*(comm_diam*comm_diam/2*ASIN(SQRT(free_board/comm_diam))-(comm_diam/2-free_board)*SQRT((comm_diam-free_board)*free_board))) -> 11.91814839 | D55: cubic feet | E55: Volume of a horizontal slice taken out of a cylinder
A56: For underdrain | B56: underdrain_horiz_void | C56: =IF(design_type=2,"-",comm_height_length*(comm_diam*comm_diam/2*ASIN(SQRT(horiz_underdrain/comm_diam))-(comm_diam/2-horiz_underdrain)*SQRT((comm_diam-horiz_underdrain)*horiz_underdrain))) -> 19.98865199 | D56: cubic feet
A57: Total | B57: horiz_void | C57: =IF(design_type=2,"-",freeboard_horiz_void+underdrain_horiz_void) -> 31.90680039 | D57: cubic feet
A59: Volume available for media and expansion:
A60: Vertical vessel | B60: vert_vol_available | C60: =IF(design_type=2,"-",(comm_height_length-free_board)*PI()*comm_diam^2/4) -> 26.99806187 | D60: cubic feet
A61: Horizontal vessel | B61: horiz_vol_available | C61: =IF(design_type=2,"-",comm_vol-horiz_void) -> 0 | D61: cubic feet
A62: For selected vessel geometry | B62: input_vol_vess | C62: =IF(design_type=2,"-",CHOOSE(tank_geom,vert_vol_available,horiz_vol_available)) -> 26.99806187 | D62: cubic feet | E62: To be compared to vol_vessel, to determine whether vessel is oversized.
A64: Tolerance for oversized vessels | B64: vol_tol | C64: =IF(design_type=2,"-",CHOOSE(tank_geom,IF(ss_cat2=1,vol_tol_vert_small,vol_tol_vert_med),vol_tol_horiz)) -> 0.5 | E64: Tolerance added to vol_vessel in checking for oversized vessels.
A66: GRAVITY CONTACT BASINS
A67: Minimum volume required | B67: min_basin_vol | C67: =IF(OR(design_type=1,design_type=3),"-",design_flow_rate*EBCT/7.48) -> - | D67: cubic ft
A68: Number of basins (no redundancy) | B68: op_num_basins | C68: =IF(OR(design_type=1,design_type=3),"-",ROUNDUP(min_basin_vol/(basin_width*basin_length*basin_op_depth),0)) -> -
A69: Basin depth including freeboard | B69: basin_depth | C69: =IF(OR(design_type=1,design_type=3),"-",basin_op_depth*(1+bed_expansion)+basin_freeboard) -> - | D69: ft
A70: Total basin volume | B70: basin_vol | C70: =IF(OR(design_type=1,design_type=3),"-",basin_width*basin_length*basin_depth*7.48) -> - | D70: gal
A71: Number of reduntant basins | B71: NRD_g | C71: =IF(OR(design_type=1,design_type=3),"-",IF(NRD_I<>"",NRD_I,IF(op_num_basins=1,NRD_small_1,CHOOSE(ss_cat2,NRD_small,NRD_basins_medium,NRD_basins_large)))) -> - | D71: units
A72: Basin loading rate | B72: surface_loading_rate_g | C72: =IF(OR(design_type=1,design_type=3),"-",design_flow_rate/(op_num_basins*(basin_width*basin_length))) -> - | D72: gpm/square ft
A73: Total number of basins (incl. redundancy) | B73: total_num_basins | C73: =IF(OR(design_type=1,design_type=3),0,op_num_basins+NRD_g) -> 0 | D73: units
A74: Concrete volume | B74: basin_conc_vol | C74: =IF(OR(design_type=1,design_type=3),"-",(2*(basin_width*total_num_basins+conc_thick*(total_num_basins+1))*basin_depth*conc_thick+(total_num_basins+1)*basin_length*basin_depth*conc_thick+(basin_length+2*conc_thick)*(basin_width*total_num_basins+conc_thick*(total_num_basins+1))*conc_thick)/27) -> - | D74: cubic yd | E74: incorporates common wall design
A75: Excavation volume | B75: excavation_vol | C75: =IF(OR(design_type=1,design_type=3),"-",((total_num_basins*basin_width+(total_num_basins+1)*conc_thick+overexcavate)*(basin_length+2*conc_thick+overexcavate)*(basin_depth+conc_thick+overexcavate)+0.5*(3*(basin_depth+conc_thick+overexcavate)*(basin_depth+conc_thick+overexcavate)*(basin_length+2*conc_thick+overexcavate)))/27) -> - | D75: cubic yd | E75: incorporates common wall design, includes ramping for moving earth out of excavated area, assumes flush with grade (conservative)
A76: Backfill volume | B76: backfill_vol | C76: =IF(OR(design_type=1,design_type=3),"-",excavation_vol-(total_num_basins*basin_width+(total_num_basins+1)*conc_thick)*(basin_length+2*conc_thick)*(basin_depth+conc_thick)/27) -> - | D76: cubic yd
A77: Railing length | B77: railing | C77: =IF(OR(design_type=1,design_type=3),"-",2*(total_num_basins*basin_width+2*conc_thick/2+(total_num_basins-1)*conc_thick)+2*(basin_length+2*conc_thick/2)) -> - | D77: lf | E77: incorporates common wall design, single railing (concrete thickness is not sufficient to provide walkway)
A78: Surface area each contactor | B78: basin_area | C78: =IF(OR(design_type=1,design_type=3),"-",basin_width*basin_length) -> - | D78: square ft | E78: for internals costing
A81: MEDIA QUANITITIES
A82: GAC media volume per bioreactor | B82: media_volume | C82: =IF(OR(design_type=1,design_type=3),IF(tank_geom=1,comm_SA*bed_depth,IF(tank_geom=2,comm_vol-underdrain_horiz_void-void_above)),basin_width*basin_length*basin_op_depth) -> 17.18058482 | D82: cubic feet
A83: GAC media volume per bioreactor in gallons | B83: resin_volume_gal | C83: =resin_volume*7.48 -> 128.5107745 | D83: gallons
A84: GAC media mass per bioreactor | B84: resin_per_vessel | C84: =media_volume*GAC_density -> 515.4175447 | D84: lbs
A85: Total GAC media | B85: total_resin | C85: =resin_per_vessel*IF(OR(design_type=1,design_type=3),final_num_tanks,total_num_basins) -> 1030.835089 | D85: lbs
A86: Media volume when expanded | B86: media_volume_expanded | C86: =media_volume*(1+bed_expansion) -> 25.77087724 | D86: cubic feet | E86: Accounts for bed expansion

Sheet Chemicals
A1: Chemical Use Calculations
A3: Calculation | B3: Range Name | C3: Value | D3: Units | E3: Guidance
A4: ELECTRON DONOR
A5: Electron Donor Type (from Input) | B5: e_donor_type | C5: =IF(e_donor_type_I="acetic acid",1,IF(e_donor_type_I="ethanol",2,"")) -> 1 | D5: <-- 1 for Acetic Acid, 2 for Ethanol
A6: Electron Donor Dose (from Input) | B6: e_donor_dose | C6: =e_donor_dose_I -> 10 | D6: mg/l
A7: Electron donor needed per day as 100% donor (design flow) | B7: e_donor_day_100pct | C7: =e_donor_dose*design_flow*8.34 -> 2.502 | D7: lbs/day
A8: Electron donor solution needed per day | B8: e_donor_day | C8: =IF(e_donor_type=1,e_donor_day_100pct/CH3NOOH_strength,e_donor_day_100pct) -> 12.51 | D8: lbs/day
A9: Electron donor volume per day | B9: e_donor_day_vol | C9: =e_donor_day/IF(e_donor_type=1,CH3NOOH_dens,IF(e_donor_type=2,ethanol_dens,"")) -> 1.485748219 | D9: gal/day
A10: Electron donor storage | B10: e_donor_store | C10: =e_donor_day_vol*(average_flow/design_flow)*chem_storage -> 10.40023753 | D10: gal
A11: Acetic acid storage | B11: acetic_store | C11: =IF(e_donor_type=1,e_donor_day*chem_storage,0) -> 375.3 | D11: lbs
A12: Ethanol storage | B12: ethanol_store | C12: =IF(e_donor_type=2,e_donor_store,0) -> 0 | D12: gal
A13: Maximum chemical storage tank size | B13: max_chem_tank_size | C13: =MAX(VLOOKUP(10^6,pl_cst_cost_cl,1)-1,VLOOKUP(10^6,fg_cst_cost_cl,1)-1,VLOOKUP(10^6,ss_cst_cost_cl,1)-1) -> 30000 | D13: gallons | E13: The largest size for which costs are available (including plastic, fiberglass, and stainless)
A15: Number of electron donor storage tanks | B15: e_donor_tanks | C15: =ROUNDUP(e_donor_store/max_chem_tank_size,0) -> 1 | D15: units
A16: Electron donor storage tank size | B16: e_donor_tank_vol | C16: =ROUNDUP(e_donor_store/e_donor_tanks,0) -> 11 | D16: gal
A17: Electron donor day tank storage volume required (based on design flow) | B17: e_donor_day_tank_vol_needed | C17: =e_donor_day_vol*design_flow/average_flow -> 6.367492365 | D17: gallons
A18: Electron donor number of day tanks | B18: e_donor_day_tanks | C18: =IF(e_donor_day_tank_vol_needed<day_tank_needed,0,ROUNDUP(e_donor_day_tank_vol_needed/max_chem_tank_size,0)) -> 1 | D18: units
A19: Electron donor volume of day tanks | B19: e_donor_day_tank_vol | C19: =IF(e_donor_day_tanks=0,0,ROUNDUP(e_donor_day_tank_vol_needed/e_donor_day_tanks,0)) -> 7 | D19: gallons
A20: Maximum chemical tank mixer horsepower | B20: cmix_hp_max | C20: =MAX(VLOOKUP(10^6,port_mix_cost_cl,1)-0.1,VLOOKUP(10^6,mount_mix_cost_cl,1)-0.1,VLOOKUP(10^6,imp_mix_cost_cl,1)-0.1) -> 20 | D20: hp
A21: Mixers per storage tank | B21: e_donor_cmix_per_tank | C21: =IF(AND(include_cmix=1,e_donor_tanks<>0),ROUNDUP(e_donor_tank_vol/1000*cmix_hp_per/cmix_hp_max,0),0) -> 0 | D21: units
A22: Number of storage tank mixers | B22: e_donor_cmixers | C22: =e_donor_tanks*e_donor_cmix_per_tank -> 0 | D22: units
A23: Mixer size for storage tanks | B23: e_donor_cmix_size | C23: =IF(e_donor_cmixers<>0,MAX(min_cmix_hp,e_donor_tank_vol/1000*cmix_hp_per/e_donor_cmix_per_tank),0) -> 0 | D23: hp
A24: Mixers per day tank | B24: e_donor_dmix_per_tank | C24: =IF(AND(include_cmix=1,e_donor_day_tanks<>0),ROUNDUP(e_donor_day_tank_vol/1000*cmix_hp_per/cmix_hp_max,0),0) -> 0 | D24: units
A25: Number of day tank mixers | B25: e_donor_dmixers | C25: =e_donor_day_tanks*e_donor_dmix_per_tank -> 0 | D25: units
A26: Mixer size for day tanks | B26: e_donor_dmix_size | C26: =IF(e_donor_dmixers<>0,MAX(min_cmix_hp,e_donor_day_tank_vol/1000*cmix_hp_per/e_donor_dmix_per_tank),0) -> 0 | D26: hp
A28: Sample Electron Donor Dose Calculations
A29: All influent concnetrations listed | B29: dose_calc | C29: =IF(OR(ClO4_in="",O2_in="",NO3_in=""), FALSE,TRUE) -> FALSE
A30: Calculated acetic acid dose | B30: acetic_dose_sample | C30: =IF(dose_calc,((2.248*O2_in)+(0.515*NO3_in)+(1.447*ClO4_in)),"NA") -> NA | D30: mg/l | E30: Caa = 2.248 O2 + 0.515 NO3-N + 1.447 ClO4- (Batista peer review comments)
A31: Calculated ethanol dose | B31: ethanol_dose_sample | C31: =IF(dose_calc,(0.903*O2_in+2.229*NO3_in+0.581*ClO4_in),"NA") -> NA | D31: mg/l | E31: Ce = 0.903 O2 + 2.229 NO3-N + 0.581 ClO4- (Harding ESE, 2001)
A33: NUTRIENTS
A34: Additional Nutrients? | B34: nutrient_option | C34: =IF(nutrient_option_I="no additional nutrients required",1,IF(nutrient_option_I="additional nitrogen required",2,IF(nutrient_option_I="additional phosphorous required",3,IF(nutrient_option_I="both nitrogen and phosphorous required",4,"")))) -> 3 | D34: <-- 1 for no additional nutrients required, 2 for additional nitrogen required, 3 for additional phosphorous required, 4 for both nitrogen and phosphorous required
A36: Nitorgen Source
A37: Ammonium Chloride Dose (from Input) | B37: NH4Cl_dose | C37: =IF(OR(nutrient_option=2,nutrient_option=4),NH4Cl_dose_I,0) -> 0 | D37: mg/l
A38: Ammonium Chloride needed per day (design flow) | B38: NH4Cl_day | C38: =IF(OR(nutrient_option=2,nutrient_option=4),NH4Cl_dose*design_flow*8.34,0) -> 0 | D38: lbs/day
A39: Ammonium Chloride volume per day | B39: NH4Cl_vol | C39: =IF(OR(nutrient_option=2,nutrient_option=4),NH4Cl_day/NH4CL_dens,0) -> 0 | D39: gal/day
A40: Ammonium Chloride storage | B40: NH4Cl_store | C40: =IF(OR(nutrient_option=2,nutrient_option=4),NH4Cl_vol*(average_flow/design_flow)*chem_storage,0) -> 0 | D40: gal
A41: Ammonium Chloride storage in pounds | B41: NH4Cl_store_lbs | C41: =IF(OR(nutrient_option=2,nutrient_option=4),NH4Cl_day*(average_flow/design_flow)*chem_storage,0) -> 0 | D41: lbs
A42: Number of Ammonium Chloride storage tanks | B42: NH4Cl_tanks | C42: =IF(OR(nutrient_option=2,nutrient_option=4),ROUNDUP(NH4Cl_store/max_chem_tank_size,0),0) -> 0 | D42: units
A43: Ammonium Chloride storage tank size | B43: NH4Cl_tank_vol | C43: =IF(OR(nutrient_option=2,nutrient_option=4),ROUNDUP(NH4Cl_store/NH4Cl_tanks,0),0) -> 0 | D43: gal
A44: Ammonium Chloride day tank storage volume required (based on design flow) | B44: NH4Cl_day_tank_vol_needed | C44: =NH4Cl_vol -> 0 | D44: gallons
A45: Ammonium Chloride number of day tanks | B45: NH4Cl_day_tanks | C45: =IF(NH4Cl_day_tank_vol_needed<day_tank_needed,0,ROUNDUP(NH4Cl_day_tank_vol_needed/max_chem_tank_size,0)) -> 0 | D45: units
A46: Ammonium Chloride volume of day tanks | B46: NH4Cl_day_tank_vol | C46: =IF(NH4Cl_day_tanks=0,0,ROUNDUP(NH4Cl_day_tank_vol_needed/NH4Cl_day_tanks,0)) -> 0 | D46: gallons
A47: Mixers per storage tank | B47: NH4Cl_cmix_per_tank | C47: =IF(AND(include_cmix=1,NH4Cl_tanks<>0),ROUNDUP(NH4Cl_tank_vol/1000*cmix_hp_per/cmix_hp_max,0),0) -> 0 | D47: units
A48: Number of storage tank mixers | B48: NH4Cl_cmixers | C48: =NH4Cl_tanks*NH4Cl_cmix_per_tank -> 0 | D48: units
A49: Mixer size for storage tanks | B49: NH4Cl_cmix_size | C49: =IF(NH4Cl_cmixers<>0,MAX(min_cmix_hp,NH4Cl_tank_vol/1000*cmix_hp_per/NH4Cl_cmix_per_tank),0) -> 0 | D49: hp
A50: Mixers per day tank | B50: NH4Cl_dmix_per_tank | C50: =IF(AND(include_cmix=1,NH4Cl_day_tanks<>0),ROUNDUP(NH4Cl_day_tank_vol/1000*cmix_hp_per/cmix_hp_max,0),0) -> 0 | D50: units
A51: Number of day tank mixers | B51: NH4Cl_dmixers | C51: =NH4Cl_day_tanks*NH4Cl_dmix_per_tank -> 0 | D51: units
A52: Mixer size for day tanks | B52: NH4Cl_dmix_size | C52: =IF(NH4Cl_dmixers<>0,MAX(min_cmix_hp,NH4Cl_day_tank_vol/1000*cmix_hp_per/NH4Cl_dmix_per_tank),0) -> 0 | D52: hp
A54: Phosphorous Source
A55: Pounds of phosphorus needed per day (design flow) | B55: lb_P_day | C55: =IF(OR(nutrient_option=3,nutrient_option=4),H3PO4_dose_I*3.7854*0.000002204*(design_flow*1000000)) -> 0.250290648 | D55: lbs/day | E55: 3.7854 converts liters to gallons; 0.000002204 converts milligrams to pounds; 1000000 converts MGD to gallons per day;
A56: Phosphoric Acid needed per day (design flow) | B56: H3PO4_day | C56: =IF(OR(nutrient_option=3,nutrient_option=4),H3PO4_vol*H3PO4_dens,0) -> 1.058180162 | D56: lbs/day
A57: Phosphoric Acid volume per day | B57: H3PO4_vol | C57: =IF(OR(nutrient_option=3,nutrient_option=4),lb_P_day/H3PO4_strength/H3PO4_dens,0) -> 0.08034777237 | D57: gal/day
A58: Phosphoric Acid storage | B58: H3PO4_store | C58: =IF(OR(nutrient_option=3,nutrient_option=4),H3PO4_vol*(average_flow/design_flow)*chem_storage,0) -> 0.5624344066 | D58: gal
A59: Phosphoric Acid storage in pounds | B59: H3PO4_store_lbs | C59: =IF(OR(nutrient_option=3,nutrient_option=4),H3PO4_store*H3PO4_dens,0) -> 7.407261135 | D59: lbs
A60: Maximum chemical storage tank size for phosphoric acid | B60: max_chem_tank_size_noSS | C60: =MAX(VLOOKUP(10^6,pl_cst_cost_cl,1)-1,VLOOKUP(10^6,fg_cst_cost_cl,1)-1) -> 30000 | D60: gallons | E60: The largest size for which costs are available (not including stainless, which is not compatible with phosphoric acid)
A61: Number of Phosphoric Acid storage tanks | B61: H3PO4_tanks | C61: =IF(OR(nutrient_option=3,nutrient_option=4),ROUNDUP(H3PO4_store/max_chem_tank_size_noSS,0),0) -> 1 | D61: units
A62: Phosphoric Acid storage tank size | B62: H3PO4_tank_vol | C62: =IF(OR(nutrient_option=3,nutrient_option=4),ROUNDUP(H3PO4_store/H3PO4_tanks,0),0) -> 1 | D62: gal
A63: Phosphoric Acid day tank storage volume required (based on design flow) | B63: H3PO4_day_tank_vol_needed | C63: =H3PO4_vol -> 0.08034777237 | D63: gallons
A64: Phosphoric Acid number of day tanks | B64: H3PO4_day_tanks | C64: =IF(H3PO4_day_tank_vol_needed<day_tank_needed,0,ROUNDUP(H3PO4_day_tank_vol_needed/max_chem_tank_size_noSS,0)) -> 0 | D64: units
A65: Phosphoric Acid volume of day tanks | B65: H3PO4_day_tank_vol | C65: =IF(H3PO4_day_tanks=0,0,ROUNDUP(H3PO4_day_tank_vol_needed/H3PO4_day_tanks,0)) -> 0 | D65: gallons
A66: Mixers per storage tank | B66: H3PO4_cmix_per_tank | C66: =IF(AND(include_cmix=1,H3PO4_tanks<>0),ROUNDUP(H3PO4_tank_vol/1000*cmix_hp_per/cmix_hp_max,0),0) -> 0 | D66: units
A67: Number of storage tank mixers | B67: H3PO4_cmixers | C67: =H3PO4_tanks*H3PO4_cmix_per_tank -> 0 | D67: units
A68: Mixer size for storage tanks | B68: H3PO4_cmix_size | C68: =IF(H3PO4_cmixers<>0,MAX(min_cmix_hp,H3PO4_tank_vol/1000*cmix_hp_per/H3PO4_cmix_per_tank),0) -> 0 | D68: hp
A69: Mixers per day tank | B69: H3PO4_dmix_per_tank | C69: =IF(AND(include_cmix=1,H3PO4_day_tanks<>0),ROUNDUP(H3PO4_day_tank_vol/1000*cmix_hp_per/cmix_hp_max,0),0) -> 0 | D69: units
A70: Number of day tank mixers | B70: H3PO4_dmixers | C70: =H3PO4_day_tanks*H3PO4_dmix_per_tank -> 0 | D70: units
A71: Mixer size for day tanks | B71: H3PO4_dmix_size | C71: =IF(H3PO4_dmixers<>0,MAX(min_cmix_hp,H3PO4_day_tank_vol/1000*cmix_hp_per/H3PO4_dmix_per_tank),0) -> 0 | D71: hp
A73: Acetic Acid Purchasing
A74: Quantity required for large quantity purchase | C74: =VLOOKUP("Acetic Acid - Large Qty",chem_break_table_cl,2,FALSE) ->  | D74: lbs | E74: #N/A indicates that price data do not depend on volume purchased.
A75: Quantity required for mid quantity purchase | C75: =VLOOKUP("Acetic Acid - Mid Qty",chem_break_table_cl,2,FALSE) ->  | D75: lbs | E75: #N/A indicates that price data do not depend on volume purchased.
A76: Quantity required for small quantity purchase | C76: =VLOOKUP("Acetic Acid - Small Qty",chem_break_table_cl,2,FALSE) ->  | D76: lbs | E76: #N/A indicates that price data do not depend on volume purchased.
A77: Purchase Type | B77: acetic_purchase | C77: =IF(AND(ISNA(C74),ISNA(C75),ISNA(C76)),"",IF(acetic_store>=C74," - Large Qty",IF(acetic_store>=C75," - Mid Qty"," - Small Qty"))) ->  | E77: Returns descriptive term based on volume of each purchase for use in determining pricing. Blank indicates that price data do not depend on volume purchased.
A79: Ethanol Purchasing
A80: Quantity required for large quantity purchase | C80: =VLOOKUP("Ethanol - Large Qty",chem_break_table_cl,2,FALSE) ->  | D80: gal | E80: #N/A indicates that price data do not depend on volume purchased.
A81: Quantity required for mid quantity purchase | C81: =VLOOKUP("Ethanol - Mid Qty",chem_break_table_cl,2,FALSE) ->  | D81: gal | E81: #N/A indicates that price data do not depend on volume purchased.
A82: Quantity required for small quantity purchase | C82: =VLOOKUP("Ethanol - Small Qty",chem_break_table_cl,2,FALSE) ->  | D82: gal | E82: #N/A indicates that price data do not depend on volume purchased.
A83: Purchase Type | B83: ethanol_purchase | C83: =IF(AND(ISNA(C80),ISNA(C81),ISNA(C82)),"",IF(ethanol_store>=C80," - Large Qty",IF(ethanol_store>=C81," - Mid Qty"," - Small Qty"))) ->  | E83: Returns descriptive term based on volume of each purchase for use in determining pricing. Blank indicates that price data do not depend on volume purchased.
A85: Ammonium Chloride Purchasing
A86: Quantity required for large quantity purchase | C86: =VLOOKUP("Ammonium Chloride - Large Qty",chem_break_table_cl,2,FALSE) ->  | D86: lbs | E86: #N/A indicates that price data do not depend on volume purchased.
A87: Quantity required for mid quantity purchase | C87: =VLOOKUP("Ammonium Chloride - Mid Qty",chem_break_table_cl,2,FALSE) ->  | D87: lbs | E87: #N/A indicates that price data do not depend on volume purchased.
A88: Quantity required for small quantity purchase | C88: =VLOOKUP("Ammonium Chloride - Small Qty",chem_break_table_cl,2,FALSE) ->  | D88: lbs | E88: #N/A indicates that price data do not depend on volume purchased.
A89: Purchase Type | B89: NH4Cl_purchase | C89: =IF(AND(ISNA(C86),ISNA(C87),ISNA(C88)),"",IF(NH4Cl_store_lbs>=C86," - Large Qty",IF(NH4Cl_store_lbs>=C87," - Mid Qty"," - Small Qty"))) ->  | E89: Returns descriptive term based on volume of each purchase for use in determining pricing. Blank indicates that price data do not depend on volume purchased.
A91: Phosphoric Acid Purchasing
A92: Quantity required for large quantity purchase | C92: =VLOOKUP("Phosphoric Acid - Large Qty",chem_break_table_cl,2,FALSE) -> 44000 | D92: lbs | E92: #N/A indicates that price data do not depend on volume purchased.
A93: Quantity required for mid quantity purchase | C93: =VLOOKUP("Phosphoric Acid - Mid Qty",chem_break_table_cl,2,FALSE) -> 44000 | D93: lbs | E93: #N/A indicates that price data do not depend on volume purchased.
A94: Quantity required for small quantity purchase | C94: =VLOOKUP("Phosphoric Acid - Small Qty",chem_break_table_cl,2,FALSE) -> 0 | D94: lbs | E94: #N/A indicates that price data do not depend on volume purchased.
A95: Purchase Type | B95: H3PO4_purchase | C95: =IF(AND(ISNA(C92),ISNA(C93),ISNA(C94)),"",IF(H3PO4_store_lbs>=C92," - Large Qty",IF(H3PO4_store_lbs>=C93," - Mid Qty"," - Small Qty"))) -> - Small Qty | E95: Returns descriptive term based on volume of each purchase for use in determining pricing. Blank indicates that price data do not depend on volume purchased.
A97: Secondary Containment for Electron Donor Storage Tanks
A98: Minimum volume required | B98: e_donor_st_cont_volume | C98: =MAX(e_donor_tanks*e_donor_tank_vol*sec_cont_pct_of_total,e_donor_tank_vol*sec_cont_pct_of_largest)/7.48 -> 1.617647059 | D98: cubic feet | E98: 7.48 converts gallons to cubic feet
A99: Footprint available | B99: e_donor_st_cont_fp | C99: =IF(e_donor_tanks=0,0,e_donor_fp-e_donor_tanks*PI()*(e_donor_st_diam/2)^2) -> 8.214601837 | D99: square feet | E99: Total footprint minus displacement by tanks themselves
A100: Curb height required | B100: e_donor_st_curb_height | C100: =IF(e_donor_tanks=0,0,e_donor_st_cont_volume/e_donor_st_cont_fp+sec_cont_freeboard/12) -> 0.6969233678 | D100: feet
A101: Curb thickness | B101: e_donor_st_curb_thick | C101: =IF(e_donor_tanks=0,0,MIN(sec_cont_max_thick,e_donor_st_curb_height)) -> 0.6969233678 | D101: feet
A102: Curb length (long side) | B102: e_donor_st_curb_len_long | C102: =IF(e_donor_tanks=0,0,e_donor_tanks*e_donor_st_diam+2*space_e_donor_st+(e_donor_tanks-1)*space_e_donor_st+2*e_donor_st_curb_thick) -> 4.393846736 | D102: feet
A103: Curb length (short side) | B103: e_donor_st_curb_len_short | C103: =IF(e_donor_tanks=0,0,e_donor_st_diam+2*space_e_donor_st) -> 3 | D103: feet
A104: Curb concrete volume | B104: e_donor_st_curb_concrete | C104: =IF(e_donor_tanks=0,0,ROUNDUP((e_donor_st_curb_len_long*2+e_donor_st_curb_len_short*2)*e_donor_st_curb_height*e_donor_st_curb_thick/27,0)) -> 1 | D104: cubic yards | E104: 27 converts cubic feet to cubic yards
A105: Chemical resistant coating required | B105: e_donor_st_coating_gal | C105: =IF(e_donor_tanks=0,0,ROUNDUP((e_donor_fp+2*(e_donor_st_curb_len_long-2*e_donor_st_curb_thick)*e_donor_st_curb_height+2*e_donor_st_curb_len_short*e_donor_st_curb_height)/sec_cont_coating_cvg,0)) -> 1 | D105: gallons | E105: Covers total footprint plus inside surface and top of curbs
A107: Secondary Containment for Electron Donor Day Tanks
A108: Minimum volume required | B108: e_donor_dt_cont_volume | C108: =MAX(e_donor_day_tanks*e_donor_day_tank_vol*sec_cont_pct_of_total,e_donor_day_tank_vol*sec_cont_pct_of_largest)/7.48 -> 1.029411765 | D108: cubic feet | E108: 7.48 converts gallons to cubic feet
A109: Footprint available | B109: e_donor_dt_cont_fp | C109: =IF(e_donor_day_tanks=0,0,e_donor_day_fp-e_donor_day_tanks*PI()*(e_donor_dt_diam/2)^2) -> 8.214601837 | D109: square feet | E109: Total footprint minus displacement by tanks themselves
A110: Curb height required | B110: e_donor_dt_curb_height | C110: =IF(e_donor_day_tanks=0,0,e_donor_dt_cont_volume/e_donor_dt_cont_fp+sec_cont_freeboard/12) -> 0.6253148704 | D110: feet
A111: Curb thickness | B111: e_donor_dt_curb_thick | C111: =IF(e_donor_day_tanks=0,0,MIN(sec_cont_max_thick,e_donor_dt_curb_height)) -> 0.6253148704 | D111: feet
A112: Curb length (long side) | B112: e_donor_dt_curb_len_long | C112: =IF(e_donor_day_tanks=0,0,e_donor_day_tanks*e_donor_dt_diam+2*space_e_donor_dt+(e_donor_day_tanks-1)*space_e_donor_dt+2*e_donor_dt_curb_thick) -> 4.250629741 | D112: feet
A113: Curb length (short side) | B113: e_donor_dt_curb_len_short | C113: =IF(e_donor_day_tanks=0,0,e_donor_dt_diam+2*space_e_donor_dt) -> 3 | D113: feet
A114: Curb concrete volume | B114: e_donor_dt_curb_concrete | C114: =IF(e_donor_day_tanks=0,0,ROUNDUP((e_donor_dt_curb_len_long*2+e_donor_dt_curb_len_short*2)*e_donor_dt_curb_height*e_donor_dt_curb_thick/27,0)) -> 1 | D114: cubic yards | E114: 27 converts cubic feet to cubic yards
A115: Chemical resistant coating required | B115: e_donor_dt_coating_gal | C115: =IF(e_donor_day_tanks=0,0,ROUNDUP((e_donor_day_fp+2*(e_donor_dt_curb_len_long-2*e_donor_dt_curb_thick)*e_donor_dt_curb_height+2*e_donor_dt_curb_len_short*e_donor_dt_curb_height)/sec_cont_coating_cvg,0)) -> 1 | D115: gallons | E115: Covers total footprint plus inside surface and top of curbs
A117: Secondary Containment for Ammonium Chloride Storage Tanks
A118: Minimum volume required | B118: NH4Cl_st_cont_volume | C118: =MAX(NH4Cl_tanks*NH4Cl_tank_vol*sec_cont_pct_of_total,NH4Cl_tank_vol*sec_cont_pct_of_largest)/7.48 -> 0 | D118: cubic feet | E118: 7.48 converts gallons to cubic feet
A119: Footprint available | B119: NH4Cl_st_cont_fp | C119: =IF(NH4Cl_tanks=0,0,NH4Cl_donor_fp-NH4Cl_tanks*PI()*(NH4Cl_st_diam/2)^2) -> 0 | D119: square feet | E119: Total footprint minus displacement by tanks themselves
A120: Curb height required | B120: NH4Cl_st_curb_height | C120: =IF(NH4Cl_tanks=0,0,NH4Cl_st_cont_volume/NH4Cl_st_cont_fp+sec_cont_freeboard/12) -> 0 | D120: feet
A121: Curb thickness | B121: NH4Cl_st_curb_thick | C121: =IF(NH4Cl_tanks=0,0,MIN(sec_cont_max_thick,NH4Cl_st_curb_height)) -> 0 | D121: feet
A122: Curb length (long side) | B122: NH4Cl_st_curb_len_long | C122: =IF(NH4Cl_tanks=0,0,NH4Cl_tanks*NH4Cl_st_diam+2*space_NH4Cl_st+(NH4Cl_tanks-1)*space_NH4Cl_st+2*NH4Cl_st_curb_thick) -> 0 | D122: feet
A123: Curb length (short side) | B123: NH4Cl_st_curb_len_short | C123: =IF(NH4Cl_tanks=0,0,NH4Cl_st_diam+2*space_NH4Cl_st) -> 0 | D123: feet
A124: Curb concrete volume | B124: NH4Cl_st_curb_concrete | C124: =IF(NH4Cl_tanks=0,0,ROUNDUP((NH4Cl_st_curb_len_long*2+NH4Cl_st_curb_len_short*2)*NH4Cl_st_curb_height*NH4Cl_st_curb_thick/27,0)) -> 0 | D124: cubic yards | E124: 27 converts cubic feet to cubic yards
A125: Chemical resistant coating required | B125: NH4Cl_st_coating_gal | C125: =IF(NH4Cl_tanks=0,0,ROUNDUP((NH4Cl_donor_fp+2*(NH4Cl_st_curb_len_long-2*NH4Cl_st_curb_thick)*NH4Cl_st_curb_height+2*NH4Cl_st_curb_len_short*NH4Cl_st_curb_height)/sec_cont_coating_cvg,0)) -> 0 | D125: gallons | E125: Covers total footprint plus inside surface and top of curbs
A127: Secondary Containment for Ammonium Chloride Day Tanks
A128: Minimum volume required | B128: NH4Cl_dt_cont_volume | C128: =MAX(NH4Cl_day_tanks*NH4Cl_day_tank_vol*sec_cont_pct_of_total,NH4Cl_day_tank_vol*sec_cont_pct_of_largest)/7.48 -> 0 | D128: cubic feet | E128: 7.48 converts gallons to cubic feet
A129: Footprint available | B129: NH4Cl_dt_cont_fp | C129: =IF(NH4Cl_day_tanks=0,0,NH4Cl_donor_day_fp-NH4Cl_day_tanks*PI()*(NH4Cl_dt_diam/2)^2) -> 0 | D129: square feet | E129: Total footprint minus displacement by tanks themselves
A130: Curb height required | B130: NH4Cl_dt_curb_height | C130: =IF(NH4Cl_day_tanks=0,0,NH4Cl_dt_cont_volume/NH4Cl_dt_cont_fp+sec_cont_freeboard/12) -> 0 | D130: feet
A131: Curb thickness | B131: NH4Cl_dt_curb_thick | C131: =IF(NH4Cl_day_tanks=0,0,MIN(sec_cont_max_thick,NH4Cl_dt_curb_height)) -> 0 | D131: feet
A132: Curb length (long side) | B132: NH4Cl_dt_curb_len_long | C132: =IF(NH4Cl_day_tanks=0,0,NH4Cl_day_tanks*NH4Cl_dt_diam+2*space_NH4Cl_dt+(NH4Cl_day_tanks-1)*space_NH4Cl_dt+2*NH4Cl_dt_curb_thick) -> 0 | D132: feet
A133: Curb length (short side) | B133: NH4Cl_dt_curb_len_short | C133: =IF(NH4Cl_day_tanks=0,0,NH4Cl_dt_diam+2*space_NH4Cl_dt) -> 0 | D133: feet
A134: Curb concrete volume | B134: NH4Cl_dt_curb_concrete | C134: =IF(NH4Cl_day_tanks=0,0,ROUNDUP((NH4Cl_dt_curb_len_long*2+NH4Cl_dt_curb_len_short*2)*NH4Cl_dt_curb_height*NH4Cl_dt_curb_thick/27,0)) -> 0 | D134: cubic yards | E134: 27 converts cubic feet to cubic yards
A135: Chemical resistant coating required | B135: NH4Cl_dt_coating_gal | C135: =IF(NH4Cl_day_tanks=0,0,ROUNDUP((NH4Cl_donor_day_fp+2*(NH4Cl_dt_curb_len_long-2*NH4Cl_dt_curb_thick)*NH4Cl_dt_curb_height+2*NH4Cl_dt_curb_len_short*NH4Cl_dt_curb_height)/sec_cont_coating_cvg,0)) -> 0 | D135: gallons | E135: Covers total footprint plus inside surface and top of curbs
A137: Secondary Containment for Phosphoric Acid Storage Tanks
A138: Minimum volume required | B138: H3PO4_st_cont_volume | C138: =MAX(H3PO4_tanks*H3PO4_tank_vol*sec_cont_pct_of_total,H3PO4_tank_vol*sec_cont_pct_of_largest)/7.48 -> 0.1470588235 | D138: cubic feet | E138: 7.48 converts gallons to cubic feet
A139: Footprint available | B139: H3PO4_st_cont_fp | C139: =IF(H3PO4_tanks=0,0,H3PO4_donor_fp-H3PO4_tanks*PI()*(H3PO4_st_diam/2)^2) -> 2.803650459 | D139: square feet | E139: Total footprint minus displacement by tanks themselves
A140: Curb height required | B140: H3PO4_st_curb_height | C140: =IF(H3PO4_tanks=0,0,H3PO4_st_cont_volume/H3PO4_st_cont_fp+sec_cont_freeboard/12) -> 0.5524526241 | D140: feet
A141: Curb thickness | B141: H3PO4_st_curb_thick | C141: =IF(H3PO4_tanks=0,0,MIN(sec_cont_max_thick,H3PO4_st_curb_height)) -> 0.5524526241 | D141: feet
A142: Curb length (long side) | B142: H3PO4_st_curb_len_long | C142: =IF(H3PO4_tanks=0,0,H3PO4_tanks*H3PO4_st_diam+2*space_H3PO4_st+(H3PO4_tanks-1)*space_H3PO4_st+2*H3PO4_st_curb_thick) -> 2.604905248 | D142: feet
A143: Curb length (short side) | B143: H3PO4_st_curb_len_short | C143: =IF(H3PO4_tanks=0,0,H3PO4_st_diam+2*space_H3PO4_st) -> 1.5 | D143: feet
A144: Curb concrete volume | B144: H3PO4_st_curb_concrete | C144: =IF(H3PO4_tanks=0,0,ROUNDUP((H3PO4_st_curb_len_long*2+H3PO4_st_curb_len_short*2)*H3PO4_st_curb_height*H3PO4_st_curb_thick/27,0)) -> 1 | D144: cubic yards | E144: 27 converts cubic feet to cubic yards
A145: Chemical resistant coating required | B145: H3PO4_st_coating_gal | C145: =IF(H3PO4_tanks=0,0,ROUNDUP((H3PO4_donor_fp+2*(H3PO4_st_curb_len_long-2*H3PO4_st_curb_thick)*H3PO4_st_curb_height+2*H3PO4_st_curb_len_short*H3PO4_st_curb_height)/sec_cont_coating_cvg,0)) -> 1 | D145: gallons | E145: Covers total footprint plus inside surface and top of curbs
A147: Secondary Containment for Phosphoric Acid Day Tanks
A148: Minimum volume required | B148: H3PO4_dt_cont_volume | C148: =MAX(H3PO4_day_tanks*H3PO4_day_tank_vol*sec_cont_pct_of_total,H3PO4_day_tank_vol*sec_cont_pct_of_largest)/7.48 -> 0 | D148: cubic feet | E148: 7.48 converts gallons to cubic feet
A149: Footprint available | B149: H3PO4_dt_cont_fp | C149: =IF(H3PO4_day_tanks=0,0,H3PO4_donor_day_fp-H3PO4_day_tanks*PI()*(H3PO4_dt_diam/2)^2) -> 0 | D149: square feet | E149: Total footprint minus displacement by tanks themselves
A150: Curb height required | B150: H3PO4_dt_curb_height | C150: =IF(H3PO4_day_tanks=0,0,H3PO4_dt_cont_volume/H3PO4_dt_cont_fp+sec_cont_freeboard/12) -> 0 | D150: feet
A151: Curb thickness | B151: H3PO4_dt_curb_thick | C151: =IF(H3PO4_day_tanks=0,0,MIN(sec_cont_max_thick,H3PO4_dt_curb_height)) -> 0 | D151: feet
A152: Curb length (long side) | B152: H3PO4_dt_curb_len_long | C152: =IF(H3PO4_day_tanks=0,0,H3PO4_day_tanks*H3PO4_dt_diam+2*space_H3PO4_dt+(H3PO4_day_tanks-1)*space_H3PO4_dt+2*H3PO4_dt_curb_thick) -> 0 | D152: feet
A153: Curb length (short side) | B153: H3PO4_dt_curb_len_short | C153: =IF(H3PO4_day_tanks=0,0,H3PO4_dt_diam+2*space_H3PO4_dt) -> 0 | D153: feet
A154: Curb concrete volume | B154: H3PO4_dt_curb_concrete | C154: =IF(H3PO4_day_tanks=0,0,ROUNDUP((H3PO4_dt_curb_len_long*2+H3PO4_dt_curb_len_short*2)*H3PO4_dt_curb_height*H3PO4_dt_curb_thick/27,0)) -> 0 | D154: cubic yards | E154: 27 converts cubic feet to cubic yards
A155: Chemical resistant coating required | B155: H3PO4_dt_coating_gal | C155: =IF(H3PO4_day_tanks=0,0,ROUNDUP((H3PO4_donor_day_fp+2*(H3PO4_dt_curb_len_long-2*H3PO4_dt_curb_thick)*H3PO4_dt_curb_height+2*H3PO4_dt_curb_len_short*H3PO4_dt_curb_height)/sec_cont_coating_cvg,0)) -> 0 | D155: gallons | E155: Covers total footprint plus inside surface and top of curbs

Sheet Biomass Control
A1: Biomass Control Calculations
A3: Calculation | B3: Range Name | C3: Value | D3: Units | E3: Guidance
A4: Calculated biomass generation | B4: biomass_sample | C4: =IF(dose_calc,((1.016*O2_in)+(0.155*NO3_in)+(0.659*ClO4_in)),"NA") -> NA | D4: mg/l | E4: Cbio = 1.016 O2 + 0.155 NO3-N + 0.659 ClO4- (Batista)
A6: BIOREACTOR BACKWASH
A7: Interval between backwashes (from inputs) | B7: back_interval | C7: =IF(design_type=3,0,back_interval_I) -> 24 | D7: hours | E7: from inputs
A8: Water flush rate (gpm) | B8: water_flush | C8: =ROUND(h2oflush_backwash_rate*IF(design_type=2,basin_width*basin_length,0)+IF(design_type=1,comm_SA,0),0) -> 5 | D8: gpm | E8: for backwahing fixed bed bioreactors
A9: Total water flush | B9: waterflush_vol | C9: =water_flush*backwash_time -> 50 | D9: gallons
A11: FILTER BACKWASH
A12: Interval between filter backwashes (from inputs) | B12: filter_back_interval | C12: =IF(include_post=0,0,filter_back_interval_I) -> 36 | D12: hours | E12: from inputs
A13: Water flush rate (gpm) | B13: filter_water_flush | C13: =IF(include_post=0,0,ROUND(filter_h2oflush_backwash_rate*IF(filter_type=1,filt_basin_area,comm_SA_filt),0)) -> 135 | D13: gpm | E13: for backwahing filters
A14: Total water flush | B14: filter_waterflush_vol | C14: =IF(include_post=0,0,filter_water_flush*filter_backwash_time) -> 945 | D14: gallons
A16: No backwash pumps | B16: no_backwash | C16: =IF(no_backwash_I="existing pumps",1,IF(no_backwash_I="new pumps","",IF(ss_cat2=1,1,""))) -> 1 | D16: <-- 1 = backwash using existing supply or treated water pumps, blank = include backwash pumps in costs
A17: No backwash tanks | B17: no_back_tank | C17: =IF(no_back_tank_I="existing storage",1,IF(no_back_tank_I="new storage","",IF(ss_cat2=2,"",1))) -> 1 | D17: <-- 1 = backwash from existing storage or supply, blank = include backwash tanks in costs
A18: Maximum backwash tank size | B18: max_back_tank_size | C18: =MAX(VLOOKUP(10^6,st_bwt_cost_cl,1)-1,VLOOKUP(10^6,fg_bwt_cost_cl,1)-1,VLOOKUP(10^6,hdpe_bwt_cost_cl,1)-1) -> 282094 | D18: gallons | E18: The largest size for which costs are available.
A19: Backwash tanks | B19: back_tanks | C19: =IF(no_back_tank=1,0,ROUNDUP((water_flush+filter_water_flush)/max_back_tank_size,0)) -> 0 | D19: units
A20: Backwash tank volume | B20: back_tank_vol | C20: =IF(back_tanks=0,0,(waterflush_vol+filter_waterflush_vol)/back_tanks) -> 0 | D20: gallons
A22: AIR SCOUR
A23: Total Backwash Air Scour Volume | B23: tot_air_scour | C23: =IF(air_scour_I="yes",(IF(design_type=1,comm_SA,basin_length*basin_width)+IF(filter_type=1,filt_basin_area,IF(filter_type=2,comm_SA_filt,0)))*air_scour_vol,"NA") -> 55.63495408 | D23: CFM
A24: Total Air Used for Biomass Seperation | B24: tot_air_biomass | C24: =IF(design_type=3,biomass_air_scour*design_flow_rate/60,0) -> 0 | D24: CFM | E24: for fluidized bed designs
A47: h

Sheet Post-Treatment
A1: Post-Treatment Calculations
A3: Calculation | B3: Range Name | C3: Value | D3: Units | E3: Guidance
A4: Re-oxygenation approach | B4: include_post_h2o2 | C4: =IF(include_post_h2o2_I="hydrogen peroxide",1,0) -> 0 | D4: <-- 1 for use H2O2, 0 to use Aeration
A5: Include polishing filter | B5: include_post | C5: =IF(include_post_I="no",0,1) -> 1 | D5: <-- 1 for Yes, 0 for No
A6: Polishing filter design type | B6: filter_type | C6: =IF(include_post=0,0,IF(filter_type_I="gravity basin",1,2)) -> 1 | D6: <-- 1 for gravity basin, 2 for pressure vessel, 0 for no polishing filter
A7: Include coagulant addition before fitration | B7: include_coag_filt | C7: =IF(include_post=0,0,IF(include_coag_filt_I="yes",1,0)) -> 1 | D7: <-- 1 for Yes, 0 for No
A9: Aeration
A10: Total aeration tank volume required | B10: aeration_tank_vol_required | C10: =IF(include_post_h2o2=1,0,design_flow_rate*hrt_aeration/7.48) -> 22.28163993 | D10: gallons
A11: Maximum aeration tank size | B11: max_aeration_tank_size | C11: =IF(include_post_h2o2=1,0,MAX(VLOOKUP(10^6,st_bwt_cost_cl,1)-1,VLOOKUP(10^6,fg_bwt_cost_cl,1)-1,VLOOKUP(10^6,hdpe_bwt_cost_cl,1)-1)) -> 282094 | D11: gallons | E11: The largest size for which costs are available.
A12: Aeration tanks | B12: aeration_tanks | C12: =IF(include_post_h2o2=1,0,ROUNDUP(aeration_tank_vol_required/max_aeration_tank_size,0)) -> 1 | D12: units
A13: Aeration tank volume | B13: aeration_tank_vol | C13: =IF(include_post_h2o2=1,0,aeration_tank_vol_required/aeration_tanks) -> 22.28163993 | D13: gallons
A14: Aeration tank water height | B14: aeration_water_height | C14: =aeration_tank_vol/7.48/(4*PI()*(aer_tank_diam/2)^2) -> 0.421418079 | D14: ft
A15: Design Air Flow | B15: air_flow_tot | C15: =IF(include_post_h2o2=1,0,design_flow_rate*rate_aeration/100) -> 1.354166667 | D15: scfm
A16: Maximum diffuser size | B16: max_diffuser_size | C16: =IF(include_post_h2o2=1,0,MAX(VLOOKUP(10^6,diffuser_cost_cl,1)-1)) -> 43.1 | D16: scfm | E16: The largest size for which costs are available.
A17: Total diffusers | B17: total_diffusers | C17: =IF(include_post_h2o2=1,0,ROUNDUP(air_flow_tot/max_diffuser_size,0)) -> 1 | D17: units
A18: Diffuser size | B18: diffuser_size | C18: =IF(include_post_h2o2=1,0,air_flow_tot/total_diffusers) -> 1.354166667 | D18: scfm
A20: Hydrogen Peroxide Addition
A21: H2O2 needed per day | B21: H2O2_day | C21: =IF(include_post_h2o2=0,0,H2O2_dose*design_flow*8.34) -> 0 | D21: lbs/day | E21: for 100% H2O2
A22: Solution needed per day | B22: solution_day | C22: =IF(include_post_h2o2=0,0,H2O2_day/H2O2_grade*(8.34*H2O2_sg)) -> 0 | D22: gal/day | E22: based on H2O2 at specified grade
A23: H2O2 storage in gallons | B23: H2O2_store_gal | C23: =IF(include_post_h2o2=0,0,solution_day*(average_flow/design_flow)*H2O2_days) -> 0 | D23: gal
A24: H2O2 storage in lbs | B24: H2O2_store_lbs | C24: =IF(include_post_h2o2=0,0,H2O2_day*(average_flow/design_flow)*H2O2_days) -> 0 | D24: lbs
A25: Maximum chemical tank size for H2O2 and KMnO4 | B25: max_chem_tank_size_H2O2 | C25: =MAX(VLOOKUP(10^6,pl_cst_cost_cl,1)-1,VLOOKUP(10^6,ss_cst_cost_cl,1)-1) -> 30000 | D25: gal | E25: The largest size for which costs are available (not including fiberglass, which is not compatible with H2O2)
A26: Number of chemical storage tanks | B26: H2O2_tanks | C26: =IF(include_post_h2o2=0,0,ROUNDUP(H2O2_store_gal/max_chem_tank_size_H2O2,0)) -> 0 | D26: units
A27: Chemical storage tank size | B27: H2O2_tank_vol | C27: =IF(include_post_h2o2=0,0,ROUNDUP(H2O2_store_gal/H2O2_tanks,0)) -> 0 | D27: gal
A28: Number of static mixers for H202 addition | B28: H2O2_mixers | C28: =IF(include_post_h2o2=0,0,n_mixers) -> 0
A29: Day tank storage volume required (based on design flow) | B29: H2O2_day_tank_vol_needed | C29: =solution_day -> 0 | D29: gallons
A30: Number of day tanks | B30: H2O2_day_tanks | C30: =IF(H2O2_day_tank_vol_needed<day_tank_needed,0,ROUNDUP(H2O2_day_tank_vol_needed/max_chem_tank_size_H2O2,0)) -> 0 | D30: units
A31: Volume of day tanks | B31: H2O2_day_tank_vol | C31: =IF(H2O2_day_tanks=0,0,ROUNDUP(H2O2_day_tank_vol_needed/H2O2_day_tanks,0)) -> 0 | D31: gallons
A32: Mixers per storage tank | B32: H2O2_cmix_per_tank | C32: =IF(AND(include_cmix=1,H2O2_tanks<>0),ROUNDUP(H2O2_tank_vol/1000*cmix_hp_per/cmix_hp_max,0),0) -> 0 | D32: units
A33: Number of storage tank mixers | B33: H2O2_cmixers | C33: =H2O2_tanks*H2O2_cmix_per_tank -> 0 | D33: units
A34: Mixer size for storage tanks | B34: H2O2_cmix_size | C34: =IF(H2O2_cmixers<>0,MAX(min_cmix_hp,H2O2_tank_vol/1000*cmix_hp_per/H2O2_cmix_per_tank),0) -> 0 | D34: hp
A35: Mixers per day tank | B35: H2O2_dmix_per_tank | C35: =IF(AND(include_cmix=1,H2O2_day_tanks<>0),ROUNDUP(H2O2_day_tank_vol/1000*cmix_hp_per/cmix_hp_max,0),0) -> 0 | D35: units
A36: Number of day tank mixers | B36: H2O2_dmixers | C36: =H2O2_day_tanks*H2O2_dmix_per_tank -> 0 | D36: units
A37: Mixer size for day tanks | B37: H2O2_dmix_size | C37: =IF(H2O2_dmixers<>0,MAX(min_cmix_hp,H2O2_day_tank_vol/1000*cmix_hp_per/H2O2_dmix_per_tank),0) -> 0 | D37: hp
A38: Maximum static mixer size available | B38: mixer_size_max | C38: =MAX(VLOOKUP(10^6,in_mix_cost_cl,1)-0.1,VLOOKUP(10^6,pl_in_mix_cost_cl,1)-0.1) -> 42 | D38: in | E38: The largest size for which costs are available
A39: Static mixer size for H2O2 addition | B39: mixer_size | C39: =IF(include_post_h2o2=0,0,MIN(mixer_size_max,H202_pipe_diam)) -> 0 | D39: in
A40: Solution feed rate at design flow | B40: solution_rate | C40: =IF(include_post_h2o2=0,0,solution_day/24) -> 0 | D40: gph | E40: for injection into diluted stream
A41: Flow rate for diluted H2O2 at design flow | B41: diluted_rate | C41: =IF(include_post_h2o2=0,0,solution_day*H2O2_grade/H2O2_dilute_conc/24/60) -> 0 | D41: gpm | E41: for H2O2 diluted to specified concentration before injection
A43: Hydrogen Peroxide Purchasing
A44: Quantity required for large quantity purchase | C44: =VLOOKUP("Hydrogen Peroxide - Large Qty",chem_break_table_cl,2,FALSE) ->  | D44: lbs | E44: #N/A indicates that price data do not depend on volume purchased.
A45: Quantity required for mid quantity purchase | C45: =VLOOKUP("Hydrogen Peroxide - Mid Qty",chem_break_table_cl,2,FALSE) ->  | D45: lbs | E45: #N/A indicates that price data do not depend on volume purchased.
A46: Quantity required for small quantity purchase | C46: =VLOOKUP("Hydrogen Peroxide - Small Qty",chem_break_table_cl,2,FALSE) ->  | D46: lbs | E46: #N/A indicates that price data do not depend on volume purchased.
A47: Purchase Type | B47: H2O2_purchase | C47: =IF(AND(ISNA(C44),ISNA(C45),ISNA(C46)),"",IF(H2O2_store_lbs>=C44," - Large Qty",IF(H2O2_store_lbs>=C45," - Mid Qty"," - Small Qty"))) ->  | E47: Returns descriptive term based on volume of each purchase for use in determining pricing. Blank indicates that price data do not depend on volume purchased.
A49: Secondary Containment for Hydrogen Peroxide Storage Tanks
A50: Minimum volume required | B50: H2O2_st_cont_volume | C50: =MAX(H2O2_tanks*H2O2_tank_vol*sec_cont_pct_of_total,H2O2_tank_vol*sec_cont_pct_of_largest)/7.48 -> 0 | D50: cubic feet | E50: 7.48 converts gallons to cubic feet
A51: Footprint available | B51: H2O2_st_cont_fp | C51: =IF(H2O2_tanks=0,0,H2O2_donor_fp-H2O2_tanks*PI()*(H2O2_st_diam/2)^2) -> 0 | D51: square feet | E51: Total footprint minus displacement by tanks themselves
A52: Curb height required | B52: H2O2_st_curb_height | C52: =IF(H2O2_tanks=0,0,H2O2_st_cont_volume/H2O2_st_cont_fp+sec_cont_freeboard/12) -> 0 | D52: feet
A53: Curb thickness | B53: H2O2_st_curb_thick | C53: =IF(H2O2_tanks=0,0,MIN(sec_cont_max_thick,H2O2_st_curb_height)) -> 0 | D53: feet
A54: Curb length (long side) | B54: H2O2_st_curb_len_long | C54: =IF(H2O2_tanks=0,0,H2O2_tanks*H2O2_st_diam+2*space_H2O2_st+(H2O2_tanks-1)*space_H2O2_st+2*H2O2_st_curb_thick) -> 0 | D54: feet
A55: Curb length (short side) | B55: H2O2_st_curb_len_short | C55: =IF(H2O2_tanks=0,0,H2O2_st_diam+2*space_H2O2_st) -> 0 | D55: feet
A56: Curb concrete volume | B56: H2O2_st_curb_concrete | C56: =IF(H2O2_tanks=0,0,ROUNDUP((H2O2_st_curb_len_long*2+H2O2_st_curb_len_short*2)*H2O2_st_curb_height*H2O2_st_curb_thick/27,0)) -> 0 | D56: cubic yards | E56: 27 converts cubic feet to cubic yards
A57: Chemical resistant coating required | B57: H2O2_st_coating_gal | C57: =IF(H2O2_tanks=0,0,ROUNDUP((H2O2_donor_fp+2*(H2O2_st_curb_len_long-2*H2O2_st_curb_thick)*H2O2_st_curb_height+2*H2O2_st_curb_len_short*H2O2_st_curb_height)/sec_cont_coating_cvg,0)) -> 0 | D57: gallons | E57: Covers total footprint plus inside surface and top of curbs
A59: Secondary Containment for Hydrogen Peroxide Day Tanks
A60: Minimum volume required | B60: H2O2_dt_cont_volume | C60: =MAX(H2O2_day_tanks*H2O2_day_tank_vol*sec_cont_pct_of_total,H2O2_day_tank_vol*sec_cont_pct_of_largest)/7.48 -> 0 | D60: cubic feet | E60: 7.48 converts gallons to cubic feet
A61: Footprint available | B61: H2O2_dt_cont_fp | C61: =IF(H2O2_day_tanks=0,0,H2O2_donor_day_fp-H2O2_day_tanks*PI()*(H2O2_dt_diam/2)^2) -> 0 | D61: square feet | E61: Total footprint minus displacement by tanks themselves
A62: Curb height required | B62: H2O2_dt_curb_height | C62: =IF(H2O2_day_tanks=0,0,H2O2_dt_cont_volume/H2O2_dt_cont_fp+sec_cont_freeboard/12) -> 0 | D62: feet
A63: Curb thickness | B63: H2O2_dt_curb_thick | C63: =IF(H2O2_day_tanks=0,0,MIN(sec_cont_max_thick,H2O2_dt_curb_height)) -> 0 | D63: feet
A64: Curb length (long side) | B64: H2O2_dt_curb_len_long | C64: =IF(H2O2_day_tanks=0,0,H2O2_day_tanks*H2O2_dt_diam+2*space_H2O2_dt+(H2O2_day_tanks-1)*space_H2O2_dt+2*H2O2_dt_curb_thick) -> 0 | D64: feet
A65: Curb length (short side) | B65: H2O2_dt_curb_len_short | C65: =IF(H2O2_day_tanks=0,0,H2O2_dt_diam+2*space_H2O2_dt) -> 0 | D65: feet
A66: Curb concrete volume | B66: H2O2_dt_curb_concrete | C66: =IF(H2O2_day_tanks=0,0,ROUNDUP((H2O2_dt_curb_len_long*2+H2O2_dt_curb_len_short*2)*H2O2_dt_curb_height*H2O2_dt_curb_thick/27,0)) -> 0 | D66: cubic yards | E66: 27 converts cubic feet to cubic yards
A67: Chemical resistant coating required | B67: H2O2_dt_coating_gal | C67: =IF(H2O2_day_tanks=0,0,ROUNDUP((H2O2_donor_day_fp+2*(H2O2_dt_curb_len_long-2*H2O2_dt_curb_thick)*H2O2_dt_curb_height+2*H2O2_dt_curb_len_short*H2O2_dt_curb_height)/sec_cont_coating_cvg,0)) -> 0 | D67: gallons | E67: Covers total footprint plus inside surface and top of curbs
A69: FILTER PRESSURE VESSELS
A70: Vessel geometry | B70: tank_geom_filt | C70: =IF(filter_type=2,IF(filt_tank_geom_I="horizontal",2,1),"-") -> - | D70: <-- 1 for upright cylindrical, 2 for horizontally-laid cylinder
A72: EBCT per vessel | B72: EBCT_tank_filt | C72: =IF(filter_type=2,ebct_filt,"-") -> - | D72: minute
A73: Vessel surface area | B73: max_sa_filt | C73: =IF(filter_type=2,IF(tank_geom_filt=1,PI()*(filt_comm_diam-2*Vessel_thickness)*(filt_comm_diam-2*Vessel_thickness)/4,IF(tank_geom_filt=2,(filt_comm_diam-2*Vessel_thickness)*filt_comm_height_length,0)),"-") -> - | D73: square feet
A74: Media volume per filter | B74: media_volume_filt | C74: =IF(filter_type=2,IF(tank_geom_filt=1,comm_SA_filt*filt_bed_depth,IF(tank_geom_filt=2,comm_vol_filt-underdrain_horiz_void_filt-void_above_filt)),"-") -> - | D74: cubic feet
A75: Height available above media bed (for horizontal vessels) | B75: distance_above_filt | C75: =IF(filter_type=2,IF(tank_geom_filt=2,filt_comm_diam-filt_bed_depth-horiz_underdrain,"NA"),"-") -> - | D75: feet
A76: Void space above media bed (for horizontal vessels) | B76: void_above_filt | C76: =IF(filter_type=2,IF(tank_geom_filt=2,filt_comm_height_length*(filt_comm_diam*filt_comm_diam/2*ASIN(SQRT(distance_above_filt/filt_comm_diam))-(filt_comm_diam/2-distance_above_filt)*SQRT((filt_comm_diam-distance_above_filt)*distance_above_filt)),"NA"),"-") -> - | D76: cubic feet
A77: Maximum flow per vessel | B77: flow_per_vessel_filt | C77: =IF(filter_type=2,IF(tank_geom_filt=1,(max_sa_filt*filt_bed_depth*7.48)/EBCT_tank_filt,media_volume_filt*7.48/EBCT_tank_filt),"-") -> - | D77: gpm
A78: Number of parallel treatment trains | B78: num_treat_lines_filt | C78: =IF(filter_type=2,ROUNDUP(design_flow_rate/flow_per_vessel_filt,0),"-") -> - | D78: lines
A79: Number of vessels excluding redundancy | B79: op_num_tanks_filt | C79: =IF(filter_type=2,ROUNDUP(design_flow_rate/flow_per_vessel_filt,0),"-") -> - | D79: units
A80: Number of redundant bioreactors | B80: NRD_filt_p | C80: =IF(filter_type=2,IF(op_num_tanks_filt=1,filt_NRD_small_1,CHOOSE(ss_cat2,filt_NRD_small,filt_NRD_basins_medium,filt_NRD_basins_large)),"-") -> -
A81: Total number of vessels including redundancy | B81: final_num_tanks_filt | C81: =IF(filter_type=2,(op_num_tanks_filt+NRD_filt_p),0) -> 0 | D81: units
A83: Vessel requirements based on bed depth and contact time
A84: Minimum volume of contact area needed | B84: contact_material_filt | C84: =IF(filter_type=2,design_flow_rate*EBCT_tank_filt/(7.481),"-") -> - | D84: cubic feet
A85: Minimum volume of contact area per vessel | B85: contact_mat_per_vessel_filt | C85: =IF(filter_type=2,contact_material_filt/op_num_tanks_filt,"-") -> - | D85: cubic feet
A86: Minimum volume of vessel | B86: vol_vessel_filt | C86: =IF(filter_type=2,contact_mat_per_vessel_filt*(1+filt_bed_expansion),"-") -> - | D86: cubic feet
A87: Minimum surface area of contact material | B87: SA_filt | C87: =IF(filter_type=2,contact_mat_per_vessel_filt/filt_bed_depth,"-") -> - | D87: square feet
A89: Quantities based on user-specified vessel dimensions
A90: Final surface area of contact material | B90: comm_SA_filt | C90: =IF(filter_type=2,IF(tank_geom_filt=1,(filt_comm_diam-(2*Vessel_thickness))^2*PI()/4,IF(tank_geom_filt=2,(filt_comm_diam-(2*Vessel_thickness))*filt_comm_height_length)),"-") -> - | D90: square feet
A91: Final surface loading rate | B91: comm_load_rate_filt | C91: =IF(filter_type=2,design_flow_rate/num_treat_lines_filt/comm_SA_filt,"-") -> - | D91: gpm/square ft
A92: Volume | B92: comm_vol_filt | C92: =IF(filter_type=2,PI()*filt_comm_diam^2/4*filt_comm_height_length,"-") -> - | D92: cubic feet
B93: comm_vol_gal_filt | C93: =IF(filter_type=2,comm_vol_filt*7.48,"-") -> - | D93: gal
A95: Checks on user-specified dimensions
A96: Design dimensions for vertical vessels:
A97: Required height of vessel | B97: height_filt | C97: =IF(filter_type=2,filt_bed_depth*(1+filt_bed_expansion)+free_board,"-") -> - | D97: feet
A98: Required vessel diameter (circular vessels) | B98: diameter_filt | C98: =IF(filter_type=2,(SA_filt*4/PI())^0.5+(2*Vessel_thickness),"-") -> - | D98: feet
A99: Minimum commercial height given diameter | B99: min_comm_height_filt | C99: =IF(filter_type=2,VLOOKUP(filt_comm_diam,vessel_size_table_cl,2),"-") -> - | D99: feet
A100: Maximum commercial height given diameter | B100: max_comm_height_filt | C100: =IF(filter_type=2,VLOOKUP(filt_comm_diam,vessel_size_table_cl,3),"-") -> - | D100: feet
A102: Void space required for horizontal vessels:
A103: For freeboard | B103: freeboard_horiz_void_filt | C103: =IF(filter_type=2,filt_comm_height_length*(filt_comm_diam*filt_comm_diam/2*ASIN(SQRT(free_board/filt_comm_diam))-(filt_comm_diam/2-free_board)*SQRT((filt_comm_diam-free_board)*free_board)),"-") -> - | D103: cubic feet | E103: Volume of a horizontal slice taken out of a cylinder
A104: For underdrain | B104: underdrain_horiz_void_filt | C104: =IF(filter_type=2,filt_comm_height_length*(filt_comm_diam*filt_comm_diam/2*ASIN(SQRT(horiz_underdrain/filt_comm_diam))-(filt_comm_diam/2-horiz_underdrain)*SQRT((filt_comm_diam-horiz_underdrain)*horiz_underdrain)),"-") -> - | D104: cubic feet
A105: Total | B105: horiz_void_filt | C105: =IF(filter_type=2,freeboard_horiz_void_filt+underdrain_horiz_void_filt,"-") -> - | D105: cubic feet
A107: Volume available for media and expansion:
A108: Vertical vessel | B108: vert_vol_available_filt | C108: =IF(filter_type=2,(filt_comm_height_length-free_board)*PI()*filt_comm_diam^2/4,"-") -> - | D108: cubic feet
A109: Horizontal vessel | B109: horiz_vol_available_filt | C109: =IF(filter_type=2,comm_vol_filt-horiz_void_filt,"-") -> - | D109: cubic feet
A110: For selected vessel geometry | B110: input_vol_vess_filt | C110: =IF(filter_type=2,CHOOSE(tank_geom_filt,vert_vol_available_filt,horiz_vol_available_filt),"-") -> - | D110: cubic feet | E110: To be compared to vol_vessel, to determine whether vessel is oversized.
A112: Tolerance for oversized vessels | B112: vol_tol_filt | C112: =IF(filter_type=2,CHOOSE(tank_geom_filt,IF(ss_cat2=1,vol_tol_vert_small,vol_tol_vert_med),vol_tol_horiz),"-") -> - | E112: Tolerance added to vol_vessel in checking for oversized vessels.
A114: FILTER GRAVITY CONTACT BASINS
A115: Total filter volume required | B115: min_filt_vol | C115: =IF(filter_type=1,design_flow_rate*ebct_filt/7.48,0) -> 27.85204991 | D115: cubic ft
A116: Filter Volume per Basin | B116: filt_bed_volume | C116: =IF(filter_type=1,min_filt_vol/op_num_filters,0) -> 27.85204991 | D116: cubic ft
A117: Number of filters (no redundancy) | B117: op_num_filters | C117: =IF(filter_type=1,ROUNDUP(min_filt_vol/(filt_basin_width*filt_basin_length*filt_basin_op_depth),0),"-") -> 1
A118: Basin depth including freeboard | B118: filt_basin_depth | C118: =IF(filter_type=1,filt_basin_op_depth*(1+filt_bed_expansion)+filt_freeboard,0) -> 6.65 | D118: ft
A119: Filter Volume per Basin | B119: filt_volume | C119: =IF(filter_type=1,filt_basin_width*filt_basin_length*filt_basin_depth*7.48,"-") -> 447.678 | D119: gal
A120: Number of reduntant basins | B120: NRD_filt | C120: =IF(filter_type=1,IF(op_num_filters=1,filt_NRD_small_1,CHOOSE(ss_cat2,filt_NRD_small,filt_NRD_basins_medium,filt_NRD_basins_large)),0) -> 1 | D120: units
A121: Total number of basins (incl. redundancy) | B121: total_num_filt_basins | C121: =IF(filter_type=1,op_num_filters+NRD_filt,0) -> 2 | D121: units
A122: Concrete volume | B122: filt_basin_conc_vol | C122: =IF(filter_type=1,(2*(filt_basin_width*total_num_filt_basins+conc_thick*(total_num_filt_basins+1))*filt_basin_depth*conc_thick+(total_num_filt_basins+1)*filt_basin_length*filt_basin_depth*conc_thick+(filt_basin_length+2*conc_thick)*(filt_basin_width*total_num_filt_basins+conc_thick*(total_num_filt_basins+1))*conc_thick)/27,"-") -> 8.316666667 | D122: cubic yd | E122: incorporates common wall design
A123: Excavation volume | B123: filt_excavation_vol | C123: =IF(filter_type=1,((total_num_filt_basins*filt_basin_width+(total_num_filt_basins+1)*conc_thick+overexcavate)*(filt_basin_length+2*conc_thick+overexcavate)*(filt_basin_depth+conc_thick+overexcavate)+0.5*(3*(filt_basin_depth+conc_thick+overexcavate)*(filt_basin_depth+conc_thick+overexcavate)*(filt_basin_length+2*conc_thick+overexcavate)))/27,"-") -> 118.3445833 | D123: cubic yd | E123: incorporates common wall design, includes ramping for moving earth out of excavated area, assumes flush with grade (conservative)
A124: Backfill volume | B124: filt_backfill_vol | C124: =IF(filter_type=1,filt_excavation_vol-(total_num_filt_basins*filt_basin_width+(total_num_filt_basins+1)*conc_thick)*(filt_basin_length+2*conc_thick)*(filt_basin_depth+conc_thick)/27,"-") -> 105.5945833 | D124: cubic yd
A125: Railing length | B125: filt_railing | C125: =IF(filter_type=1,2*(total_num_filt_basins*filt_basin_width+2*conc_thick/2+(total_num_filt_basins-1)*conc_thick)+2*(filt_basin_length+2*conc_thick/2),"-") -> 24 | D125: lf | E125: incorporates common wall design, single railing (concrete thickness is not sufficient to provide walkway)
A126: Surface area each contactor | B126: filt_basin_area | C126: =IF(filter_type=1,filt_basin_width*filt_basin_length,"-") -> 9 | D126: square ft
A128: Filter Media Quantities
A129: Sand quantity each filter | B129: sand_each | C129: =IF(filter_type=1,filt_bed_volume*(sand_fraction),IF(filter_type=2,media_volume_filt,0)) -> 9.191176471 | D129: cubic ft
A130: Anthracite quantity each filter | B130: anthracite_each | C130: =IF(filter_type=1,filt_bed_volume*anthracite_fraction*anthracite_density,IF(filter_type=2,media_volume_filt*anthracite_fraction*anthracite_density,0)) -> 933.043672 | D130: lbs
A131: Garnet quantity each filter | B131: garnet_each | C131: =IF(filter_type=1,filt_bed_volume*garnet_fraction*garnet_density,IF(filter_type=2,media_volume_filt*garnet_fraction*garnet_density,0)) -> 0 | D131: lbs
A132: GAC quantity each filter | B132: filt_GAC_each | C132: =IF(filter_type=1,filt_bed_volume*GAC_fraction*GAC_density,IF(filter_type=2,media_volume_filt*GAC_fraction*GAC_density,0)) -> 0 | D132: lbs
A133: Sand filter media | B133: sand_vol | C133: =sand_each*IF(filter_type=1,total_num_filt_basins,IF(filter_type=2,final_num_tanks_filt,0)) -> 18.38235294 | D133: cubic ft
A134: Anthracite filter media | B134: anthracite | C134: =anthracite_each*IF(filter_type=1,total_num_filt_basins,IF(filter_type=2,final_num_tanks_filt,0)) -> 1866.087344 | D134: lbs
A135: Garnet filter media | B135: garnet | C135: =garnet_each*IF(filter_type=1,total_num_filt_basins,IF(filter_type=2,final_num_tanks_filt,0)) -> 0 | D135: lbs
A136: GAC filter media | B136: filt_GAC | C136: =filt_GAC_each*IF(filter_type=1,total_num_filt_basins,IF(filter_type=2,final_num_tanks_filt,0)) -> 0 | D136: lbs
A138: Coagulant Addition
A139: Coagulant per day (average flow) | B139: coag_day | C139: =IF(include_coag_filt=1,coag_dose_filt*8.34*average_flow,0) -> 0.5838 | D139: lb/day
A140: Coagulant per day (design flow) | B140: coag_day_design_flow | C140: =IF(include_coag_filt=1,coag_dose_filt*8.34*design_flow,0) -> 2.502 | D140: lb/day
A141: Annual coagulant use | B141: coag_yr_filt | C141: =coag_day*365/2000 -> 0.1065435 | D141: tons/year
A142: Maximum gravimetric feeder size | B142: max_grav_size | C142: =VLOOKUP(10^6,grav_feed_cost_cl,1)-0.1 -> 107.4 | D142: lb/min | E142: The largest size for which costs are available
A143: Number of gravimetric feeders | B143: grav_feed_filt | C143: =ROUNDUP(coag_day_design_flow/(24*60)/max_grav_size,0) -> 1 | D143: units
A144: Gravimetric dry feeder rating | B144: grav_feed_rate_filt | C144: =IF(include_coag_filt=1,coag_day_design_flow/(24*60)/grav_feed_filt,0) -> 0.0017375 | D144: lbs/min
A145: Maximum volumetric feeder size | B145: max_vol_size | C145: =VLOOKUP(10^6,vol_feed_cost_cl,1)-0.001 -> 2.509 | D145: cfm | E145: The largest size for which costs are available
A146: Number of volumetric feeders | B146: vol_feed_filt | C146: =ROUNDUP(coag_day_design_flow/(24*60)/coag_density_filt/max_vol_size,0) -> 1 | D146: units
A147: Volumetric dry feeder rating | B147: vol_feed_rate_filt | C147: =IF(include_coag_filt=1,coag_day_design_flow/(24*60)/coag_density_filt/vol_feed_filt,0) -> 4.040697674e-05 | D147: cfm
A148: Maximum mixing tank size | B148: max_coag_mix_tank | C148: =MAX(VLOOKUP(10^6,st_bwt_cost_cl,1)-1,VLOOKUP(10^6,fg_bwt_cost_cl,1)-1,VLOOKUP(10^6,hdpe_bwt_cost_cl,1)-1) -> 282094 | D148: gal | E148: The largest size for which costs are available
A149: Number of coglant mixing tanks | B149: coag_mix_tank | C149: =IF(include_coag_filt=1,ROUNDUP(design_flow_rate*coag_mix_time/60/max_coag_mix_tank,0),0) -> 1 | D149: units
A150: Coagulant mix tank size | B150: coag_mix_tank_size | C150: =IF(include_coag_filt=1,design_flow_rate*coag_mix_time/60/coag_mix_tank,0) -> 20.83333333 | D150: gal
A151: Max coagulant mix tank mixer horsepower | B151: mix_hp_max | C151: =VLOOKUP(10^6,imp_mix_cost_cl,1)-0.1 -> 20 | D151: hp | E151: The largest impeller mixer size available
A152: Mixers per coagulant mix tank | B152: mix_per_tank | C152: =IF(include_coag_filt=1,ROUNDUP(coag_mix_tank_size/1000*mix_hp_per/mix_hp_max,0),0) -> 1 | D152: units
A153: Number of mixers | B153: mixers | C153: =IF(include_coag_filt=1,coag_mix_tank*mix_per_tank,0) -> 1 | D153: units
A154: Mixer size for holding tanks (if coagulant is used) | B154: mix_size | C154: =IF(include_coag_filt=1,MAX(min_mix_hp,coag_mix_tank_size/1000*mix_hp_per/mix_per_tank),0) -> 0.3333333333 | D154: hp

Sheet Pumps Pipe Structure
A1: Pumps, Piping, and Structure Calculations
A3: Calculation | B3: Range Name | C3: Value | D3: Units | E3: Guidance
A4: Pump and Blower Design
A5: Booster pump rating | B5: pump_rating | C5: =IF(lines_pump_I="",IF(ss_cat2=1,0,MIN(MAX(average_flow_rate+bp_flow_rate*average_flow_rate/design_flow_rate,(design_flow_rate+bp_flow_rate)/2)*(1+pump_safety_factor),max_pump_size)),IF(lines_pump_I=0,0,(design_flow_rate+bp_flow_rate)*(1+pump_safety_factor)/lines_pump_I)) -> 0 | D5: gpm | E5: Includes safety factor
A6: Maximum pump size | B6: max_pump_size | C6: =VLOOKUP(10^6,pump_cost_cl,1)-1 -> 10000 | D6: gpm | E6: The largest pump size for which costs are available. Applies to booster pumps and backwash pumps. For booster pumps, will override bioreactors per pump input, if this input results in pumps that are too large.
A7: Maximum chemical metering pump size | B7: max_cm_pump_size | C7: =MAX(VLOOKUP(10^6,ss_empump_cost_cl,1)-0.01,VLOOKUP(10^6,ss_mmpump_cost_cl,1)-0.01,VLOOKUP(10^6,pvc_empump_cost_cl,1)-0.01,VLOOKUP(10^6,pvc_mmpump_cost_cl,1)-0.01) -> 360 | D7: gph | E7: The largest size for which costs are available.
A8: Maximum chemical metering pump size excluding stainless steel | B8: max_cm_pump_size_noSS | C8: =MAX(VLOOKUP(10^6,pvc_empump_cost_cl,1)-0.01,VLOOKUP(10^6,pvc_mmpump_cost_cl,1)-0.01) -> 108 | D8: gph | E8: The largest size for which costs are available excluding stainless, which is not compatible with phosphoric acid
A10: Number of booster pumps | B10: booster_pumps | C10: =IF(pump_rating=0,0,ROUNDUP((design_flow_rate+bp_flow_rate)*(1+pump_safety_factor)/pump_rating,0)) -> 0 | D10: units | E10: Operating pumps
A11: Total booster pumps | B11: total_booster_pumps | C11: =IF(booster_pumps=0,0,booster_pumps+NRD_pumps) -> 0 | D11: units | E11: Includes redundancy
A13: Number of recycle pumps | B13: recycle_pumps | C13: =IF(design_type=3,ROUNDUP(design_flow_rate*recycle_fluid*(1+pump_safety_factor)/max_pump_size+NRD_recycle_pumps,0),0) -> 0 | D13: pumps | E13: Includes redundancy
A14: Recycle pump rating | B14: recycle_pump_rating | C14: =IF(recycle_pumps=0,0,design_flow_rate*recycle_fluid*(1+pump_safety_factor)/(recycle_pumps-NRD_recycle_pumps)) -> 0 | D14: gpm | E14: Includes safety factor
A16: Number of backwash pumps | B16: backwash_pumps | C16: =IF(AND(include_post=0,design_type=3),0,IF(no_backwash=1,0,ROUNDUP(IF(water_flush>filter_water_flush,water_flush,filter_water_flush)*(1+pump_safety_factor)/max_pump_size,0)+NRD_back_pumps)) -> 0 | D16: pumps | E16: Includes redundancy
A17: Backwash pump rating | B17: back_pump_rating | C17: =IF(backwash_pumps=0,0,IF(water_flush>filter_water_flush,water_flush,filter_water_flush)*(1+pump_safety_factor)/(backwash_pumps-NRD_back_pumps)) -> 0 | D17: gpm | E17: Includes safety factor
A19: Electron Donor Pump
A20: Number of chemical metering pumps | B20: cm_pumps_e_donor | C20: =ROUNDUP(e_donor_day_vol/24*(1+pump_safety_factor)/max_cm_pump_size,0)+NRD_cm_pump -> 2 | D20: units
A21: Chemical metering pump rating | B21: cm_pump_rating_e_donor | C21: =MAX(min_chem_flow,e_donor_day_vol/24*(1+pump_safety_factor)/(cm_pumps_e_donor-NRD_cm_pump)) -> 0.13 | D21: gph
A23: Ammonium Chloride Pump
A24: Number of chemical metering pumps | B24: cm_pumps_NH4Cl | C24: =IF(OR(nutrient_option=2,nutrient_option=4),ROUNDUP(NH4Cl_vol/24*(1+pump_safety_factor)/max_cm_pump_size,0)+NRD_cm_pump,0) -> 0 | D24: units
A25: Chemical metering pump rating | B25: cm_pump_rating_NH4Cl | C25: =IF(cm_pumps_NH4Cl=0,0,MAX(min_chem_flow,NH4Cl_vol/24*(1+pump_safety_factor)/(cm_pumps_NH4Cl-NRD_cm_pump))) -> 0 | D25: gph
A27: Phosphoric Acid Pump
A28: Number of chemical metering pumps | B28: cm_pumps_H3PO4 | C28: =IF(OR(nutrient_option=3,nutrient_option=4),ROUNDUP(H3PO4_vol/24*(1+pump_safety_factor)/max_cm_pump_size_noSS,0)+NRD_cm_pump,0) -> 2 | D28: units
A29: Chemical metering pump rating | B29: cm_pump_rating_H3PO4 | C29: =IF(cm_pumps_H3PO4=0,0,MAX(min_chem_flow,H3PO4_vol/24*(1+pump_safety_factor)/(cm_pumps_H3PO4-NRD_cm_pump))) -> 0.13 | D29: gph
A31: Blower for Air Scour
A32: Maximum blower size | B32: max_blower_size | C32: =VLOOKUP(10^6,pd_blow_cost_cl,1)-1 -> 5000 | D32: CFM | E32: The largest size for which costs are available.
A33: Number of blowers | B33: num_blowers | C33: =IF(AND(design_type=3,include_post=0),0,IF(air_scour_I="yes",ROUNDUP(tot_air_scour/max_blower_size,0),0)) -> 1 | D33: units
A34: Design air flow | B34: design_air_flow | C34: =IF(num_blowers=0,0,tot_air_scour/(num_blowers)) -> 55.63495408 | D34: cfm
A36: Blowers of Biomass Removal
A37: Number of blowers | B37: num_bio_blowers | C37: =IF(design_type=3,ROUNDUP(tot_air_biomass/max_blower_size,0),0) -> 0 | D37: units | E37: Fluidized Bed Designs Only
A38: Design air flow | B38: design_air_flow_bio | C38: =IF(num_bio_blowers=0,0,tot_air_biomass/(num_bio_blowers)) -> 0 | D38: cfm
A40: Blowers of Aeration
A41: Number of blowers | B41: num_aeration_blowers | C41: =IF(include_post_h2o2=0,ROUNDUP(air_flow_tot/max_blower_size,0)+NRD_blowers,0) -> 2 | D41: units
A42: Design air flow | B42: design_air_flow_aeration | C42: =IF(num_aeration_blowers=0,0,air_flow_tot/(num_aeration_blowers-NRD_blowers)) -> 1.354166667 | D42: cfm
A44: Hydrogen Peroxide Pump
A45: Number of chemical metering pumps | B45: cm_pumps_H2O2 | C45: =IF(include_post_h2o2=0,0,ROUNDUP(solution_rate*(1+pump_safety_factor)/max_cm_pump_size,0)+NRD_cm_pump) -> 0 | D45: units
A46: Chemical metering pump rating | B46: cm_pump_rating_H2O2 | C46: =IF(include_post_h2o2=0,0,MAX(min_chem_flow,solution_rate*(1+pump_safety_factor)/(cm_pumps_H2O2-NRD_cm_pump))) -> 0 | D46: gph
A48: Piping Design
A49: Inlet and outlet pipe length | B49: in_out_pipe_length | C49: =2*facil_length -> 40 | D49: linear feet
A50: Process piping length | B50: proc_pipe_length | C50: =2*facil_length -> 40 | D50: linear feet
A51: Recycle piping length | B51: recycle_pipe_length | C51: =IF(design_type=3,facil_length,0) -> 0 | D51: linear feet
A52: Backwash piping length | B52: back_pipe_length | C52: =2.5*facil_length -> 50 | D52: linear feet
A53: Electron donor piping length | B53: e_donor_pipe_length | C53: =facil_length -> 20 | D53: linear feet
A54: Ammonium chloride piping length | B54: NH4Cl_pipe_length | C54: =IF(OR(nutrient_option=2,nutrient_option=4),facil_length,0) -> 0 | D54: linear feet
A55: Phosphoric acid piping length | B55: H3PO4_pipe_length | C55: =IF(OR(nutrient_option=3,nutrient_option=4),facil_length,0) -> 20 | D55: linear feet
A56: Polymer addition pipe length | B56: polymer_pipe_length | C56: =IF(AND(htanks<>0,polymer_res=1),facil_length,0) -> 20 | D56: linear feet
A57: Bypass piping length | B57: bp_pipe_length | C57: =IF(bp_pct>0,back_pipe_length,0) -> 0 | D57: linear feet
A58: Inlet and outlet pipe flow | B58: in_out_pipe_flow | C58: =design_flow_rate+bp_flow_rate -> 20.83333333 | D58: gpm
A59: Inlet piping diameter | B59: in_out_pipe_diam | C59: =VLOOKUP(in_out_pipe_flow,pipe_size_table_cl,2) -> 1.5 | D59: inches
A60: Process pipe flow | B60: proc_pipe_flow | C60: =IF(OR(design_type=1,design_type=3),flow_per_vessel,design_flow_rate/op_num_basins) -> 10.70923121 | D60: gpm
A61: Process pipe diameter | B61: proc_pipe_diam | C61: =VLOOKUP(proc_pipe_flow,pipe_size_table_cl,2) -> 1.5 | D61: inches
A62: Recycle pipe flow | B62: recycle_pipe_flow | C62: =IF(design_type=3,design_flow_rate*recycle_fluid,0) -> 0 | D62: gpm
A63: Recycle pipe diameter | B63: recycle_pipe_diam | C63: =IF(design_type=3,VLOOKUP(recycle_pipe_flow,pipe_size_table_cl,2),0) -> 0 | D63: inches
A64: Electron donor pipe flow | B64: e_donor_pipe_flow | C64: =e_donor_day_vol/1440 -> 0.001031769596 | D64: gpm
A65: Electron donor pipe diameter | B65: e_donor_pipe_diam | C65: =VLOOKUP(e_donor_pipe_flow,pipe_size_table_cl,2) -> 0.5 | D65: inches
A66: Ammonium chloride pipe flow | B66: NH4Cl_pipe_flow | C66: =NH4Cl_vol/1440 -> 0 | D66: gpm
A67: Ammonium chloride pipe diameter | B67: NH4Cl_pipe_diam | C67: =IF(OR(nutrient_option=2,nutrient_option=4),VLOOKUP(NH4Cl_pipe_flow,pipe_size_table_cl,2),0) -> 0 | D67: inches
A68: Phosphoric acid pipe flow | B68: H3PO4_pipe_flow | C68: =H3PO4_vol/1440 -> 5.579706414e-05 | D68: gpm
A69: Phosphoric acid pipe diameter | B69: H3PO4_pipe_diam | C69: =IF(OR(nutrient_option=3,nutrient_option=4),VLOOKUP(H3PO4_pipe_flow,pipe_size_table_cl,2),0) -> 0.5 | D69: inches
A70: Aeration tank pipe flow | B70: aer_tank_pipe_flow | C70: =design_flow_rate/aeration_tanks -> 20.83333333 | D70: gpm
A71: Aeration tank pipe diameter | B71: aer_tank_pipe_diam | C71: =VLOOKUP(aer_tank_pipe_flow,pipe_size_table_cl,2) -> 1.5 | D71: inches
A72: Backwash pipe flow | B72: back_pipe_flow | C72: =IF(water_flush>filter_water_flush,water_flush,filter_water_flush) -> 135 | D72: gpm
A73: Backwash pipe diameter | B73: back_pipe_diam | C73: =VLOOKUP(back_pipe_flow,pipe_size_table_cl,2) -> 4 | D73: inches
A74: Bypass pipe flow | B74: bp_pipe_flow | C74: =bp_flow_rate -> 0 | D74: gpm
A75: Bypass pipe diameter | B75: bp_pipe_diam | C75: =IF(bp_pct>0,VLOOKUP(bp_pipe_flow,pipe_size_table_cl,2),0) -> 0 | D75: inches
A76: Dilute hydrogen peroxide piping length | B76: H202_pipe_length | C76: =IF(include_post_h2o2=0,0,facil_length) -> 0 | D76: linear feet
A77: Dilute hydrogen peroxide pipe flow | B77: H202_pipe_flow | C77: =IF(include_post_h2o2=0,0,diluted_rate) -> 0 | D77: gpm
A78: Dilute hydrogen peroxide pipe diameter | B78: H202_pipe_diam | C78: =IF(include_post_h2o2=0,0,VLOOKUP(H202_pipe_flow,pipe_size_table_cl,2)) -> 0 | D78: inches
A79: Polymer pipe flow | B79: polymer_pipe_flow | C79: =polymer_rate/60 -> 0.09236798214 | D79: gpm
A80: Polymer pipe diameter | B80: polymer_pipe_diam | C80: =IF(polymer_day=0,0,VLOOKUP(polymer_pipe_flow,pipe_size_table_cl,2)) -> 0.5 | D80: inches
A82: Building Structure
A83: Aeration tank diameter | B83: aer_tank_diam | C83: =ROUNDUP(2*(MAX((2*aeration_tank_vol/7.48/PI())^(1/3),(4*aeration_tank_vol/7.48/PI()/(Building_height-ceiling_clearance))^(1/2))),0)/2 -> 1.5 | D83: feet
A84: Backwash tank diameter | B84: bt_diam | C84: =ROUNDUP(2*(MAX((2*back_tank_vol/7.48/PI())^(1/3),(4*back_tank_vol/7.48/PI()/(Building_height-ceiling_clearance))^(1/2))),0)/2 -> 0 | D84: feet
A85: Electron donor storage tank diameter | B85: e_donor_st_diam | C85: =ROUNDUP(2*(MAX((2*e_donor_tank_vol/7.48/PI())^(1/3),(4*e_donor_tank_vol/7.48/PI()/(Building_height-ceiling_clearance))^(1/2))),0)/2 -> 1 | D85: feet
A86: Ammonium chloride storage tank diameter | B86: NH4Cl_st_diam | C86: =ROUNDUP(2*(MAX((2*NH4Cl_tank_vol/7.48/PI())^(1/3),(4*NH4Cl_tank_vol/7.48/PI()/(Building_height-ceiling_clearance))^(1/2))),0)/2 -> 0 | D86: feet
A87: Phosphoric acid storage tank diameter | B87: H3PO4_st_diam | C87: =ROUNDUP(2*(MAX((2*H3PO4_tank_vol/7.48/PI())^(1/3),(4*H3PO4_tank_vol/7.48/PI()/(Building_height-ceiling_clearance))^(1/2))),0)/2 -> 0.5 | D87: feet
A88: Hydrogen peroxide storage tank diameter | B88: H2O2_st_diam | C88: =ROUNDUP((MAX((2*H2O2_tank_vol/7.48/PI())^(1/3),(4*H2O2_tank_vol/7.48/PI()/(Building_height-ceiling_clearance))^(1/2))),0) -> 0 | D88: feet
A89: Electron donor day tank diameter | B89: e_donor_dt_diam | C89: =ROUNDUP((2*(e_donor_day_tank_vol/7.48)/PI())^(1/3),0) -> 1 | D89: feet
A90: Ammonium chloride day tank diameter | B90: NH4Cl_dt_diam | C90: =ROUNDUP((2*(NH4Cl_day_tank_vol/7.48)/PI())^(1/3),0) -> 0 | D90: feet
A91: Phosphoric acid day tank diameter | B91: H3PO4_dt_diam | C91: =ROUNDUP((2*(H3PO4_day_tank_vol/7.48)/PI())^(1/3),0) -> 0 | D91: feet
A92: Hydrogen peroxide day tank diameter | B92: H2O2_dt_diam | C92: =ROUNDUP((2*(H2O2_day_tank_vol/7.48)/PI())^(1/3),0) -> 0 | D92: feet
A93: Residuals holding tank diameter | B93: ht_diam | C93: =ROUNDUP(2*(MAX((2*htank_vol/7.48/PI())^(1/3),(4*htank_vol/7.48/PI()/(Building_height-ceiling_clearance))^(1/2))),0)/2 -> 6 | D93: feet
A94: Thickening tank diameter | B94: thick_diam | C94: =IF(sed_sludge_method=0,0,IF(component_level=2,ROUNDUP(2*(MAX((2*thick_tank_volume/7.48/PI())^(1/3),(4*thick_tank_volume/7.48/PI()/(Building_height-ceiling_clearance))^(1/2))),0)/2,thick_basin_diam)) -> 0 | D94: feet
A95: Polymer storage tank diameter | B95: polymer_st_diam | C95: =ROUNDUP(2*(MAX((2*polymer_tank_vol/7.48/PI())^(1/3),(4*polymer_tank_vol/7.48/PI()/(Building_height-ceiling_clearance))^(1/2))),0)/2 -> 1.5 | D95: feet
A96: Coagulant mix tank diameter | B96: coag_mix_diam | C96: =ROUNDUP(2*(MAX((2*coag_mix_tank_size/7.48/PI())^(1/3),(4*coag_mix_tank_size/7.48/PI()/(Building_height-ceiling_clearance))^(1/2))),0)/2 -> 1.5 | D96: feet
A97: Maximum access space per vessel or tank | B97: max_space_vessels | C97: =IF(AND(OR(design_type=1,design_type=3),ss_cat2=1),max_space_vessels_pre,max_space_vessels_cust) -> 1 | D97: feet
A98: Access space per vessel | B98: space_vessels | C98: =IF(tank_geom=2,max_space_vessels,IF(comm_diam>max_space_vessels,max_space_vessels,comm_diam)) -> 1 | D98: feet
A99: Access space per backwash tank | B99: space_aer | C99: =IF(aer_tank_diam>max_space_vessels,max_space_vessels,aer_tank_diam) -> 1 | D99: feet
A100: Access space per backwash tank | B100: space_bt | C100: =IF(bt_diam>max_space_vessels,max_space_vessels,bt_diam) -> 0 | D100: feet
A101: Access space per electron donor storage tank | B101: space_e_donor_st | C101: =IF(e_donor_st_diam>max_space_vessels,max_space_vessels,e_donor_st_diam) -> 1 | D101: feet
A102: Access space per ammonium chloride storage tank | B102: space_NH4Cl_st | C102: =IF(NH4Cl_st_diam>max_space_vessels,max_space_vessels,NH4Cl_st_diam) -> 0 | D102: feet
A103: Access space per phosphoric acid storage tank | B103: space_H3PO4_st | C103: =IF(H3PO4_st_diam>max_space_vessels,max_space_vessels,H3PO4_st_diam) -> 0.5 | D103: feet
A104: Access space per hydrogen peroxide storage tank | B104: space_H2O2_st | C104: =IF(H2O2_st_diam>max_space_vessels,max_space_vessels,H2O2_st_diam) -> 0 | D104: feet
A105: Access space per electron donor day tank | B105: space_e_donor_dt | C105: =IF(e_donor_dt_diam>max_space_vessels,max_space_vessels,e_donor_dt_diam) -> 1 | D105: feet
A106: Access space per ammonium chloride day tank | B106: space_NH4Cl_dt | C106: =IF(NH4Cl_dt_diam>max_space_vessels,max_space_vessels,NH4Cl_dt_diam) -> 0 | D106: feet
A107: Access space per phosphoric acid day tank | B107: space_H3PO4_dt | C107: =IF(H3PO4_dt_diam>max_space_vessels,max_space_vessels,H3PO4_dt_diam) -> 0 | D107: feet
A108: Access space per hydrogen peroxide day tank | B108: space_H2O2_dt | C108: =IF(H2O2_dt_diam>max_space_vessels,max_space_vessels,H2O2_dt_diam) -> 0 | D108: feet
A109: Access space per residuals holding tank | B109: space_ht | C109: =IF(ht_diam>max_space_vessels,max_space_vessels,ht_diam) -> 1 | D109: feet
A110: Access space per thickening tank | B110: space_thick | C110: =IF(thick_diam>max_space_vessels,max_space_vessels,thick_diam) -> 0 | D110: feet
A111: Access space per polymer holding tank | B111: space_polymer_st | C111: =IF(polymer_st_diam>max_space_vessels,max_space_vessels,polymer_st_diam) -> 1 | D111: feet
A112: Access space per coagulant mix tank | B112: space_coag_mix | C112: =IF(coag_mix_diam>max_space_vessels,max_space_vessels,coag_mix_diam) -> 1 | D112: feet
A113: Access space per pump | B113: space_pumps | C113: =IF(AND(design_type=1,ss_cat2=1),space_pumps_pre,space_pumps_cust) -> 0 | D113: feet
A114: Footprint for gravity basins | B114: basin_fp | C114: =IF(design_type=2,total_num_basins*basin_area*2,0) -> 0 | D114: square feet | E114: Two times basin area for walkways and equipment
A115: Footprint for vessels (large system assumptions) | C115: =IF(design_type=2,0,IF(tank_geom=1,ROUNDUP(((comm_diam+2*space_vessels)^2+(final_num_tanks-1)*(comm_diam+2*space_vessels)*(comm_diam+space_vessels)),0),IF(tank_geom=2,ROUNDUP((comm_diam+2*space_vessels)*(comm_height_length+2*space_vessels)+(final_num_tanks-1)*(comm_height_length+2*space_vessels)*(comm_diam+space_vessels),0)))) -> 36 | D115: square feet
A116: Footprint for vessels (skid mounted small system) | C116: =IF(design_type=2,0,IF(tank_geom=1,ROUNDUP(((comm_diam+2*space_vessels)^2+(final_num_tanks-1)*(comm_diam+2*space_vessels)*(comm_diam+space_vessels/2)),0),IF(tank_geom=2,ROUNDUP((comm_diam+2*space_vessels)*(comm_height_length+2*space_vessels)+(final_num_tanks-1)*(comm_height_length+2*space_vessels)*(comm_diam+space_vessels/2),0)))) -> 34 | D116: square feet | E116: Space between skid mounted vessels is reduced, outside access space remains the same
A117: Footprints for vessels | B117: vessel_fp | C117: =IF(ss_cat2=1,C116,C115) -> 34 | D117: square feet
A118: Footprint for aeration tank | B118: aer_tank_fp | C118: =IF(aeration_tanks=0,0,ROUNDUP((aer_tank_diam+2*space_aer)^2+(aeration_tanks-1)*(aer_tank_diam+2*space_aer)*(aer_tank_diam+space_aer),0)) -> 13 | D118: square feet
A119: Footprint for backwash tank | B119: back_tank_fp | C119: =IF(back_tanks=0,0,ROUNDUP((bt_diam+2*space_bt)^2+(back_tanks-1)*(bt_diam+2*space_bt)*(bt_diam+space_bt),0)) -> 0 | D119: square feet
A120: Footprint for coagulant mix tank | B120: coag_mix_fp | C120: =IF(coag_mix_tank=0,0,ROUNDUP((coag_mix_diam+2*space_coag_mix)^2+(coag_mix_tank-1)*(coag_mix_diam+2*space_coag_mix)*(coag_mix_diam+space_coag_mix),0)) -> 13 | D120: square feet
A121: Booster pump footprint | C121: =IF(total_booster_pumps=0,0,ROUNDUP((VLOOKUP(pump_rating,pump_dim_table_cl,3)+space_pumps)*(VLOOKUP(pump_rating,pump_dim_table_cl,4)+2*space_pumps)+(total_booster_pumps-1)*(VLOOKUP(pump_rating,pump_dim_table_cl,3)+space_pumps)*(VLOOKUP(pump_rating,pump_dim_table_cl,4)+space_pumps),0)) -> 0 | D121: square feet
A122: Recycle Pump Footprint | C122: =IF(design_type=3,ROUNDUP((VLOOKUP(recycle_pump_rating,pump_dim_table_cl,3)+space_pumps)*(VLOOKUP(recycle_pump_rating,pump_dim_table_cl,4)+2*space_pumps)+(recycle_pumps-1)*(VLOOKUP(recycle_pump_rating,pump_dim_table_cl,3)+space_pumps)*(VLOOKUP(recycle_pump_rating,pump_dim_table_cl,4)+space_pumps),0),0) -> 0 | D122: square feet
A123: Backwash pump footprint | C123: =IF(backwash_pumps=0,0,ROUNDUP((VLOOKUP(back_pump_rating,pump_dim_table_cl,3)+space_pumps)*(VLOOKUP(back_pump_rating,pump_dim_table_cl,4)+2*space_pumps)+(backwash_pumps-1)*(VLOOKUP(back_pump_rating,pump_dim_table_cl,3)+space_pumps)*(VLOOKUP(back_pump_rating,pump_dim_table_cl,4)+space_pumps),0)) -> 0 | D123: square feet
A124: Residuals pump footprint | C124: =IF(res_pumps=0,0,ROUNDUP((VLOOKUP(res_pump_rating,pump_dim_table_cl,3)+space_pumps)*(VLOOKUP(res_pump_rating,pump_dim_table_cl,4)+2*space_pumps)+(res_pumps-1)*(VLOOKUP(res_pump_rating,pump_dim_table_cl,3)+space_pumps)*(VLOOKUP(res_pump_rating,pump_dim_table_cl,4)+space_pumps),0)) -> 13 | D124: square feet
A125: Blower footprint for aeration | C125: =IF(num_aeration_blowers=0,0,ROUNDUP((VLOOKUP(design_air_flow_aeration,blow_dim_table_cl,7)+2*space_pumps)*(VLOOKUP(design_air_flow_aeration,blow_dim_table_cl,8)+2*space_pumps)+(num_aeration_blowers-1)*(VLOOKUP(design_air_flow_aeration,blow_dim_table_cl,7)+2*space_pumps)*(VLOOKUP(design_air_flow_aeration,blow_dim_table_cl,8)+space_pumps),0)) -> 14 | D125: square feet
A126: Blower footprint for backwash | C126: =IF(num_blowers=0,0,ROUNDUP((VLOOKUP(design_air_flow,blow_dim_table_cl,7)+2*space_pumps)*(VLOOKUP(design_air_flow,blow_dim_table_cl,8)+2*space_pumps)+(num_blowers-1)*(VLOOKUP(design_air_flow,blow_dim_table_cl,7)+2*space_pumps)*(VLOOKUP(design_air_flow,blow_dim_table_cl,8)+space_pumps),0)) -> 7 | D126: square feet
A127: Blower footprint for biomass seperation | C127: =IF(num_bio_blowers=0,0,ROUNDUP((VLOOKUP(design_air_flow_bio,blow_dim_table_cl,7)+2*space_pumps)*(VLOOKUP(design_air_flow_bio,blow_dim_table_cl,8)+2*space_pumps)+(num_bio_blowers-1)*(VLOOKUP(design_air_flow_bio,blow_dim_table_cl,7)+2*space_pumps)*(VLOOKUP(design_air_flow_bio,blow_dim_table_cl,8)+space_pumps),0)) -> 0 | D127: square feet
A128: Footprint for pumps | B128: pump_fp | C128: =C123+C121+C124+C122 -> 13 | D128: square feet
A129: Residuals holding tank footprint | B129: htank_fp | C129: =IF(res_holding<>"tanks",0,ROUNDUP((ht_diam+2*space_ht)^2+(htanks-1)*(ht_diam+2*space_ht)*(ht_diam+space_ht),0)) -> 0 | D129: square feet
A130: Residuals holding basin footprint | B130: hbasin_fp | C130: =IF(res_holding<>"basins",0,ROUNDUP(hbasins*hbasin_length*hbasin_width*2,0)) -> 162 | D130: square feet
A131: Polymer storage tank footprint | B131: polymer_fp | C131: =ROUNDUP((polymer_st_diam+2*space_polymer_st)^2+(polymer_tanks-1)*(polymer_st_diam+2*space_polymer_st)*(polymer_st_diam+space_polymer_st),0) -> 13 | D131: square feet
A132: Footprint for Blowers | B132: blower_fp | C132: =C126+C127+C125 -> 21 | D132: square feet
A133: Electron donor storage tank footprint | B133: e_donor_fp | C133: =IF(e_donor_tanks=0,0,ROUNDUP((e_donor_st_diam+2*space_e_donor_st)^2+(e_donor_tanks-1)*(e_donor_st_diam+2*space_e_donor_st)*(e_donor_st_diam+space_e_donor_st),0)) -> 9 | D133: square feet
A134: Ammonium chloride storage tank footprint | B134: NH4Cl_donor_fp | C134: =IF(NH4Cl_tanks=0,0,ROUNDUP((NH4Cl_st_diam+2*space_NH4Cl_st)^2+(NH4Cl_tanks-1)*(NH4Cl_st_diam+2*space_NH4Cl_st)*(NH4Cl_st_diam+space_NH4Cl_st),0)) -> 0 | D134: square feet
A135: Phosphoric acid storage tank footprint | B135: H3PO4_donor_fp | C135: =IF(H3PO4_tanks=0,0,ROUNDUP((H3PO4_st_diam+2*space_H3PO4_st)^2+(H3PO4_tanks-1)*(H3PO4_st_diam+2*space_H3PO4_st)*(H3PO4_st_diam+space_H3PO4_st),0)) -> 3 | D135: square feet
A136: Hydrogen peroxide storage tank footprint | B136: H2O2_donor_fp | C136: =IF(H2O2_tanks=0,0,ROUNDUP((H2O2_st_diam+2*space_H2O2_st)^2+(H2O2_tanks-1)*(H2O2_st_diam+2*space_H2O2_st)*(H2O2_st_diam+space_H2O2_st),0)) -> 0 | D136: square feet
A137: Electron donor day tank footprint | B137: e_donor_day_fp | C137: =IF(e_donor_tanks=0,0,ROUNDUP((e_donor_st_diam+2*space_e_donor_st)^2+(e_donor_tanks-1)*(e_donor_st_diam+2*space_e_donor_st)*(e_donor_st_diam+space_e_donor_st),0)) -> 9 | D137: square feet
A138: Ammonium chloride day tank footprint | B138: NH4Cl_donor_day_fp | C138: =IF(NH4Cl_tanks=0,0,ROUNDUP((NH4Cl_st_diam+2*space_NH4Cl_st)^2+(NH4Cl_tanks-1)*(NH4Cl_st_diam+2*space_NH4Cl_st)*(NH4Cl_st_diam+space_NH4Cl_st),0)) -> 0 | D138: square feet
A139: Phosphoric acid day tank footprint | B139: H3PO4_donor_day_fp | C139: =IF(H3PO4_tanks=0,0,ROUNDUP((H3PO4_st_diam+2*space_H3PO4_st)^2+(H3PO4_tanks-1)*(H3PO4_st_diam+2*space_H3PO4_st)*(H3PO4_st_diam+space_H3PO4_st),0)) -> 3 | D139: square feet
A140: Hydrogen peroxide day tank footprint | B140: H2O2_donor_day_fp | C140: =IF(H2O2_tanks=0,0,ROUNDUP((H2O2_st_diam+2*space_H2O2_st)^2+(H2O2_tanks-1)*(H2O2_st_diam+2*space_H2O2_st)*(H2O2_st_diam+space_H2O2_st),0)) -> 0 | D140: square feet
A141: Footprint for polishing filter basins | B141: filter_fp | C141: =IF(filter_type=1,total_num_filt_basins*filt_basin_area*2,0) -> 36 | D141: square feet | E141: Two times basin area for walkways and equipment
A142: Footprint for solids thickeners | B142: thick_fp | C142: =IF(sed_sludge_method=0,0,IF(OUTPUT!L470=1,2*thick_basins*thick_basin_diam^2,ROUNDUP((thick_diam+2*space_thick)^2+(thick_tanks-1)*(thick_diam+2*space_thick)*(thick_diam+space_thick),0))) -> 0 | D142: square feet
A143: Footprint for belt press | B143: belt_press_fp | C143: =IF(num_belt_press>0,num_belt_press*(VLOOKUP(belt_press_size,belt_press_dimension,2,FALSE)/12*VLOOKUP(belt_press_size,belt_press_dimension,3,FALSE)/12),0) -> 0 | D143: square feet
A144: Footprint for vessels (large system assumptions) | C144: =IF(filter_type=2,IF(tank_geom_filt=1,ROUNDUP(((filt_comm_diam+2*space_vessels)^2+(final_num_tanks_filt-1)*(filt_comm_diam+2*space_vessels)*(filt_comm_diam+space_vessels)),0),IF(tank_geom_filt=2,ROUNDUP((filt_comm_diam+2*space_vessels)*(filt_comm_height_length+2*space_vessels)+(final_num_tanks_filt-1)*(filt_comm_height_length+2*space_vessels)*(filt_comm_diam+space_vessels),0))),0) -> 0 | D144: square feet
A145: Footprint for vessels (skid mounted small system) | C145: =IF(filter_type=2,IF(tank_geom_filt=1,ROUNDUP(((filt_comm_diam+2*space_vessels)^2+(final_num_tanks_filt-1)*(filt_comm_diam+2*space_vessels)*(filt_comm_diam+space_vessels/2)),0),IF(tank_geom_filt=2,ROUNDUP((filt_comm_diam+2*space_vessels)*(filt_comm_height_length+2*space_vessels)+(final_num_tanks_filt-1)*(filt_comm_height_length+2*space_vessels)*(filt_comm_diam+space_vessels/2),0))),0) -> 0 | D145: square feet | E145: Space between skid mounted vessels is reduced, outside access space remains the same
A146: Footprints for vessels | B146: filter_vessel_fp | C146: =IF(filter_type=2,IF(ss_cat2=1,C145,C144),0) -> 0 | D146: square feet
A148: Office space | B148: office_fp | C148: =VLOOKUP(design_flow,labor_table_cl,3)*IF(ss_cat2=1,space_office_small,space_office) -> 0 | D148: square feet
A149: Exact building footprint required | B149: fp_required | C149: =pump_fp+basin_fp+vessel_fp+back_tank_fp+office_fp+htank_fp+hbasin_fp+blower_fp+e_donor_fp+NH4Cl_donor_fp+H3PO4_donor_fp+H2O2_donor_fp+filter_fp+e_donor_day_fp+NH4Cl_donor_day_fp+H3PO4_donor_day_fp+H2O2_donor_day_fp+aer_tank_fp+polymer_fp+filter_vessel_fp+coag_mix_fp+thick_fp+belt_press_fp -> 329 | D149: square feet
A150: Footprint of building 1 | B150: build1_fp | C150: =ROUNDUP(IF(fp_required<add_2nd_building,fp_required,basin_fp+vessel_fp+filter_fp+filter_vessel_fp+aer_tank_fp),-1) -> 330 | D150: square feet | E150: If total footprint is large, building 1 contains vessels, aeration, and filters only. If total footprint is small, building 1 contains all equipment.
A151: Footprint of building 2 | B151: build2_fp | C151: =ROUNDUP(IF(fp_required<add_2nd_building,0,pump_fp+back_tank_fp+office_fp+htank_fp+hbasin_fp+e_donor_fp+NH4Cl_donor_fp+H3PO4_donor_fp+H2O2_donor_fp+blower_fp+e_donor_day_fp+NH4Cl_donor_day_fp+H3PO4_donor_day_fp+H2O2_donor_day_fp+polymer_fp+coag_mix_fp+thick_fp+belt_press_fp),-1) -> 0 | D151: square feet | E151: If total footprint is large, a second building is used for pumps, blowers, backwash, and chemical storage
A152: Total footprint | B152: total_fp | C152: =build1_fp+build2_fp -> 330 | D152: square feet
A153: Concrete Class A for vessel and pumps padding | B153: concrete | C153: =ROUNDUP((fp_required-office_fp)*IF(ss_cat2=1,pad_thick_small,pad_thick)/27,0) -> 5 | D153: cubic yards
A154: Facility dimension assumed square | B154: facil_length | C154: =ROUNDUP(total_fp^0.5,-1) -> 20 | D154: feet
A155: Additional footprint for evaporation pond | B155: ep_fp | C155: =IF(ep_cells=0,0,ROUNDUP((ep_cell_side+2*non_fire_buffer)^2+(ep_cells-1)*(ep_cell_side+2*non_fire_buffer)*(ep_cell_side+non_fire_buffer),0)) -> 0 | D155: square feet
A156: Land acquisition required | B156: land_required | C156: =ROUNDUP(((build1_fp)^0.5+(2*non_fire_buffer))*((build1_fp)^0.5+(non_fire_buffer+fire_buffer))+IF(build2_fp=0,0,((build2_fp)^0.5+(2*non_fire_buffer))*((build2_fp)^0.5+(non_fire_buffer+fire_buffer)))+ep_fp+solids_pad_area,-2)/43560 -> 0.06198347107 | D156: acres
A158: Land acquisition cost | B158: land_cost | C158: =VLOOKUP(design_flow,land_cost_cl,3) -> 22071.00665 | D158: /acre

Sheet Instrumentation and Control
A1: Instrumentation and Control Calculations
A3: Calculation | B3: Range Name | C3: Value | D3: Units | E3: Guidance
A4: From Inputs
A5: Component level | B5: component_level | C5: =IF(component_level_I="high cost",2,IF(component_level_I="mid cost",1,"")) ->  | D5: blank = low cost, 1 = mid cost, 2 = high cost
A6: Manual system controls | B6: manual | C6: =IF(manual_I="manual",1,IF(manual_I="semi-automated",2,IF(manual_I="fully automated",3,IF(component_level="",1,IF(component_level=2,3,CHOOSE(ss_cat2,1,3,3)))))) -> 3 | D6: 1 = fully manual system, 2 = semi-automated system, 3 = fully automated system. | E6: Based on system size and component level (see cell comment), unless user overrides on input sheet
A8: Control Valves and Instrumentation
A9: Size of valves for inlet and outlet lines | B9: in_valve_size | C9: =in_out_pipe_diam -> 1.5 | D9: inches
A10: Size of valves for contactor pipe line | B10: tank_valve_size | C10: =proc_pipe_diam -> 1.5 | D10: inches
A11: Size of valves for recycle pipe line | B11: rec_valve_size | C11: =recycle_pipe_diam -> 0 | D11: inches
A12: Size of valves for electron donor line | B12: e_donor_valve_size | C12: =e_donor_pipe_diam -> 0.5 | D12: inches
A13: Size of valves for ammonium chloride line | B13: NH4Cl_valve_size | C13: =NH4Cl_pipe_diam -> 0 | D13: inches
A14: Size of valves for phosphoric acid line | B14: H3PO4_valve_size | C14: =H3PO4_pipe_diam -> 0.5 | D14: inches
A15: Size of valves for aeration air line | B15: aer_tank_valve_size | C15: =IF(include_post_h2o2=1,0,aer_tank_pipe_diam) -> 1.5 | D15: inches
A16: Size of valves for backwash pipe line | B16: back_valve_size | C16: =back_pipe_diam -> 4 | D16: inches
A17: Size of valves for bypass pipe line | B17: bypass_valve_size | C17: =bp_pipe_diam -> 0 | D17: inches
A18: Size of valves for air scour line | B18: air_valve_size | C18: =IF(air_scour_I="yes",tank_valve_size,0) -> 1.5 | D18: inches | E18: =IF(air_scour_I="yes","assume equal to contactor valve size","") -> assume equal to contactor valve size
A19: Size of valves for biomass removal air line | B19: bio_air_valve_size | C19: =IF(design_type=3,tank_valve_size/2,0) -> 0 | D19: inches | E19: assume equal to half of contactor valve size
A20: Size of valves for aeration air line | B20: aeration_valve_size | C20: =C15/2 -> 0.75 | D20: inches | E20: =IF(air_scour_I="yes","assume equal to half of aeration tank valve size","") -> assume equal to half of aeration tank valve size
A21: Size of valves for hydrogen peroxide line | B21: H2O2_valve_size | C21: =H202_pipe_diam -> 0 | D21: inches
A22: Size of valves for polymer line | B22: polymer_valve_size | C22: =polymer_pipe_diam -> 0.5 | D22: inches
A24: Number of MOVs on process line per vessel | B24: proc_MOV_vessel | C24: =VLOOKUP("proc_mov_vessel_par",valve_table,manual+1,FALSE) -> 2 | D24: valves/vessel
A25: Number of MOVs for process line | B25: tot_proc_MOVs | C25: =(IF(OR(design_type=1,design_type=3),final_num_tanks,total_num_basins)+IF(filter_type=1,total_num_filt_basins,final_num_tanks_filt)+coag_mix_tank)*proc_MOV_vessel+total_booster_pumps*VLOOKUP("proc_MOV_pump",valve_table,manual+1,FALSE) -> 10 | D25: valves
A26: Number of MOVs for recycle line | B26: tot_rec_MOVs | C26: =IF(design_type=3,VLOOKUP("tot_rec_movs",valve_table,manual+1,FALSE)+recycle_pumps*VLOOKUP("rec_MOV_pump",valve_table,manual+1,FALSE),0) -> 0 | D26: valves
A27: Number of MOVs for electron donor line | B27: tot_e_donor_MOVs | C27: =IF(OR(design_type=1,design_type=3),final_num_tanks,total_num_basins)*VLOOKUP("chem_MOV_vessel",valve_table,manual+1,FALSE)+(cm_pumps_e_donor)*VLOOKUP("chem_MOV_pump",valve_table,manual+1,FALSE)+VLOOKUP("chem_MOV_day",valve_table,manual+1,FALSE)*e_donor_day_tanks -> 7 | D27: valves
A28: Number of MOVs for ammonium chloride line | B28: tot_NH4Cl_MOVs | C28: =IF(OR(nutrient_option=2,nutrient_option=4),IF(OR(design_type=1,design_type=3),final_num_tanks,total_num_basins)*VLOOKUP("chem_MOV_vessel",valve_table,manual+1,FALSE)+(cm_pumps_NH4Cl)*VLOOKUP("chem_MOV_pump",valve_table,manual+1,FALSE)+VLOOKUP("chem_MOV_day",valve_table,manual+1,FALSE)*NH4Cl_day_tanks,0) -> 0 | D28: valves
A29: Number of MOVs for phosphoric acid line | B29: tot_H3PO4_MOVs | C29: =IF(OR(nutrient_option=3,nutrient_option=4),IF(OR(design_type=1,design_type=3),final_num_tanks,total_num_basins)*VLOOKUP("chem_MOV_vessel",valve_table,manual+1,FALSE)+(cm_pumps_H3PO4)*VLOOKUP("chem_MOV_pump",valve_table,manual+1,FALSE)+VLOOKUP("chem_MOV_day",valve_table,manual+1,FALSE)*H3PO4_day_tanks,0) -> 6 | D29: valves
A30: Number of MOVs for backwash line | B30: tot_back_MOVs | C30: =((IF(design_type=1,final_num_tanks,0)+total_num_basins+IF(filter_type=1,total_num_filt_basins,final_num_tanks_filt)))*VLOOKUP("back_MOV_vessel",valve_table,manual+1,FALSE)+backwash_pumps*VLOOKUP("back_MOV_pump",valve_table,manual+1,FALSE)+back_tanks*VLOOKUP("back_MOV_tank",valve_table,manual+1,FALSE)+IF(no_backwash=1,VLOOKUP("back_MOV_no_back",valve_table,manual+1,FALSE),0) -> 9 | D30: valves
A31: Number of MOVs for bypass line | B31: tot_bp_MOVs | C31: =IF(bp_pct=0,0,VLOOKUP("tot_bp_movs",valve_table,manual+1,FALSE)) -> 0 | D31: valves
A32: Number of MOVs for air scour | B32: tot_air_MOVs | C32: =IF(air_scour_I="yes",num_blowers*VLOOKUP("air_mov_blower",valve_table,manual+1,FALSE)+VLOOKUP("air_mov",valve_table,manual+1,FALSE),0) -> 2 | D32: valves
A33: Number of MOVs for biomass removal air line | B33: tot_bio_air_MOVs | C33: =IF(design_type=3,num_bio_blowers*VLOOKUP("air_mov_blower",valve_table,manual+1,FALSE)+VLOOKUP("air_mov",valve_table,manual+1,FALSE),0) -> 0 | D33: valves
A34: Number of MOVs for aeration air line | B34: tot_aeration_MOVs | C34: =IF(include_post_h2o2=1,0,num_aeration_blowers*VLOOKUP("air_mov_blower",valve_table,manual+1,FALSE)+VLOOKUP("air_mov",valve_table,manual+1,FALSE)) -> 3 | D34: valves
A35: Number of MOVs for hydrogen peroxide line | B35: tot_H2O2_MOVs | C35: =IF(include_post_h2o2=0,0,VLOOKUP("chem_MOV_post",valve_table,manual+1,FALSE)+(cm_pumps_H2O2)*VLOOKUP("chem_MOV_pump",valve_table,manual+1,FALSE)+VLOOKUP("chem_MOV_day",valve_table,manual+1,FALSE)*H2O2_day_tanks) -> 0 | D35: valves
A36: Number of MOVs for polymer addition line | B36: tot_polymer_MOVs | C36: =IF(polymer_day=0,0,VLOOKUP("chem_MOV_post",valve_table,manual+1,FALSE)+(cm_pumps_polymer)*VLOOKUP("chem_MOV_pump",valve_table,manual+1,FALSE)) -> 5 | D36: valves
A37: Total number of MOVs | B37: tot_MOVs | C37: =SUM(C25:C36)+total_res_MOVs -> 45 | D37: valves
A39: Number of manual valves on process line per vessel | B39: proc_man_vessel_cont | C39: =VLOOKUP("proc_man_vessel_par",valve_table,manual+1,FALSE) -> 0 | D39: valves/vessel
A40: Number of manual valves for process line | B40: tot_proc_man | C40: =IF(OR(design_type=1,design_type=3),(proc_man_vessel_cont+proc_man_vessel)*final_num_tanks,proc_man_vessel_cont*total_num_basins)+proc_man_vessel_cont*(IF(filter_type=1,total_num_filt_basins,final_num_tanks_filt)+coag_mix_tank)+total_booster_pumps*VLOOKUP("proc_man_pump",valve_table,manual+1,FALSE) -> 2 | D40: valves
A41: Number of manual valves for electron donor line | B41: tot_e_donor_man | C41: =IF(OR(design_type=1,design_type=3),final_num_tanks,total_num_basins)*VLOOKUP("chem_man_vessel",valve_table,manual+1,FALSE)+(cm_pumps_e_donor)*VLOOKUP("chem_man_pump",valve_table,manual+1,FALSE)+VLOOKUP("chem_man_day",valve_table,manual+1,FALSE)*e_donor_day_tanks -> 0 | D41: valves
A42: Number of manual valves for ammonium chloride line | B42: tot_NH4Cl_man | C42: =IF(OR(nutrient_option=2,nutrient_option=4),IF(OR(design_type=1,design_type=3),final_num_tanks,total_num_basins)*VLOOKUP("chem_man_vessel",valve_table,manual+1,FALSE)+(cm_pumps_NH4Cl)*VLOOKUP("chem_man_pump",valve_table,manual+1,FALSE)+VLOOKUP("chem_man_day",valve_table,manual+1,FALSE)*NH4Cl_day_tanks,0) -> 0 | D42: valves
A43: Number of manual valves for phosphoric acid line | B43: tot_H3PO4_man | C43: =IF(OR(nutrient_option=3,nutrient_option=4),IF(OR(design_type=1,design_type=3),final_num_tanks,total_num_basins)*VLOOKUP("chem_man_vessel",valve_table,manual+1,FALSE)+(cm_pumps_H3PO4)*VLOOKUP("chem_man_pump",valve_table,manual+1,FALSE)+VLOOKUP("chem_man_day",valve_table,manual+1,FALSE)*H3PO4_day_tanks,0) -> 0 | D43: valves
A44: Number of manual valves for backwash line | B44: tot_back_man | C44: =(IF(OR(design_type=1,design_type=3),final_num_tanks,0)+total_num_basins+IF(filter_type=1,total_num_filt_basins,final_num_tanks_filt))*VLOOKUP("back_man_vessel",valve_table,manual+1,FALSE)+backwash_pumps*VLOOKUP("back_man_pump",valve_table,manual+1,FALSE)+back_tanks*VLOOKUP("back_man_tank",valve_table,manual+1,FALSE)+IF(no_backwash=1,VLOOKUP("back_man_no_back",valve_table,manual+1,FALSE),0) -> 0 | D44: valves
A45: Number of manual valves for recycle line | B45: tot_rec_man | C45: =IF(design_type=3,VLOOKUP("tot_man_rec",valve_table,manual+1,FALSE)+recycle_pumps*VLOOKUP("rec_man_pump",valve_table,manual+1,FALSE),0) -> 0 | D45: valves
A46: Number of manual valves for bypass line | B46: tot_bp_man | C46: =IF(bp_pct=0,0,VLOOKUP("tot_bp_man",valve_table,manual+1,FALSE)) -> 0 | D46: valves
A47: Number of manual valves for air scour | B47: tot_air_man | C47: =IF(air_scour_I="yes",num_blowers*VLOOKUP("air_man_blower",valve_table,manual+1,FALSE)+VLOOKUP("air_man",valve_table,manual+1,FALSE),0) -> 0 | D47: valves
A48: Number of manual valves for biomass removal air line | B48: tot_bio_air_man | C48: =IF(design_type=3,num_bio_blowers*VLOOKUP("air_man_blower",valve_table,manual+1,FALSE)+VLOOKUP("air_man",valve_table,manual+1,FALSE),0) -> 0 | D48: valves
A49: Number of manual valves for aeration air line | B49: tot_aeration_man | C49: =IF(include_post_h2o2=1,0,num_aeration_blowers*VLOOKUP("air_man_blower",valve_table,manual+1,FALSE)+VLOOKUP("air_man",valve_table,manual+1,FALSE)) -> 0 | D49: valves
A50: Number of manual valves for hydrogen peroxide line | B50: tot_H2O2_man | C50: =IF(include_post_h2o2=0,0,VLOOKUP("chem_man_post",valve_table,manual+1,FALSE)+(cm_pumps_H2O2)*VLOOKUP("chem_man_pump",valve_table,manual+1,FALSE)+VLOOKUP("chem_man_day",valve_table,manual+1,FALSE)*H2O2_day_tanks) -> 0 | D50: valves
A51: Number of manual valves for hydrogen peroxide line | B51: tot_polymer_man | C51: =IF(polymer_day=0,0,VLOOKUP("chem_man_post",valve_table,manual+1,FALSE)+(cm_pumps_polymer)*VLOOKUP("chem_man_pump",valve_table,manual+1,FALSE)) -> 0 | D51: valves
A53: Number of check valves for electron donor line | B53: tot_e_donor_chv | C53: =chem_chv_pump*cm_pumps_e_donor -> 4 | D53: valves
A54: Number of check valves for ammonium chloride line | B54: tot_NH4Cl_chv | C54: =(chem_chv_pump+tot_nutrient_chv)*cm_pumps_NH4Cl -> 0 | D54: valves
A55: Number of check valves phosphoric acid line | B55: tot_H3PO4_chv | C55: =(chem_chv_pump+tot_nutrient_chv)*cm_pumps_H3PO4 -> 6 | D55: valves
A56: Number of check valves backwash line | B56: tot_back_chv | C56: =back_chv_pump*backwash_pumps+IF(no_backwash=1,back_chv_no_back,0) -> 1 | D56: valves
A57: Number of check valves hydrogen peroxide line | B57: tot_H2O2_chv | C57: =IF(include_post_h2o2=0,0,chem_chv_pump*cm_pumps_H2O2) -> 0 | D57: valves
A58: Number of check valves polymer line | B58: tot_polymer_chv | C58: =polymer_chv_pump*cm_pumps_polymer -> 2 | D58: valves
A59: Size of flow meters for influent line | B59: in_meter_size | C59: =in_out_pipe_diam -> 1.5 | D59: inches
A60: Size of flow meters for process line | B60: proc_meter_size | C60: =proc_pipe_diam -> 1.5 | D60: inches
A61: Size of flow meters for backwash line | B61: back_meter_size | C61: =back_pipe_diam -> 4 | D61: inches
A62: Number of flow meters for process line | B62: tot_fm_proc | C62: =fm_proc*IF(OR(design_type=1,design_type=3),final_num_tanks,total_num_basins) -> 0 | D62: units
A64: Total level switch/alarms | B64: tot_level_switch | C64: =IF(OR(design_type=1,design_type=3),final_num_tanks*IF(ss_cat2=1,level_switch_small,level_switch),total_num_basins*IF(ss_cat2=1,level_switch_small_g,level_switch_g)) -> 0 | D64: units
A65: Total high/low alarms for backwash | B65: tot_back_alarm | C65: =back_tanks*alarm_back -> 0 | D65: units
A66: Total high/low alarms for chemical tanks | B66: tot_chem_alarm | C66: =(H3PO4_tanks+NH4Cl_tanks+e_donor_tanks+H2O2_tanks+H3PO4_day_tanks+NH4Cl_day_tanks+e_donor_day_tanks+H2O2_day_tanks)*alarm_chem -> 3 | D66: units
A67: Total turbidity meters | B67: tot_turb_meters | C67: =IF(OR(design_type=1,design_type=3),turb_tank*final_num_tanks,turb_tank_g*total_num_basins)+(turb_tank_filt*IF(filter_type=1,total_num_filt_basins,final_num_tanks_filt))+add_turb -> 4 | D67: units
A68: Total temperature meters | B68: tot_temp_meters | C68: =IF(ss_cat2=1,temp_meters_small,temp_meters)*IF(OR(design_type=1,design_type=3),final_num_tanks,total_num_basins) -> 4 | D68: units
A69: Total head loss sensors | B69: tot_head_sens | C69: =head_tank*IF(OR(design_type=1,design_type=3),final_num_tanks,total_num_basins) -> 2 | D69: units
A70: Total perchlorate/nitrate analyzers | B70: tot_ClO4_analyzer | C70: =IF(contam=1,ClO4_analyzer,0) -> 1 | D70: units
A71: Total nitrate analyzers | B71: tot_N_analyzer | C71: =IF(contam=1,0,N_analyzer) -> 0 | D71: units
A72: Total dissolved oxygen analyzer | B72: tot_DO_analyzer | C72: =DO_analyzer -> 1 | D72: units
A73: Sampling ports | B73: ports | C73: =ports_tank*(IF(OR(design_type=1,design_type=3),final_num_tanks,total_num_basins)+IF(filter_type=1,total_num_filt_basins,final_num_tanks_filt))+add_ports+IF(bp_pct>0,ports_bp,0) -> 7 | D73: units
A74: Total drive controllers | B74: tot_switches | C74: =IF(manual=2,0,S_booster_pump*total_booster_pumps+S_recycle_pump*recycle_pumps+S_back_pump*(backwash_pumps+num_blowers+num_bio_blowers)+S_cm_pump*(cm_pumps_e_donor+cm_pumps_NH4Cl+cm_pumps_H3PO4+cm_pumps_H2O2)+S_res_pump*(res_pumps+cm_pumps_polymer)+S_eductor*res_eductors+S_mixer*(mixers+hmixers+H3PO4_cmixers+NH4Cl_cmixers+e_donor_cmixers+H2O2_cmixers+H3PO4_dmixers+NH4Cl_dmixers+e_donor_dmixers+H2O2_dmixers+hmixers)+IF(coag_res=1,S_feeder*IF(res_holding="tanks",htanks,IF(res_holding="basins",hbasins,0)),0)+IF(include_coag_filt=1,S_feeder*coag_mix_tank,0)) -> 11 | D74: units
A76: System Controls
A77: Flow meter lookup code - inlet/outlet | B77: fm_lkp_io | C77: =IF(OUTPUT!L382=1,"flow_op",IF(OUTPUT!L383=1,"flow_prop",IF(OUTPUT!L384=1,"flow_ven","flow_mag"))) -> flow_prop | E77: These codes are used to look up SCADA requirements, which depend on the type of flow meter selected.
A78: Flow meter lookup code - process | B78: fm_lkp_proc | C78: =IF(OUTPUT!L387=1,"flow_op",IF(OUTPUT!L388=1,"flow_prop",IF(OUTPUT!L389=1,"flow_ven","flow_mag"))) -> flow_mag
A79: Flow meter lookup code - backwash | B79: fm_lkp_back | C79: =IF(OUTPUT!L392=1,"flow_op",IF(OUTPUT!L393=1,"flow_prop",IF(OUTPUT!L394=1,"flow_ven","flow_mag"))) -> flow_prop
A80: Flow meter lookup code - residuals | B80: fm_lkp_res | C80: =IF(OUTPUT!L397=1,"flow_op",IF(OUTPUT!L398=1,"flow_prop",IF(OUTPUT!L399=1,"flow_ven","flow_mag"))) -> flow_prop
A81: Total discrete inputs | B81: discrete_inputs | C81: =VLOOKUP(fm_lkp_io,port_table,2,FALSE)*tot_fm_in+VLOOKUP(fm_lkp_proc,port_table,2,FALSE)*tot_fm_proc+VLOOKUP(fm_lkp_back,port_table,2,FALSE)*tot_fm_back+VLOOKUP(fm_lkp_res,port_table,2,FALSE)*tot_fm_res+VLOOKUP("alarm",port_table,2,FALSE)*(tot_level_switch+tot_back_alarm+tot_chem_alarm+tot_res_alarm)+VLOOKUP("orp",port_table,2,FALSE)*ORP_sensor+VLOOKUP("ph",port_table,2,FALSE)*pH_controls+VLOOKUP("temp",port_table,2,FALSE)*tot_temp_meters+VLOOKUP("turb",port_table,2,FALSE)*tot_turb_meters+VLOOKUP("head",port_table,2,FALSE)*tot_head_sens+VLOOKUP("port",port_table,2,FALSE)*ports+VLOOKUP("switch",port_table,2,FALSE)*tot_switches+VLOOKUP("valve",port_table,2,FALSE)*tot_MOVs+VLOOKUP("clo4",port_table,2,FALSE)*tot_ClO4_analyzer+VLOOKUP("nitrate",port_table,2,FALSE)*tot_N_analyzer+VLOOKUP("do",port_table,2,FALSE)*tot_DO_analyzer -> 46 | D81: units
A82: Total discrete outputs | B82: discrete_outputs | C82: =IF(manual=2,0,VLOOKUP(fm_lkp_io,port_table,3,FALSE)*tot_fm_in+VLOOKUP(fm_lkp_proc,port_table,3,FALSE)*tot_fm_proc+VLOOKUP(fm_lkp_back,port_table,3,FALSE)*tot_fm_back+VLOOKUP(fm_lkp_res,port_table,3,FALSE)*tot_fm_res+VLOOKUP("alarm",port_table,3,FALSE)*(tot_level_switch+tot_back_alarm+tot_chem_alarm+tot_res_alarm)+VLOOKUP("orp",port_table,3,FALSE)*ORP_sensor+VLOOKUP("ph",port_table,3,FALSE)*pH_controls+VLOOKUP("temp",port_table,3,FALSE)*tot_temp_meters+VLOOKUP("turb",port_table,3,FALSE)*tot_turb_meters+VLOOKUP("head",port_table,3,FALSE)*tot_head_sens+VLOOKUP("port",port_table,3,FALSE)*ports+VLOOKUP("switch",port_table,3,FALSE)*tot_switches+VLOOKUP("valve",port_table,3,FALSE)*tot_MOVs+VLOOKUP("clo4",port_table,3,FALSE)*tot_ClO4_analyzer+VLOOKUP("nitrate",port_table,3,FALSE)*tot_N_analyzer+VLOOKUP("do",port_table,3,FALSE)*tot_DO_analyzer) -> 15 | D82: units
A83: Total analog inputs | B83: analog_inputs | C83: =VLOOKUP(fm_lkp_io,port_table,4,FALSE)*tot_fm_in+VLOOKUP(fm_lkp_proc,port_table,4,FALSE)*tot_fm_proc+VLOOKUP(fm_lkp_back,port_table,4,FALSE)*tot_fm_back+VLOOKUP(fm_lkp_res,port_table,4,FALSE)*tot_fm_res+VLOOKUP("alarm",port_table,4,FALSE)*(tot_level_switch+tot_back_alarm+tot_chem_alarm+tot_res_alarm)+VLOOKUP("orp",port_table,4,FALSE)*ORP_sensor+VLOOKUP("ph",port_table,4,FALSE)*pH_controls+VLOOKUP("temp",port_table,4,FALSE)*tot_temp_meters+VLOOKUP("turb",port_table,4,FALSE)*tot_turb_meters+VLOOKUP("head",port_table,4,FALSE)*tot_head_sens+VLOOKUP("port",port_table,4,FALSE)*ports+VLOOKUP("switch",port_table,4,FALSE)*tot_switches+VLOOKUP("valve",port_table,4,FALSE)*tot_MOVs+VLOOKUP("clo4",port_table,4,FALSE)*tot_ClO4_analyzer+VLOOKUP("nitrate",port_table,4,FALSE)*tot_N_analyzer+VLOOKUP("do",port_table,4,FALSE)*tot_DO_analyzer -> 60 | D83: units
A84: Total analog outputs | B84: analog_outputs | C84: =IF(manual=2,0,VLOOKUP(fm_lkp_io,port_table,5,FALSE)*tot_fm_in+VLOOKUP(fm_lkp_proc,port_table,5,FALSE)*tot_fm_proc+VLOOKUP(fm_lkp_back,port_table,5,FALSE)*tot_fm_back+VLOOKUP(fm_lkp_res,port_table,5,FALSE)*tot_fm_res+VLOOKUP("alarm",port_table,5,FALSE)*(tot_level_switch+tot_back_alarm+tot_chem_alarm+tot_res_alarm)+VLOOKUP("orp",port_table,5,FALSE)*ORP_sensor+VLOOKUP("ph",port_table,5,FALSE)*pH_controls+VLOOKUP("temp",port_table,5,FALSE)*tot_temp_meters+VLOOKUP("turb",port_table,5,FALSE)*tot_turb_meters+VLOOKUP("head",port_table,5,FALSE)*tot_head_sens+VLOOKUP("port",port_table,5,FALSE)*ports+VLOOKUP("switch",port_table,5,FALSE)*tot_switches+VLOOKUP("valve",port_table,5,FALSE)*tot_MOVs+VLOOKUP("clo4",port_table,5,FALSE)*tot_ClO4_analyzer+VLOOKUP("nitrate",port_table,5,FALSE)*tot_N_analyzer+VLOOKUP("do",port_table,5,FALSE)*tot_DO_analyzer) -> 45 | D84: units
A85: Total I/O ports | B85: total_ioports | C85: =discrete_inputs+discrete_outputs+analog_inputs+analog_outputs -> 166 | D85: units
A86: I/O Discrete Output Modules | B86: plc_discrete_output | C86: =ROUNDUP(discrete_outputs/32,0) -> 1 | D86: units
A87: I/O Discrete Input Modules | B87: plc_discrete_input | C87: =ROUNDUP(discrete_inputs/32,0) -> 2 | D87: units
